{"text_format":"1","workbook":"xlsx","n_sheets":117,"sheets":["Trial","Introduction","List of Topics","Changes in Excel 2007","Tabs, Ribbons","Office button","QAT","Excel Options","File extensions","Right-clicking","Changes in Excel 2010","File tab","Modifying ribbons","Selected range coloring","New and Renamed functions","Add-ins buttons","Slicers","Sparklines","New Solver","Excel Basics","Moving and Selecting","Going Home to Cell A1","Using End-Arrow Combinations","Splitting the Screen","Selecting a Range","Selecting Multiple Ranges","Go To Options","Copying, Cutting, Pasting","Copying and Pasting","Copying and Pasting Special","Transposing a Range","Cutting and Pasting","Other Basic Tools","Undoing Actions","Manipulating Rows, Columns","Manipulating Worksheets","Filling a Series","Sorting","Hyperlinks","Documenting Your Work","Printing","Working with Formulas","Relative Absolute","R1C1 Notation","Range Names","Auditing formulas","Calculation Options","AutoSum Button","Evaluating a formula","External Formula References","Working with Charts","Creating a Chart","Locating a chart","Modifying a Chart","Working with Functions","Function help","Two Essential Functions","IF","VLOOKUP","Counting, Summing Functions","SUM, AVERAGE","COUNT, COUNTA, COUNTBLANK","COUNTIF, SUMIF, AVERAGEIF","COUNTIFS, SUMIFS, AVERAGEIFS","SUMPRODUCT","Math Functions","INT, ROUND","ABS, SQRT, SUMSQ","LN, EXP","RAND, RANDBETWEEN","Text Functions","TRIM, VALUE","Concatenating","Parsing with Text to Columns","Parsing with text functions","Date functions","Y2K","NOW, TODAY","YEAR, MONTH, DAY, WEEKDAY","DATEDIF","DATE, DATEVALUE","NETWORKDAYS, WORKDAY","Statistical Functions","MIN, MAX","MEDIAN, PERCENTILE, QUANTILE","STDEV, VAR","CORREL, COVAR","RANK, LARGE, SMALL","Financial Functions","PMT","NPV, XNPV","IRR","Reference Functions","INDEX","MATCH","OFFSET","INDIRECT","Tools for Analyzing Data","Data Tables","One-Way Data Table","Two-Way Data Table","Tables","Pivot Tables","Goal Seek","Solver","Importing External Data","From Built-in Connections","From the Web","From a Text File","From a Database","Making Professional Apps","Conditional Formatting","Data Validation","Protecting","Adding Form Controls","Recording Macros","Template"],"not_rendered":{"charts":11,"images":77,"macros":1,"external_links":2,"defined_names":87,"comments":2,"pivot_tables":1},"unopened":[],"bounds":{"document_bytes":16777216,"sheet_cells":100000,"rows_first":2000,"rows_last":500,"rows_between":2000,"halvings":0,"cell_chars":16384,"cell_head_chars":4096},"cells_cut":0,"cells_raw":0,"read":"whole","date_system":"1900"}

{"sheet":"Trial","index":0,"n_rows":3,"n_cols":2,"rows_kept":3,"cut":false,"hidden":true,"merged":[]}
["Opening date","2012-06-23"]
["Expire date","2013-06-23"]
["Have opened","Yes"]

{"sheet":"Introduction","index":1,"n_rows":2,"n_cols":1,"rows_kept":2,"cut":false,"hidden":false,"merged":[]}
[]
["© S. Christian Albright, 2011, All Rights Reserved"]

{"sheet":"List of Topics","index":2,"n_rows":141,"n_cols":7,"rows_kept":141,"cut":false,"hidden":true,"merged":[]}
[]
[null,null,"+","Introduction",null,null,"Search (Ctrl-Shift-Q) for:"]
[null,null,null,"+","Changes in Excel 2007"]
[null,null,null,null,null,"Tabs and Ribbons"]
[null,null,null,null,null,"Office Button"]
[null,null,null,null,null,"Quick Access Toolbar (QAT)"]
[null,null,null,null,null,"Excel Options"]
[null,null,null,null,null,"File Extensions"]
[null,null,null,null,null,"Right-clicking"]
[null,null,null,"+","Changes in Excel 2010"]
[null,null,null,null,null,"File Tab"]
[null,null,null,null,null,"Modifying Ribbons"]
[null,null,null,null,null,"Selected Range Coloring"]
[null,null,null,null,null,"New and Renamed Functions"]
[null,null,null,null,null,"Add-Ins Buttons"]
[null,null,null,null,null,"Slicers"]
[null,null,null,null,null,"Sparklines"]
[null,null,null,null,null,"New Solver"]
[null,null,"-","Excel Basics"]
[null,null,null,"+","Moving and Selecting"]
[null,null,null,null,null,"Going Home to Cell A1"]
[null,null,null,null,null,"Using End-Arrow Combinations"]
[null,null,null,null,null,"Splitting the Screen"]
[null,null,null,null,null,"Selecting a Range"]
[null,null,null,null,null,"Selecting Multiple Ranges"]
[null,null,null,null,null,"Go To Options"]
[null,null,null,"+","Copying, Cutting, Pasting"]
[null,null,null,null,null,"Copying and pasting"]
[null,null,null,null,null,"Copying and Pasting Special"]
[null,null,null,null,null,"Transposing a Range"]
[null,null,null,null,null,"Cutting and Pasting"]
[null,null,null,"-","Other Basic Tools"]
[null,null,null,null,null,"Undoing Actions"]
[null,null,null,null,null,"Manipulating Rows and Columns"]
[null,null,null,null,null,"Manipulating Worksheets"]
[null,null,null,null,null,"Filling a Series"]
[null,null,null,null,null,"Sorting"]
[null,null,null,null,null,"Using Hyperlinks"]
[null,null,null,null,null,"Documenting Your Work"]
[null,null,null,null,null,"Printing"]
[null,null,"+","Working with Formulas"]
[null,null,null,null,"Using Absolute, Relative Addresses"]
[null,null,null,null,"Showing Formulas in R1C1 Notation"]
[null,null,null,null,"Using Range Names"]
[null,null,null,null,"Auditing Formulas"]
[null,null,null,null,"Calculation Options"]
[null,null,null,null,"AutoSum button"]
[null,null,null,null,"Evaluating a Formula"]
[null,null,null,null,"Using External Formula References"]
[null,null,"+","Working with Charts"]
[null,null,null,null,"Creating a Chart"]
[null,null,null,null,"Locating a Chart"]
[null,null,null,null,"Modifying a Chart"]
[null,null,"+","Working with Functions"]
[null,null,null,null,"Function Help"]
[null,null,null,"+","Two Essential Excel Functions"]
[null,null,null,null,null,"IF Function"]
[null,null,null,null,null,"VLOOKUP Function"]
[null,null,null,"+","Counting, Summing, Averaging Functions"]
[null,null,null,null,null,"SUM, AVERAGE Functions"]
[null,null,null,null,null,"COUNT, COUNTA, COUNTBLANK Functions"]
[null,null,null,null,null,"COUNTIF, SUMIF, AVERAGEIF Functions"]
[null,null,null,null,null,"COUNTIFS, SUMIFS, AVERAGEIFS Functions"]
[null,null,null,null,null,"SUMPRODUCT Function"]
[null,null,null,"+","Math Functions"]
[null,null,null,null,null,"INT, ROUND Functions"]
[null,null,null,null,null,"ABS, SQRT, SUMSQ Functions"]
[null,null,null,null,null,"LN, EXP Functions"]
[null,null,null,null,null,"RAND, RANDBETWEEN Functions"]
[null,null,null,"+","Text Functions"]
[null,null,null,null,null,"TRIM, VALUE Functions"]
[null,null,null,null,null,"Concatenating Text"]
[null,null,null,null,null,"Parsing with Text to Columns"]
[null,null,null,null,null,"Parsing with Text Functions"]
[null,null,null,"+","Date Functions"]
[null,null,null,null,null,"Y2K Problem"]
[null,null,null,null,null,"NOW, TODAY Functions"]
[null,null,null,null,null,"YEAR, MONTH, DAY, WEEKDAY Functions"]
[null,null,null,null,null,"DATEDIF Function"]
[null,null,null,null,null,"DATE, DATEVALUE Functions"]
[null,null,null,null,null,"NETWORKDAYS, WORKDAY Functions"]
[null,null,null,"+","Statistical Functions"]
[null,null,null,null,null,"MAX, MIN Functions"]
[null,null,null,null,null,"MEDIAN, PERCENTILE, QUARTILE Functions"]
[null,null,null,null,null,"STDEV, VAR Functions"]
[null,null,null,null,null,"CORREL, COVAR Functions"]
[null,null,null,null,null,"RANK, LARGE, SMALL Functions"]
[null,null,null,"+","Financial Functions"]
[null,null,null,null,null,"PMT Function"]
[null,null,null,null,null,"NPV, XNPV Functions"]
[null,null,null,null,null,"IRR Function"]
[null,null,null,"+","Reference Functions"]
[null,null,null,null,null,"INDEX Function"]
[null,null,null,null,null,"MATCH Function"]
[null,null,null,null,null,"OFFSET Function"]
[null,null,null,null,null,"INDIRECT Function"]
[null,null,"+","Tools for Analyzing Data"]
[null,null,null,"+","Data Tables"]
[null,null,null,null,null,"One-Way Data Tables"]
[null,null,null,null,null,"Two-Way Data Tables"]
[null,null,null,null,"Tables"]
[null,null,null,null,"Pivot Tables"]
[null,null,null,null,"Goal Seek"]
[null,null,null,null,"Solver"]
[null,null,"+","Importing External Data"]
[null,null,null,null,"From Built-in Connections"]
[null,null,null,null,"From the Web"]
[null,null,null,null,"From a Text File"]
[null,null,null,null,"From a Database"]
[null,null,"+","Making Professional Applications"]
[null,null,null,null,"Conditional Formatting"]
[null,null,null,null,"Data Validation"]
[null,null,null,null,"Protecting Worksheets and Workbooks"]
[null,null,null,null,"Adding Form Controls"]
[null,null,null,null,"Recording Macros"]
[]
[]
[]
[]
[]
[]
[]
[]
[]
[]
[]
[]
[]
[]
[]
[]
[]
[]
[]
[]
[]
[]
[]
[]
[]
[null,null,"© S. Christian Albright, 2011, All Rights Reserved"]

{"sheet":"Changes in Excel 2007","index":3,"n_rows":2,"n_cols":1,"rows_kept":2,"cut":false,"hidden":true,"merged":[]}
[]
["© S. Christian Albright, 2011, All Rights Reserved"]

{"sheet":"Tabs, Ribbons","index":4,"n_rows":2,"n_cols":1,"rows_kept":2,"cut":false,"hidden":true,"merged":[]}
[]
["© S. Christian Albright, 2011, All Rights Reserved"]

{"sheet":"Office button","index":5,"n_rows":2,"n_cols":1,"rows_kept":2,"cut":false,"hidden":true,"merged":[]}
[]
["© S. Christian Albright, 2011, All Rights Reserved"]

{"sheet":"QAT","index":6,"n_rows":2,"n_cols":1,"rows_kept":2,"cut":false,"hidden":true,"merged":[]}
[]
["© S. Christian Albright, 2011, All Rights Reserved"]

{"sheet":"Excel Options","index":7,"n_rows":2,"n_cols":1,"rows_kept":2,"cut":false,"hidden":true,"merged":[]}
[]
["© S. Christian Albright, 2011, All Rights Reserved"]

{"sheet":"File extensions","index":8,"n_rows":16,"n_cols":7,"rows_kept":16,"cut":false,"hidden":true,"merged":[]}
[]
["© S. Christian Albright, 2011, All Rights Reserved"]
[]
[]
[]
[]
[]
[]
[]
[]
[]
[]
[]
[]
[]
[null,null,null,null,null,null," "]

{"sheet":"Right-clicking","index":9,"n_rows":16,"n_cols":12,"rows_kept":16,"cut":false,"hidden":true,"merged":[]}
[]
["© S. Christian Albright, 2011, All Rights Reserved"]
[null,null,null,null,null,null,null,null,null,null,"Month","Sales"]
[null,null,null,null,null,null,null,null,null,null,"2009-01-01",3108]
[null,null,null,null,null,null,null,null,null,null,"2009-02-01",3993]
[null,null,null,null,null,null,null,null,null,null,"2009-03-01",1644]
[null,null,null,null,null,null,null,null,null,null,"2009-04-01",3078]
[null,null,null,null,null,null,null,null,null,null,"2009-05-01",1830]
[null,null,null,null,null,null,null,null,null,null,"2009-06-01",3279]
[null,null,null,null,null,null,null,null,null,null,"2009-07-01",3413]
[null,null,null,null,null,null,null,null,null,null,"2009-08-01",1197]
[]
[]
[]
[]
[null,null,null,null,null,null," "]

{"sheet":"Changes in Excel 2010","index":10,"n_rows":2,"n_cols":1,"rows_kept":2,"cut":false,"hidden":true,"merged":[]}
[]
["© S. Christian Albright, 2011, All Rights Reserved"]

{"sheet":"File tab","index":11,"n_rows":2,"n_cols":1,"rows_kept":2,"cut":false,"hidden":true,"merged":[]}
[]
["© S. Christian Albright, 2011, All Rights Reserved"]

{"sheet":"Modifying ribbons","index":12,"n_rows":2,"n_cols":1,"rows_kept":2,"cut":false,"hidden":true,"merged":[]}
[]
["© S. Christian Albright, 2011, All Rights Reserved"]

{"sheet":"Selected range coloring","index":13,"n_rows":2,"n_cols":1,"rows_kept":2,"cut":false,"hidden":true,"merged":[]}
[]
["© S. Christian Albright, 2011, All Rights Reserved"]

{"sheet":"New and Renamed functions","index":14,"n_rows":16,"n_cols":15,"rows_kept":16,"cut":false,"hidden":true,"merged":[]}
[]
["© S. Christian Albright, 2011, All Rights Reserved"]
[null,null,null,null,null,null,null,null,null,null,"New function","Old version","New example","Old example","Result"]
[null,null,null,null,null,null,null,null,null,null,"NORM.DIST","NORMDIST",{"$f":"_xlfn.NORM.DIST(80,100,25,1)","v":0.21185539858339661},{"$f":"NORMDIST(80,100,25,1)","v":0.21185539858339661}," Probability to the left of 80"]
[null,null,null,null,null,null,null,null,null,null,"NORM.INV","NORMINV",{"$f":"_xlfn.NORM.INV(0.8,100,25)","v":121.04053083932287},{"$f":"NORMINV(0.8,100,25)","v":121.04053083932287}," Value with probability 0.8 to the left of it"]
[null,null,null,null,null,null,null,null,null,null,"BINOM.DIST","BINOMDIST",{"$f":"_xlfn.BINOM.DIST(45,100,0.5,1)","v":0.18410080866334791},{"$f":"BINOMDIST(45,100,0.5,1)","v":0.18410080866334791}," Probability of <= 45 successes"]
[null,null,null,null,null,null,null,null,null,null,"BINOM.INV","CRITBINOM",{"$f":"_xlfn.BINOM.INV(100,0.5,0.95)","v":58},{"$f":"CRITBINOM(100,0.5,0.95)","v":58}," Value such that there is about probability 0.95 of being <= it"]
[null,null,null,null,null,null,null,null,null,null,"CHISQ.DIST","CHIDIST",{"$f":"_xlfn.CHISQ.DIST(15,20,1)","v":0.2235923869802855},{"$f":"1-CHIDIST(15,20)","v":0.2235923869802855}," Probability to the left of 15"]
[null,null,null,null,null,null,null,null,null,null,"CHISQ.DIST.RT","CHIDIST",{"$f":"_xlfn.CHISQ.DIST.RT(15,20)","v":0.7764076130197145},{"$f":"CHIDIST(15,20)","v":0.7764076130197145}," Probability to the right of 15"]
[null,null,null,null,null,null,null,null,null,null,"CHISQ.INV","CHIINV",{"$f":"_xlfn.CHISQ.INV(0.25,20)","v":15.451773539047727},{"$f":"CHIINV(0.75,20)","v":15.451773539047727}," Value with probability 0.25 to the left of it"]
[null,null,null,null,null,null,null,null,null,null,"CHISQ.INV.RT","CHIINV",{"$f":"_xlfn.CHISQ.INV.RT(0.05,20)","v":31.410432844230925},{"$f":"CHIINV(0.05,20)","v":31.410432844230925}," Value with probability 0.05 to the right of it"]
[null,null,null,null,null,null,null,null,null,null,"T.DIST","TDIST",{"$f":"_xlfn.T.DIST(1,20,1)","v":0.83537171141414546},{"$f":"1-TDIST(1,20,1)","v":0.83537171141414546}," Probability to the left of 1"]
[null,null,null,null,null,null,null,null,null,null,"T.DIST.2T","TDIST",{"$f":"_xlfn.T.DIST.2T(1,20)","v":0.32925657717170909},{"$f":"TDIST(1,20,2)","v":0.32925657717170909}," Probability to the left of -1 plus probability to the right of 1 (i.e., combined probability in tails)"]
[null,null,null,null,null,null,null,null,null,null,"T.DIST.RT","TDIST",{"$f":"_xlfn.T.DIST.RT(1,20)","v":0.16462828858585454},{"$f":"TDIST(1,20,1)","v":0.16462828858585454}," Probability to the right of 1"]
[null,null,null,null,null,null,null,null,null,null,"T.INV","TINV",{"$f":"_xlfn.T.INV(0.05,20)","v":-1.7247182429207868},{"$f":"-TINV(0.1,20)","v":-1.7247182429207868}," Value with probability 0.05 to the left of it"]
[null,null,null,null,null,null,null,null,null,null,"T.INV.2T","TINV",{"$f":"_xlfn.T.INV.2T(0.95,20)","v":6.3498388741329556E-2},{"$f":"TINV(0.95,20)","v":6.3498388741329556E-2}," Value with probability 0.05 between it and the negative of it (i.e., combined 0.95 in the tails)"]

{"sheet":"Add-ins buttons","index":15,"n_rows":2,"n_cols":1,"rows_kept":2,"cut":false,"hidden":true,"merged":[]}
[]
["© S. Christian Albright, 2011, All Rights Reserved"]

{"sheet":"Slicers","index":16,"n_rows":24,"n_cols":7,"rows_kept":24,"cut":false,"hidden":true,"merged":[]}
[]
["© S. Christian Albright, 2011, All Rights Reserved"]
[]
[]
[]
[]
[]
[]
[]
[]
[]
[]
[]
[]
[]
[]
[]
[]
[]
[null,"Sum of Total Cost","Column Labels"]
[null,"Row Labels","MidWest","NorthEast","South","West","Grand Total"]
[null,"Female",59.65,878.1,1068.58,1205.2900000000002,3211.62]
[null,"Male",159.32999999999998,140.61000000000001,141.38999999999999,372.95,814.28]
[null,"Grand Total",218.98,1018.71,1209.9699999999998,1578.2400000000002,4025.8999999999996]

{"sheet":"Sparklines","index":17,"n_rows":193,"n_cols":16,"rows_kept":193,"cut":false,"hidden":true,"merged":[]}
[]
["© S. Christian Albright, 2011, All Rights Reserved"]
[null,null,null,null,null,null,null,null,null,null,"Weekly closing prices from 01/01/2006 to 07/30/2009"]
[]
[null,null,null,null,null,null,null,null,null,null,"Week","AAPL","CSCO","HPQ","IBM","MSFT"]
[null,null,null,null,null,null,null,null,null,null,1,71.89,17.12,27.82,77.78,24.64]
[null,null,null,null,null,null,null,null,null,null,2,76.3,18.77,29.38,80.38,25.36]
[null,null,null,null,null,null,null,null,null,null,3,85.59,18.920000000000002,31,78.7,25.62]
[null,null,null,null,null,null,null,null,null,null,4,76.09,18.510000000000002,30.84,76.98,24.89]
[null,null,null,null,null,null,null,null,null,null,5,72.03,18.78,30.4,76.66,26.19]
[null,null,null,null,null,null,null,null,null,null,6,71.849999999999994,18.149999999999999,29.69,75.67,25.95]
[null,null,null,null,null,null,null,null,null,null,7,67.31,19.760000000000002,30.62,77.150000000000006,25.15]
[null,null,null,null,null,null,null,null,null,null,8,70.290000000000006,19.86,33.1,76.56,25.25]
[null,null,null,null,null,null,null,null,null,null,9,71.459999999999994,19.850000000000001,31.11,75.98,25.18]
[null,null,null,null,null,null,null,null,null,null,10,67.72,21.04,32.32,75.849999999999994,25.47]
[null,null,null,null,null,null,null,null,null,null,11,63.19,20.82,32.049999999999997,77.38,25.69]
[null,null,null,null,null,null,null,null,null,null,12,64.66,21.62,33.270000000000003,79.02,26]
[null,null,null,null,null,null,null,null,null,null,13,59.96,21.36,32.31,79.069999999999993,25.54]
[null,null,null,null,null,null,null,null,null,null,14,62.72,21.67,32.04,78.23,25.73]
[null,null,null,null,null,null,null,null,null,null,15,69.790000000000006,20.81,32.5,78.239999999999995,25.77]
[null,null,null,null,null,null,null,null,null,null,16,66.47,21.18,31.77,77.760000000000005,25.6]
[null,null,null,null,null,null,null,null,null,null,17,67.040000000000006,20.68,32.1,77.459999999999994,25.67]
[null,null,null,null,null,null,null,null,null,null,18,70.39,20.95,31.63,78.11,22.84]
[null,null,null,null,null,null,null,null,null,null,19,71.89,21.75,32.99,79,22.51]
[null,null,null,null,null,null,null,null,null,null,20,67.7,20.34,31.29,78.44,21.91]
[null,null,null,null,null,null,null,null,null,null,21,64.510000000000005,20.87,31.19,76.430000000000007,21.42]
[null,null,null,null,null,null,null,null,null,null,22,63.55,20.309999999999999,31.69,76.88,22.52]
[null,null,null,null,null,null,null,null,null,null,23,61.66,20.440000000000001,31.56,75.7,21.61]
[null,null,null,null,null,null,null,null,null,null,24,59.24,19.97,29.16,73.900000000000006,20.81]
[null,null,null,null,null,null,null,null,null,null,25,57.56,19.98,32.270000000000003,74.209999999999994,20.98]
[null,null,null,null,null,null,null,null,null,null,26,58.83,19.61,31.9,73.400000000000006,21.36]
[null,null,null,null,null,null,null,null,null,null,27,57.27,19.53,30.94,73.13,22.12]
[null,null,null,null,null,null,null,null,null,null,28,55.4,19.39,32.08,72.75,22.12]
[null,null,null,null,null,null,null,null,null,null,29,50.67,17.940000000000001,30.04,70.040000000000006,21.16]
[null,null,null,null,null,null,null,null,null,null,30,60.72,17.46,29.81,71.27,22.66]
[null,null,null,null,null,null,null,null,null,null,31,65.59,18.079999999999998,31.36,73.27,23.02]
[null,null,null,null,null,null,null,null,null,null,32,68.3,17.239999999999998,31.68,72.27,23.06]
[null,null,null,null,null,null,null,null,null,null,33,63.65,19.54,32.28,72.14,23.19]
[null,null,null,null,null,null,null,null,null,null,34,67.91,20.86,34.69,76.37,24.57]
[null,null,null,null,null,null,null,null,null,null,35,68.75,21.05,34.409999999999997,76.349999999999994,24.63]
[null,null,null,null,null,null,null,null,null,null,36,68.38,22.27,35.68,77.81,24.62]
[null,null,null,null,null,null,null,null,null,null,37,72.52,21.75,35.32,77.099999999999994,24.39]
[null,null,null,null,null,null,null,null,null,null,38,74.099999999999994,22.72,35.409999999999997,79.27,25.58]
[null,null,null,null,null,null,null,null,null,null,39,73,22.88,34.369999999999997,77.62,25.4]
[null,null,null,null,null,null,null,null,null,null,40,76.98,22.98,35.909999999999997,78.319999999999993,26.06]
[null,null,null,null,null,null,null,null,null,null,41,74.22,24.09,36.92,79.47,26.55]
[null,null,null,null,null,null,null,null,null,null,42,75.02,24.53,38.04,82.28,27.03]
[null,null,null,null,null,null,null,null,null,null,43,79.95,24.55,38.54,86.48,27.09]
[null,null,null,null,null,null,null,null,null,null,44,80.41,23.72,37.64,86.75,27]
[null,null,null,null,null,null,null,null,null,null,45,78.290000000000006,23.77,37.409999999999997,87.37,27.37]
[null,null,null,null,null,null,null,null,null,null,46,83.12,26.74,39.14,87.99,27.86]
[null,null,null,null,null,null,null,null,null,null,47,85.85,26.93,38.93,89.96,28.11]
[null,null,null,null,null,null,null,null,null,null,48,91.63,26.84,38.72,89.51,28.45]
[null,null,null,null,null,null,null,null,null,null,49,91.32,26.69,38.6,87.5,27.84]
[null,null,null,null,null,null,null,null,null,null,50,88.26,26.98,38.799999999999997,90,28.11]
[null,null,null,null,null,null,null,null,null,null,51,87.72,27.56,39.17,91.38,28.86]
[null,null,null,null,null,null,null,null,null,null,52,82.2,26.93,39.85,91.34,28.34]
[null,null,null,null,null,null,null,null,null,null,53,84.84,27.33,40.4,93.16,28.55]
[null,null,null,null,null,null,null,null,null,null,54,85.05,28.47,41.39,93.42,28.34]
[null,null,null,null,null,null,null,null,null,null,55,94.62,28.92,42.69,95.26,29.84]
[null,null,null,null,null,null,null,null,null,null,56,88.5,26.7,41.19,92.22,29.74]
[null,null,null,null,null,null,null,null,null,null,57,85.38,26.35,40.89,93.45,29.26]
[null,null,null,null,null,null,null,null,null,null,58,84.75,27.14,41.26,95.1,28.86]
[null,null,null,null,null,null,null,null,null,null,59,83.27,27.71,41.42,94.79,27.71]
[null,null,null,null,null,null,null,null,null,null,60,84.83,27.52,41.95,95.21,27.57]
[null,null,null,null,null,null,null,null,null,null,61,89.07,27.51,40.03,94,27.73]
[null,null,null,null,null,null,null,null,null,null,62,85.41,25.3,37.93,87.43,26.63]
[null,null,null,null,null,null,null,null,null,null,63,87.97,26.08,39.340000000000003,89.72,26.18]
[null,null,null,null,null,null,null,null,null,null,64,89.59,25.99,39.22,89.69,26.22]
[null,null,null,null,null,null,null,null,null,null,65,93.52,26.19,39.729999999999997,91.4,26.88]
[null,null,null,null,null,null,null,null,null,null,66,92.91,25.53,39.450000000000003,90.66,26.74]
[null,null,null,null,null,null,null,null,null,null,67,94.68,26.06,41.08,92.83,27.39]
[null,null,null,null,null,null,null,null,null,null,68,90.24,26.68,40.47,91.3,27.45]
[null,null,null,null,null,null,null,null,null,null,69,90.97,26.99,40.659999999999997,90.97,27.84]
[null,null,null,null,null,null,null,null,null,null,70,99.92,27.03,41.56,97.31,28.9]
[null,null,null,null,null,null,null,null,null,null,71,100.81,27.91,43.03,99.03,29.32]
[null,null,null,null,null,null,null,null,null,null,72,108.74,26.63,44.46,102.33,29.63]
[null,null,null,null,null,null,null,null,null,null,73,110.02,26.21,43.81,104.27,29.67]
[null,null,null,null,null,null,null,null,null,null,74,113.62,25.52,44.83,101.56,29.34]
[null,null,null,null,null,null,null,null,null,null,75,118.4,26.86,45.02,102.87,29.44]
[null,null,null,null,null,null,null,null,null,null,76,124.49,26.48,44.99,99.52,28.92]
[null,null,null,null,null,null,null,null,null,null,77,120.5,27.39,45,101.47,29.35]
[null,null,null,null,null,null,null,null,null,null,78,123,26.92,44.48,100.84,28.38]
[null,null,null,null,null,null,null,null,null,null,79,122.04,27.85,43.93,101.62,28.36]
[null,null,null,null,null,null,null,null,null,null,80,132.30000000000001,28.47,45.26,105.27,28.85]
[null,null,null,null,null,null,null,null,null,null,81,137.72999999999999,29.89,46.51,104.86,28.7]
[null,null,null,null,null,null,null,null,null,null,82,143.75,29.59,47.78,110.85,29.99]
[null,null,null,null,null,null,null,null,null,null,83,143.85,28.97,45.74,111.64,28.29]
[null,null,null,null,null,null,null,null,null,null,84,131.85,29.46,46.67,108.03,27.87]
[null,null,null,null,null,null,null,null,null,null,85,125,31.39,46.48,109.14,27.63]
[null,null,null,null,null,null,null,null,null,null,86,122.06,29.99,46.42,107.46,27.29]
[null,null,null,null,null,null,null,null,null,null,87,135.30000000000001,30.73,47.35,109.72,27.83]
[null,null,null,null,null,null,null,null,null,null,88,138.47999999999999,31.92,48.58,113.07,27.75]
[null,null,null,null,null,null,null,null,null,null,89,131.77000000000001,31.52,48.09,111.96,27.47]
[null,null,null,null,null,null,null,null,null,null,90,138.81,31.56,47.71,111.56,28.05]
[null,null,null,null,null,null,null,null,null,null,91,144.15,32.299999999999997,49.83,113.15,27.67]
[null,null,null,null,null,null,null,null,null,null,92,153.47,33.130000000000003,49.1,114.14,28.45]
[null,null,null,null,null,null,null,null,null,null,93,161.44999999999999,32.65,50.19,112.69,28.82]
[null,null,null,null,null,null,null,null,null,null,94,167.25,32.92,50.83,114.15,29.14]
[null,null,null,null,null,null,null,null,null,null,95,170.42,31.5,50.68,108.79,29.14]
[null,null,null,null,null,null,null,null,null,null,96,184.7,31.9,51.74,110.2,33.83]
[null,null,null,null,null,null,null,null,null,null,97,187.87,32.51,51.67,111.03,35.79]
[null,null,null,null,null,null,null,null,null,null,98,165.37,28.58,47.72,97.48,32.58]
[null,null,null,null,null,null,null,null,null,null,99,166.39,29.94,50.04,101.9,33.03]
[null,null,null,null,null,null,null,null,null,null,100,171.54,28.69,48.48,101.18,33.049999999999997]
[null,null,null,null,null,null,null,null,null,null,101,182.22,28.02,50.45,102.28,32.56]
[null,null,null,null,null,null,null,null,null,null,102,194.3,27.45,51.12,105.85,33.46]
[null,null,null,null,null,null,null,null,null,null,103,190.39,28.65,51.49,102.85,34.22]
[null,null,null,null,null,null,null,null,null,null,104,193.91,28.6,51.38,107.98,34.94]
[null,null,null,null,null,null,null,null,null,null,105,199.83,27.56,50.72,107.05,35]
[null,null,null,null,null,null,null,null,null,null,106,180.05,26.12,46.29,98.34,33.32]
[null,null,null,null,null,null,null,null,null,null,107,172.69,25.87,44.44,94.97,32.86]
[null,null,null,null,null,null,null,null,null,null,108,161.36000000000001,24.3,43.21,100.55,31.99]
[null,null,null,null,null,null,null,null,null,null,109,130.01,24.2,43.2,101.63,31.92]
[null,null,null,null,null,null,null,null,null,null,110,133.75,24.94,43.87,106.07,29.51]
[null,null,null,null,null,null,null,null,null,null,111,125.48,23.54,41.36,100.8,27.68]
[null,null,null,null,null,null,null,null,null,null,112,124.63,23.3,43.33,103.62,27.54]
[null,null,null,null,null,null,null,null,null,null,113,119.46,23.6,46.81,105.49,26.93]
[null,null,null,null,null,null,null,null,null,null,114,125.02,24.39,47.18,111.14,26.46]
[null,null,null,null,null,null,null,null,null,null,115,122.25,24.11,46.72,111.22,27.11]
[null,null,null,null,null,null,null,null,null,null,116,126.61,24.32,45.43,112.48,27.2]
[null,null,null,null,null,null,null,null,null,null,117,133.27000000000001,24.77,46,115.5,28.39]
[null,null,null,null,null,null,null,null,null,null,118,143.01,24.08,45.59,111.83,27.15]
[null,null,null,null,null,null,null,null,null,null,119,153.08000000000001,24.39,45.9,112.99,28.37]
[null,null,null,null,null,null,null,null,null,null,120,147.13999999999999,23.38,44.98,113.23,27.51]
[null,null,null,null,null,null,null,null,null,null,121,161.04,24.51,47.66,121.43,29.18]
[null,null,null,null,null,null,null,null,null,null,122,169.73,25.6,46.94,120.14,29.02]
[null,null,null,null,null,null,null,null,null,null,123,180.94,26.75,47.84,120.24,28.44]
[null,null,null,null,null,null,null,null,null,null,124,183.45,25.49,48.6,121.59,28.59]
[null,null,null,null,null,null,null,null,null,null,125,187.62,26.51,46.78,125.28,29.28]
[null,null,null,null,null,null,null,null,null,null,126,181.17,25.1,44.48,121.73,27.39]
[null,null,null,null,null,null,null,null,null,null,127,188.75,26.72,46.55,126.85,27.65]
[null,null,null,null,null,null,null,null,null,null,128,185.64,26.54,47.12,122.45,26.84]
[null,null,null,null,null,null,null,null,null,null,129,172.37,26.37,47.02,123.64,28.38]
[null,null,null,null,null,null,null,null,null,null,130,175.27,24.64,45.23,120.3,27.56]
[null,null,null,null,null,null,null,null,null,null,131,170.09,23.61,44.18,117.66,26.98]
[null,null,null,null,null,null,null,null,null,null,132,170.12,23.12,43.05,117.16,25.37]
[null,null,null,null,null,null,null,null,null,null,133,172.58,21.82,41.21,119.69,24.65]
[null,null,null,null,null,null,null,null,null,null,134,165.15,21.66,43.03,127.31,25.25]
[null,null,null,null,null,null,null,null,null,null,135,162.12,22.43,43.31,125.97,25.54]
[null,null,null,null,null,null,null,null,null,null,136,156.66,21.99,43.56,124.12,24.84]
[null,null,null,null,null,null,null,null,null,null,137,169.55,24.25,45.4,126.74,27.47]
[null,null,null,null,null,null,null,null,null,null,138,175.74,24.91,45.18,124.33,27.15]
[null,null,null,null,null,null,null,null,null,null,139,176.79,24.71,46.63,122.92,27.29]
[null,null,null,null,null,null,null,null,null,null,140,169.53,24.05,46.49,119.77,26.75]
[null,null,null,null,null,null,null,null,null,null,141,160.18,22.26,44.55,112.49,25.14]
[null,null,null,null,null,null,null,null,null,null,142,148.94,23.46,46.63,117.06,27.08]
[null,null,null,null,null,null,null,null,null,null,143,140.91,24.29,47.91,116.94,24.66]
[null,null,null,null,null,null,null,null,null,null,144,128.24,23.82,47.46,117.5,26.86]
[null,null,null,null,null,null,null,null,null,null,145,97.07,21.25,42.69,101.78,25.8]
[null,null,null,null,null,null,null,null,null,null,146,96.8,17.23,36.729999999999997,86.34,21.08]
[null,null,null,null,null,null,null,null,null,null,147,97.4,17.91,39.42,89.32,23.46]
[null,null,null,null,null,null,null,null,null,null,148,96.38,16.309999999999999,32.200000000000003,80.75,21.53]
[null,null,null,null,null,null,null,null,null,null,149,107.59,17.77,38,91.48,21.89]
[null,null,null,null,null,null,null,null,null,null,150,98.24,17.579999999999998,34.39,85.36,21.08]
[null,null,null,null,null,null,null,null,null,null,151,90.24,16.62,30.24,79.48,19.66]
[null,null,null,null,null,null,null,null,null,null,152,82.58,15.17,34.39,74.09,19.420000000000002]
[null,null,null,null,null,null,null,null,null,null,153,92.67,16.54,35.020000000000003,80.739999999999995,19.96]
[null,null,null,null,null,null,null,null,null,null,154,94,15.94,33.28,79.739999999999995,19.61]
[null,null,null,null,null,null,null,null,null,null,155,98.27,16.989999999999998,35.71,81.33,19.11]
[null,null,null,null,null,null,null,null,null,null,156,90,16.64,35.22,82.64,18.87]
[null,null,null,null,null,null,null,null,null,null,157,85.81,16.27,34.79,80.47,18.88]
[null,null,null,null,null,null,null,null,null,null,158,90.75,16.96,36.619999999999997,86.45,20.059999999999999]
[null,null,null,null,null,null,null,null,null,null,159,90.58,16.7,37.299999999999997,83.8,19.260000000000002]
[null,null,null,null,null,null,null,null,null,null,160,82.33,15.82,34.590000000000003,84.02,19.45]
[null,null,null,null,null,null,null,null,null,null,161,88.36,15.89,35.61,88.54,16.98]
[null,null,null,null,null,null,null,null,null,null,162,90.13,14.97,34.57,90.68,16.88]
[null,null,null,null,null,null,null,null,null,null,163,99.72,17.04,36.659999999999997,95.64,19.399999999999999]
[null,null,null,null,null,null,null,null,null,null,164,99.16,16.100000000000001,35.69,93.35,18.84]
[null,null,null,null,null,null,null,null,null,null,165,91.2,15.08,31.08,88.33,17.89]
[null,null,null,null,null,null,null,null,null,null,166,89.31,14.57,28.88,91.55,16.05]
[null,null,null,null,null,null,null,null,null,null,167,85.3,14.18,26.84,85.36,15.18]
[null,null,null,null,null,null,null,null,null,null,168,95.93,15.51,29.39,89.89,16.54]
[null,null,null,null,null,null,null,null,null,null,169,101.59,15.91,28.79,92.03,16.95]
[null,null,null,null,null,null,null,null,null,null,170,106.85,16.95,33.26,93.66,18.02]
[null,null,null,null,null,null,null,null,null,null,171,115.99,18.16,34.08,101.69,18.63]
[null,null,null,null,null,null,null,null,null,null,172,119.57,17.82,34.36,101.17,19.55]
[null,null,null,null,null,null,null,null,null,null,173,123.42,17.989999999999998,36.22,100.74,19.079999999999998]
[null,null,null,null,null,null,null,null,null,null,174,123.9,18.420000000000002,35.72,99.56,20.78]
[null,null,null,null,null,null,null,null,null,null,175,127.24,19.579999999999998,36.44,104.07,20.11]
[null,null,null,null,null,null,null,null,null,null,176,129.19,18.73,34.61,101.49,19.3]
[null,null,null,null,null,null,null,null,null,null,177,122.42,17.920000000000002,34.94,101.37,20.09]
[null,null,null,null,null,null,null,null,null,null,178,122.5,17.899999999999999,34.07,101.89,19.75]
[null,null,null,null,null,null,null,null,null,null,179,135.81,18.5,34.28,106.28,20.89]
[null,null,null,null,null,null,null,null,null,null,180,144.66999999999999,19.87,37.270000000000003,107.24,22.14]
[null,null,null,null,null,null,null,null,null,null,181,136.97,19.91,37.76,108.21,23.33]
[null,null,null,null,null,null,null,null,null,null,182,139.47999999999999,18.920000000000002,38.35,105.89,24.07]
[null,null,null,null,null,null,null,null,null,null,183,142.44,18.91,37.61,105.68,23.35]
[null,null,null,null,null,null,null,null,null,null,184,140.02000000000001,18.5,37.85,101.73,23.37]
[null,null,null,null,null,null,null,null,null,null,185,138.52000000000001,18.34,37.24,100.83,22.39]
[null,null,null,null,null,null,null,null,null,null,186,151.75,20.51,39.979999999999997,115.42,24.29]
[null,null,null,null,null,null,null,null,null,null,187,159.99,21.88,41.72,117.64,23.45]
[null,null,null,null,null,null,null,null,null,null,188,160.03,21.72,42.19,117.26,23.8]

{"sheet":"New Solver","index":18,"n_rows":2,"n_cols":1,"rows_kept":2,"cut":false,"hidden":true,"merged":[]}
[]
["© S. Christian Albright, 2011, All Rights Reserved"]

{"sheet":"Excel Basics","index":19,"n_rows":2,"n_cols":1,"rows_kept":2,"cut":false,"hidden":true,"merged":[]}
[]
["© S. Christian Albright, 2011, All Rights Reserved"]

{"sheet":"Moving and Selecting","index":20,"n_rows":2,"n_cols":1,"rows_kept":2,"cut":false,"hidden":true,"merged":[]}
[]
["© S. Christian Albright, 2011, All Rights Reserved"]

{"sheet":"Going Home to Cell A1","index":21,"n_rows":2,"n_cols":1,"rows_kept":2,"cut":false,"hidden":true,"merged":[]}
[]
["© S. Christian Albright, 2011, All Rights Reserved"]

{"sheet":"Using End-Arrow Combinations","index":22,"n_rows":33,"n_cols":14,"rows_kept":33,"cut":false,"hidden":true,"merged":[]}
[]
["© S. Christian Albright, 2011, All Rights Reserved"]
[]
[]
[]
[]
[]
[null,null,null,null,null,null,null,null,null,null,8,1,1,1]
[null,null,null,null,null,null,null,null,null,null,5,5,7,6]
[null,null,null,null,null,null,null,null,null,null,10,5,3,10]
[null,null,null,null,null,null,null,null,null,null,10,10,5,9]
[null,null,null,null,null,null,null,null,null,null,5,4,3,4]
[null,null,null,null,null,null,null,null,null,null,7,4,5,1]
[null,null,null,null,null,null,null,null,null,null,2,8,9,10]
[]
[]
[]
[null,null,null,null,null,null,null,null,null,null,8,1,1,1]
[null,null,null,null,null,null,null,null,null,null,5,5,7,6]
[null,null,null,null,null,null,null,null,null,null,10,5,3,10]
[null,null,null,null,null,null,null,null,null,null,10,10,5,9]
[null,null,null,null,null,null,null,null,null,null,5,4,3,4]
[null,null,null,null,null,null,null,null,null,null,7,4,5,1]
[null,null,null,null,null,null,null,null,null,null,2,8,9,10]
[]
[]
[null,null,null,null,null,null,null,null,null,null,8,1,null,1]
[null,null,null,null,null,null,null,null,null,null,5,5,7]
[null,null,null,null,null,null,null,null,null,null,10,5,3,10]
[null,null,null,null,null,null,null,null,null,null,10,10,null,9]
[null,null,null,null,null,null,null,null,null,null,null,4,3,4]
[null,null,null,null,null,null,null,null,null,null,7,4,5,1]
[null,null,null,null,null,null,null,null,null,null,2,null,9,10]

{"sheet":"Splitting the Screen","index":23,"n_rows":265,"n_cols":30,"rows_kept":265,"cut":false,"hidden":true,"merged":[]}
[]
["© S. Christian Albright, 2011, All Rights Reserved"]
[null,null,null,null,null,null,null,null,null,null,61,91,84,8,3,62,11,33,83,70,84,94,30,49,86,7,18,39,54,4]
[null,null,null,null,null,null,null,null,null,null,95,8,14,68,33,23,13,12,3,100,42,23,85,57,84,89,53,25,57,97]
[null,null,null,null,null,null,null,null,null,null,33,93,80,5,60,30,13,34,23,57,56,82,3,62,89,17,6,28,99,26]
[null,null,null,null,null,null,null,null,null,null,49,47,37,41,56,38,46,50,100,40,59,34,22,37,39,24,64,31,5,86]
[null,null,null,null,null,null,null,null,null,null,10,65,46,42,52,90,37,31,56,29,78,88,67,62,23,32,72,65,32,98]
[null,null,null,null,null,null,null,null,null,null,14,69,15,73,11,75,77,36,66,32,97,51,41,90,79,49,16,49,75,78]
[null,null,null,null,null,null,null,null,null,null,21,80,46,93,35,95,35,95,27,25,39,33,93,81,44,4,88,50,19,1]
[null,null,null,null,null,null,null,null,null,null,8,74,24,77,9,92,46,28,100,22,31,97,78,79,17,62,1,69,26,74]
[null,null,null,null,null,null,null,null,null,null,94,33,56,88,51,73,22,39,93,77,39,51,75,63,6,63,31,7,55,24]
[null,null,null,null,null,null,null,null,null,null,84,17,60,87,32,46,100,61,83,71,93,74,34,52,4,26,55,60,27,51]
[null,null,null,null,null,null,null,null,null,null,62,79,43,80,11,9,24,52,22,58,80,41,93,77,33,8,38,89,95,20]
[null,null,null,null,null,null,null,null,null,null,16,29,76,6,90,32,40,62,94,34,34,91,57,9,49,93,62,45,7,62]
[null,null,null,null,null,null,null,null,null,null,93,54,2,11,82,33,18,31,42,58,13,20,20,58,23,16,69,51,15,70]
[null,null,null,null,null,null,null,null,null,null,6,39,52,66,33,2,23,49,87,46,75,58,95,64,9,8,100,60,65,68]
[null,null,null,null,null,null,null,null,null,null,28,91,57,78,29,82,24,88,45,3,30,36,90,61,40,12,19,89,39,34]
[null,null,null,null,null,null,null,null,null,null,66,28,57,51,87,44,99,18,32,34,71,54,65,39,72,94,59,47,24,86]
[null,null,null,null,null,null,null,null,null,null,56,100,36,48,46,60,71,33,30,26,38,78,44,4,59,90,43,100,9,70]
[null,null,null,null,null,null,null,null,null,null,3,34,87,45,45,76,85,86,28,100,70,72,45,7,49,10,21,27,54,43]
[null,null,null,null,null,null,null,null,null,null,33,13,50,83,53,20,83,13,7,27,92,43,19,59,8,91,55,42,23,11]
[null,null,null,null,null,null,null,null,null,null,34,55,3,9,67,99,25,33,93,18,92,16,9,95,61,27,11,5,36,4]
[null,null,null,null,null,null,null,null,null,null,80,45,89,83,23,31,12,14,27,75,89,99,9,46,3,51,38,24,33,63]
[null,null,null,null,null,null,null,null,null,null,53,96,54,41,100,1,28,21,29,68,76,44,97,68,7,19,6,5,58,66]
[null,null,null,null,null,null,null,null,null,null,77,57,38,52,44,94,46,72,50,83,56,12,29,60,65,93,60,21,8,47]
[null,null,null,null,null,null,null,null,null,null,64,86,26,30,35,69,52,28,48,27,67,62,52,39,46,20,82,66,58,1]
[null,null,null,null,null,null,null,null,null,null,39,28,43,41,27,86,76,44,12,47,79,46,32,58,36,71,83,52,40,39]
[null,null,null,null,null,null,null,null,null,null,75,97,99,71,66,63,42,63,15,91,40,1,68,95,2,61,97,54,39,61]
[null,null,null,null,null,null,null,null,null,null,58,14,66,95,35,18,41,32,29,35,46,96,80,77,31,34,12,49,70,96]
[null,null,null,null,null,null,null,null,null,null,56,58,57,81,48,63,27,54,97,81,34,12,85,9,66,69,72,40,83,90]
[null,null,null,null,null,null,null,null,null,null,5,99,11,59,7,8,84,56,76,54,23,33,77,7,2,2,19,80,23,27]
[null,null,null,null,null,null,null,null,null,null,80,67,47,99,77,50,42,90,92,86,59,59,94,24,17,90,11,46,62,32]
[null,null,null,null,null,null,null,null,null,null,6,22,30,3,40,19,67,32,57,49,8,63,64,10,34,41,80,87,45,58]
[null,null,null,null,null,null,null,null,null,null,52,100,67,91,27,59,11,72,12,79,9,27,31,20,25,54,5,13,91,100]
[null,null,null,null,null,null,null,null,null,null,83,32,19,90,44,22,100,11,18,68,91,99,41,92,91,19,30,18,86,8]
[null,null,null,null,null,null,null,null,null,null,8,51,93,30,28,55,97,60,46,59,77,45,7,12,6,57,47,28,83,98]
[null,null,null,null,null,null,null,null,null,null,55,21,30,49,5,26,1,16,86,85,86,100,90,83,1,63,61,64,84,67]
[null,null,null,null,null,null,null,null,null,null,51,88,93,61,96,88,59,68,44,95,13,18,81,23,31,28,35,80,70,59]
[null,null,null,null,null,null,null,null,null,null,39,97,37,14,25,17,44,69,92,16,86,68,83,22,89,64,80,60,12,26]
[null,null,null,null,null,null,null,null,null,null,50,80,41,96,76,49,43,27,73,88,11,79,6,16,40,73,91,36,4,86]
[null,null,null,null,null,null,null,null,null,null,42,73,4,25,21,30,74,44,68,36,69,98,35,16,18,54,88,24,57,41]
[null,null,null,null,null,null,null,null,null,null,48,60,26,34,87,79,62,96,39,45,13,91,85,3,47,50,2,16,61,94]
[null,null,null,null,null,null,null,null,null,null,54,12,31,66,87,68,48,34,46,29,50,88,14,43,47,47,90,15,46,73]
[null,null,null,null,null,null,null,null,null,null,15,63,54,42,15,32,73,11,91,96,14,29,64,78,57,91,27,89,65,24]
[null,null,null,null,null,null,null,null,null,null,28,41,18,72,18,36,54,96,3,50,58,89,69,40,42,5,10,90,97,7]
[null,null,null,null,null,null,null,null,null,null,28,15,100,28,4,9,94,43,56,98,80,86,71,40,15,90,70,18,61,100]
[null,null,null,null,null,null,null,null,null,null,99,3,52,27,39,60,4,18,63,56,22,66,36,51,18,29,14,33,53,55]
[null,null,null,null,null,null,null,null,null,null,24,32,55,62,100,30,82,17,79,11,41,86,87,71,67,93,38,54,44,71]
[null,null,null,null,null,null,null,null,null,null,19,28,46,73,83,78,96,39,32,42,45,66,2,7,87,67,4,45,69,90]
[null,null,null,null,null,null,null,null,null,null,21,31,14,78,87,14,49,85,75,84,43,63,48,88,61,71,20,71,58,32]
[null,null,null,null,null,null,null,null,null,null,30,76,53,91,46,94,2,64,34,41,41,26,17,44,46,100,63,29,24,7]
[null,null,null,null,null,null,null,null,null,null,93,98,84,86,97,9,98,94,44,61,47,37,24,28,75,84,24,96,11,4]
[null,null,null,null,null,null,null,null,null,null,32,54,80,51,59,62,6,8,29,4,30,63,63,77,3,11,68,60,60,52]
[null,null,null,null,null,null,null,null,null,null,35,32,25,34,37,83,51,54,45,52,57,4,41,22,37,31,48,24,53,36]
[null,null,null,null,null,null,null,null,null,null,82,86,46,28,54,56,26,57,3,67,91,83,73,74,6,54,46,32,19,80]
[null,null,null,null,null,null,null,null,null,null,23,94,71,95,56,37,97,84,7,68,8,51,24,19,55,32,8,2,67,19]
[null,null,null,null,null,null,null,null,null,null,59,62,88,21,2,57,19,66,65,32,89,11,58,49,47,38,28,49,39,31]
[null,null,null,null,null,null,null,null,null,null,17,19,95,63,4,99,93,50,100,2,28,34,92,64,34,58,32,14,27,14]
[null,null,null,null,null,null,null,null,null,null,4,62,36,55,37,49,11,62,7,70,31,11,67,64,54,37,90,40,81,97]
[null,null,null,null,null,null,null,null,null,null,67,58,54,91,39,76,25,22,55,23,23,66,74,49,57,66,3,23,17,76]
[null,null,null,null,null,null,null,null,null,null,17,41,21,18,24,6,65,10,83,45,42,84,57,73,25,58,52,26,91,48]
[null,null,null,null,null,null,null,null,null,null,71,8,45,90,1,34,11,60,21,93,63,88,93,15,18,40,35,16,98,26]
[null,null,null,null,null,null,null,null,null,null,48,41,36,7,69,54,5,9,46,46,60,90,18,3,10,84,79,47,67,41]
[null,null,null,null,null,null,null,null,null,null,29,97,30,76,59,85,39,96,30,40,26,36,82,50,80,68,96,82,17,97]
[null,null,null,null,null,null,null,null,null,null,58,15,37,56,25,71,3,78,83,65,98,46,78,59,25,9,28,74,1,62]
[null,null,null,null,null,null,null,null,null,null,64,66,57,26,39,63,17,46,76,99,14,37,30,96,5,76,49,65,52,50]
[null,null,null,null,null,null,null,null,null,null,14,48,78,6,72,26,1,84,26,48,29,43,21,16,65,24,16,82,99,56]
[null,null,null,null,null,null,null,null,null,null,67,56,76,7,97,89,44,99,19,73,67,47,34,84,85,42,95,78,91,97]
[null,null,null,null,null,null,null,null,null,null,90,97,41,63,79,20,90,95,87,92,71,50,68,16,50,17,53,37,33,94]
[null,null,null,null,null,null,null,null,null,null,83,17,24,75,31,11,98,72,91,5,65,100,75,83,59,92,40,73,19,70]
[null,null,null,null,null,null,null,null,null,null,21,32,27,46,59,22,82,12,65,48,24,83,93,88,84,64,85,41,63,49]
[null,null,null,null,null,null,null,null,null,null,14,27,3,62,48,39,43,8,81,19,36,76,57,69,70,52,39,10,16,39]
[null,null,null,null,null,null,null,null,null,null,38,87,57,5,39,100,56,61,5,62,84,84,11,3,80,49,5,24,37,67]
[null,null,null,null,null,null,null,null,null,null,64,15,57,23,94,63,96,6,54,27,1,58,23,46,28,58,84,17,80,4]
[null,null,null,null,null,null,null,null,null,null,10,24,39,52,80,100,28,88,21,15,62,70,91,48,36,56,15,88,39,93]
[null,null,null,null,null,null,null,null,null,null,53,10,66,31,7,99,48,21,85,20,63,37,20,86,24,81,78,89,69,6]
[null,null,null,null,null,null,null,null,null,null,79,70,94,39,66,37,7,78,57,92,31,47,61,93,13,91,62,70,41,3]
[null,null,null,null,null,null,null,null,null,null,90,19,84,3,4,48,34,91,41,11,41,40,59,2,100,33,74,81,81,44]
[null,null,null,null,null,null,null,null,null,null,60,59,36,83,90,42,45,17,64,83,9,66,92,37,83,58,31,4,66,40]
[null,null,null,null,null,null,null,null,null,null,67,9,71,3,84,2,95,44,67,18,14,12,31,77,11,53,7,56,47,7]
[null,null,null,null,null,null,null,null,null,null,22,53,52,45,50,20,39,23,68,48,12,5,79,51,73,41,45,37,15,44]
[null,null,null,null,null,null,null,null,null,null,80,17,94,59,82,93,50,47,67,46,19,28,23,33,4,62,29,27,44,15]
[null,null,null,null,null,null,null,null,null,null,86,16,44,67,60,14,38,99,57,37,53,48,92,63,14,15,52,50,92,43]
[null,null,null,null,null,null,null,null,null,null,41,46,51,42,50,52,38,16,49,60,66,4,10,61,75,62,89,19,47,48]
[null,null,null,null,null,null,null,null,null,null,8,66,13,63,76,23,58,1,70,47,15,11,25,50,14,88,49,16,14,94]
[null,null,null,null,null,null,null,null,null,null,58,52,88,11,35,21,57,6,14,82,3,30,59,11,72,82,26,50,63,41]
[null,null,null,null,null,null,null,null,null,null,9,10,80,57,97,49,89,1,5,83,24,65,32,94,90,63,6,76,15,56]
[null,null,null,null,null,null,null,null,null,null,21,23,18,11,83,7,50,96,3,33,46,95,22,99,54,46,36,63,38,7]
[null,null,null,null,null,null,null,null,null,null,64,79,96,60,21,49,80,80,80,52,4,6,2,96,16,42,51,15,38,59]
[null,null,null,null,null,null,null,null,null,null,59,93,64,38,26,71,1,66,39,49,58,11,42,23,50,40,57,84,62,14]
[null,null,null,null,null,null,null,null,null,null,18,54,3,25,10,80,46,49,26,52,92,36,2,14,22,82,9,61,72,77]
[null,null,null,null,null,null,null,null,null,null,17,49,70,22,71,98,81,44,23,94,46,84,7,72,88,46,64,51,68,71]
[null,null,null,null,null,null,null,null,null,null,22,24,96,90,79,26,13,63,60,59,38,35,22,25,50,83,60,85,94,24]
[null,null,null,null,null,null,null,null,null,null,72,62,35,54,98,13,94,56,28,85,44,97,88,39,57,66,70,97,30,77]
[null,null,null,null,null,null,null,null,null,null,56,81,96,90,42,44,88,33,37,61,67,11,88,12,51,21,40,12,10,37]
[null,null,null,null,null,null,null,null,null,null,10,95,47,39,40,74,48,72,44,83,30,93,97,12,78,55,78,89,6,20]
[null,null,null,null,null,null,null,null,null,null,72,77,68,43,75,89,23,27,53,55,59,36,73,89,67,83,56,62,87,85]
[null,null,null,null,null,null,null,null,null,null,72,46,33,91,76,68,54,82,74,73,26,66,95,46,21,56,46,19,80,14]
[null,null,null,null,null,null,null,null,null,null,94,62,70,62,1,71,46,49,90,97,12,61,50,100,58,92,31,3,37,63]
[null,null,null,null,null,null,null,null,null,null,44,16,63,96,93,42,98,36,32,31,92,30,61,73,2,83,83,55,41,20]
[null,null,null,null,null,null,null,null,null,null,4,78,4,57,89,63,14,63,11,40,87,10,30,39,51,55,34,74,72,58]
[null,null,null,null,null,null,null,null,null,null,44,53,42,63,53,73,15,21,38,47,62,23,62,19,5,96,95,80,4,56]
[null,null,null,null,null,null,null,null,null,null,80,8,23,12,57,71,55,48,77,6,80,63,34,38,75,73,65,62,50,41]
[null,null,null,null,null,null,null,null,null,null,41,77,13,57,84,1,92,13,19,73,93,13,72,10,45,43,66,64,68,9]
[null,null,null,null,null,null,null,null,null,null,21,28,20,14,34,77,12,47,30,32,43,59,89,24,56,64,44,26,47,31]
[null,null,null,null,null,null,null,null,null,null,35,79,17,53,48,31,52,29,16,42,32,29,99,56,63,14,30,28,94,59]
[null,null,null,null,null,null,null,null,null,null,44,19,27,44,81,54,47,8,24,67,7,84,28,77,28,76,27,96,84,6]
[null,null,null,null,null,null,null,null,null,null,38,82,78,93,9,49,1,20,76,63,63,77,16,95,82,15,8,4,41,50]
[null,null,null,null,null,null,null,null,null,null,45,91,77,37,45,46,5,71,47,15,18,46,36,8,63,8,15,28,32,30]
[null,null,null,null,null,null,null,null,null,null,47,24,39,50,25,65,52,71,14,24,94,59,63,65,31,93,16,71,88,3]
[null,null,null,null,null,null,null,null,null,null,64,36,57,8,7,85,97,6,16,11,84,28,95,38,72,50,5,84,15,2]
[null,null,null,null,null,null,null,null,null,null,79,62,44,21,75,43,58,44,84,64,99,80,70,84,97,90,3,93,96,47]
[null,null,null,null,null,null,null,null,null,null,25,11,56,79,80,68,68,25,21,63,85,79,37,69,82,95,100,71,26,58]
[null,null,null,null,null,null,null,null,null,null,47,1,96,34,33,30,92,70,17,3,22,59,5,36,3,39,52,1,45,7]
[null,null,null,null,null,null,null,null,null,null,2,65,45,17,6,16,19,61,9,23,37,48,20,20,40,75,65,42,17,70]
[null,null,null,null,null,null,null,null,null,null,73,21,96,87,87,33,95,99,19,92,88,4,57,79,9,84,2,41,9,13]
[null,null,null,null,null,null,null,null,null,null,97,29,26,8,25,35,27,30,69,28,63,84,25,27,3,4,44,79,55,61]
[null,null,null,null,null,null,null,null,null,null,62,31,48,1,100,11,71,77,87,38,88,82,92,100,100,32,59,7,1,72]
[null,null,null,null,null,null,null,null,null,null,22,42,23,87,55,73,89,22,73,27,67,74,73,32,35,100,22,60,37,62]
[null,null,null,null,null,null,null,null,null,null,48,12,99,78,21,25,58,88,4,39,15,5,10,51,64,23,93,67,3,84]
[null,null,null,null,null,null,null,null,null,null,63,62,60,7,95,7,9,20,37,63,33,60,25,59,91,15,76,44,28,70]
[null,null,null,null,null,null,null,null,null,null,59,83,41,52,33,77,59,28,78,49,16,17,13,92,8,77,38,83,41,91]
[null,null,null,null,null,null,null,null,null,null,23,53,55,94,79,73,53,45,93,69,6,55,98,4,99,58,5,92,23,45]
[null,null,null,null,null,null,null,null,null,null,73,85,62,26,65,82,48,55,5,82,50,68,83,6,32,7,84,77,76,56]
[null,null,null,null,null,null,null,null,null,null,87,76,44,15,5,76,8,73,54,18,3,40,51,87,91,87,50,92,62,81]
[null,null,null,null,null,null,null,null,null,null,25,36,61,5,95,95,55,44,81,51,39,13,30,54,49,1,31,100,16,40]
[null,null,null,null,null,null,null,null,null,null,87,49,6,24,96,32,90,43,43,36,37,56,47,79,51,14,2,55,93,38]
[null,null,null,null,null,null,null,null,null,null,1,65,3,98,88,93,52,26,76,97,51,42,54,3,84,69,53,19,95,95]
[null,null,null,null,null,null,null,null,null,null,25,7,5,62,60,41,36,43,94,66,60,24,100,23,72,92,42,63,99,96]
[null,null,null,null,null,null,null,null,null,null,3,15,36,21,81,37,48,67,87,79,56,50,52,6,49,61,93,86,70,67]
[null,null,null,null,null,null,null,null,null,null,21,88,92,53,26,82,74,30,71,37,57,38,79,52,81,29,93,50,46,53]
[null,null,null,null,null,null,null,null,null,null,46,8,27,24,80,66,74,33,76,70,91,60,83,26,92,63,37,72,38,66]
[null,null,null,null,null,null,null,null,null,null,41,32,70,57,7,68,37,55,84,29,57,5,82,48,26,40,20,7,84,34]
[null,null,null,null,null,null,null,null,null,null,74,5,50,73,14,35,70,87,65,56,85,51,54,75,88,27,35,13,20,28]
[null,null,null,null,null,null,null,null,null,null,8,52,77,79,18,82,17,29,56,56,56,43,30,82,39,9,11,36,50,33]
[null,null,null,null,null,null,null,null,null,null,64,28,1,99,41,63,89,69,97,26,50,30,9,44,38,9,19,25,64,74]
[null,null,null,null,null,null,null,null,null,null,60,75,59,23,50,98,8,91,84,25,59,21,50,94,4,32,36,13,71,60]
[null,null,null,null,null,null,null,null,null,null,24,32,42,22,45,40,78,92,9,76,58,32,44,50,57,98,55,18,18,88]
[null,null,null,null,null,null,null,null,null,null,66,100,97,47,89,46,89,73,33,29,43,46,41,83,59,75,66,65,88,32]
[null,null,null,null,null,null,null,null,null,null,5,21,61,56,43,59,39,19,41,82,2,73,84,3,11,36,69,53,10,33]
[null,null,null,null,null,null,null,null,null,null,51,11,13,49,60,16,15,94,67,91,32,65,21,89,53,90,23,79,75,37]
[null,null,null,null,null,null,null,null,null,null,80,38,15,55,84,4,68,40,85,2,68,46,3,49,96,43,66,16,68,85]
[null,null,null,null,null,null,null,null,null,null,69,59,95,21,59,78,9,59,36,68,21,98,28,28,43,75,15,15,46,97]
[null,null,null,null,null,null,null,null,null,null,44,43,36,99,84,57,72,11,93,84,75,56,15,80,83,32,36,100,78,96]
[null,null,null,null,null,null,null,null,null,null,36,96,63,2,69,5,56,70,66,65,75,10,97,100,60,1,52,42,8,90]
[null,null,null,null,null,null,null,null,null,null,90,35,33,45,100,95,30,23,92,15,64,41,25,55,7,30,61,71,5,68]
[null,null,null,null,null,null,null,null,null,null,29,11,97,85,100,17,81,87,5,71,57,87,40,30,39,55,79,98,85,23]
[null,null,null,null,null,null,null,null,null,null,87,99,83,90,96,54,33,56,59,32,34,56,17,12,94,57,99,20,35,92]
[null,null,null,null,null,null,null,null,null,null,80,41,1,99,56,87,85,74,85,29,6,73,40,42,65,73,22,7,7,99]
[null,null,null,null,null,null,null,null,null,null,67,86,89,90,17,97,64,6,43,23,3,74,60,9,26,83,36,58,66,35]
[null,null,null,null,null,null,null,null,null,null,78,98,73,2,43,55,81,46,6,58,18,96,91,86,93,2,100,15,54,54]
[null,null,null,null,null,null,null,null,null,null,59,7,61,27,45,25,32,47,66,95,22,31,61,93,26,3,67,9,3,38]
[null,null,null,null,null,null,null,null,null,null,50,65,6,73,62,5,96,69,65,21,72,10,27,58,29,28,35,27,68,2]
[null,null,null,null,null,null,null,null,null,null,91,58,44,11,100,82,50,28,26,93,81,15,33,49,62,75,50,5,45,20]
[null,null,null,null,null,null,null,null,null,null,36,92,28,37,38,4,30,99,17,88,37,90,1,77,59,61,73,66,32,39]
[null,null,null,null,null,null,null,null,null,null,93,31,27,55,85,54,65,94,90,56,4,3,84,8,56,20,9,91,72,19]
[null,null,null,null,null,null,null,null,null,null,31,42,27,37,83,42,5,43,24,68,57,97,67,13,41,20,38,39,11,46]
[null,null,null,null,null,null,null,null,null,null,32,76,74,40,8,61,46,73,31,92,79,87,18,8,70,43,40,74,98,73]
[null,null,null,null,null,null,null,null,null,null,36,13,30,44,71,60,83,68,76,20,8,48,25,58,33,53,72,18,12,41]
[null,null,null,null,null,null,null,null,null,null,10,72,34,68,46,1,35,84,32,34,98,27,52,51,8,16,61,6,68,43]
[null,null,null,null,null,null,null,null,null,null,51,41,64,66,64,25,66,21,38,45,31,34,17,4,83,1,60,22,74,33]
[null,null,null,null,null,null,null,null,null,null,54,51,44,70,39,66,38,21,74,64,99,18,98,18,51,87,36,70,19,46]
[null,null,null,null,null,null,null,null,null,null,18,22,68,19,62,49,31,98,76,84,89,100,96,9,25,81,17,67,34,71]
[null,null,null,null,null,null,null,null,null,null,20,36,76,29,14,36,22,14,68,87,89,5,42,37,65,87,48,98,10,82]
[null,null,null,null,null,null,null,null,null,null,84,81,83,45,67,76,65,53,76,100,39,47,28,59,9,22,39,98,65,19]
[null,null,null,null,null,null,null,null,null,null,2,32,35,35,77,100,51,81,67,46,93,8,83,32,57,16,16,71,27,37]
[null,null,null,null,null,null,null,null,null,null,80,80,49,44,55,44,25,53,58,86,24,87,48,65,79,38,7,90,6,23]
[null,null,null,null,null,null,null,null,null,null,6,73,48,54,20,12,73,27,82,47,50,73,76,6,98,65,19,51,78,92]
[null,null,null,null,null,null,null,null,null,null,55,88,39,92,91,88,70,97,86,53,95,13,61,27,56,89,25,88,73,49]
[null,null,null,null,null,null,null,null,null,null,6,14,68,28,42,87,68,86,16,68,5,12,97,43,44,78,72,71,82,28]
[null,null,null,null,null,null,null,null,null,null,6,85,2,88,9,46,3,68,30,79,3,77,14,12,10,13,29,6,30,35]
[null,null,null,null,null,null,null,null,null,null,48,82,90,87,29,56,68,54,49,100,34,93,31,39,85,87,70,67,32,69]
[null,null,null,null,null,null,null,null,null,null,49,16,70,33,38,89,89,38,22,56,2,22,71,10,74,95,96,34,99,53]
[null,null,null,null,null,null,null,null,null,null,89,65,76,38,66,65,90,52,67,74,77,95,88,25,10,67,89,69,42,2]
[null,null,null,null,null,null,null,null,null,null,82,96,81,70,57,16,56,37,50,6,73,11,82,8,78,66,30,97,83,68]
[null,null,null,null,null,null,null,null,null,null,29,39,13,40,71,72,68,55,21,65,45,30,73,36,83,50,28,39,57,91]
[null,null,null,null,null,null,null,null,null,null,11,49,96,18,36,30,71,10,51,32,27,8,26,2,45,59,81,53,1,75]
[null,null,null,null,null,null,null,null,null,null,43,21,73,40,37,28,24,4,14,56,65,78,7,74,71,47,1,30,27,76]
[null,null,null,null,null,null,null,null,null,null,17,77,29,50,77,10,53,30,55,77,79,48,25,70,87,64,15,15,72,32]
[null,null,null,null,null,null,null,null,null,null,100,87,58,88,19,44,54,82,62,18,84,10,61,51,76,97,63,47,53,29]
[null,null,null,null,null,null,null,null,null,null,65,56,63,89,78,60,49,39,34,92,15,100,19,90,16,86,11,76,81,39]
[null,null,null,null,null,null,null,null,null,null,26,50,7,90,32,25,80,80,9,77,47,84,5,91,13,8,39,81,4,61]
[null,null,null,null,null,null,null,null,null,null,85,4,11,95,8,72,16,30,36,6,38,31,51,87,63,27,45,49,50,65]
[null,null,null,null,null,null,null,null,null,null,27,34,52,95,58,72,88,48,92,13,86,93,91,28,46,23,88,85,35,40]
[null,null,null,null,null,null,null,null,null,null,74,50,36,79,4,91,62,30,79,44,2,18,39,47,58,8,15,90,15,32]
[null,null,null,null,null,null,null,null,null,null,90,4,53,74,9,37,100,77,22,19,16,51,66,27,68,38,35,85,43,24]
[null,null,null,null,null,null,null,null,null,null,81,67,18,3,36,41,24,51,89,8,90,100,27,59,4,52,3,43,57,17]
[null,null,null,null,null,null,null,null,null,null,87,10,62,20,81,35,2,71,26,27,50,100,5,12,62,10,44,48,71,75]
[null,null,null,null,null,null,null,null,null,null,85,30,97,86,13,26,91,11,80,60,98,27,76,20,63,11,98,3,100,16]
[null,null,null,null,null,null,null,null,null,null,63,71,10,68,99,9,92,4,75,99,24,10,49,30,29,55,16,28,9,72]
[null,null,null,null,null,null,null,null,null,null,8,18,40,81,20,19,21,59,12,4,72,22,93,40,35,2,82,85,97,87]
[null,null,null,null,null,null,null,null,null,null,14,23,86,50,65,69,52,75,28,71,32,60,39,88,93,51,32,82,69,51]
[null,null,null,null,null,null,null,null,null,null,70,68,65,22,38,67,79,97,13,88,93,51,51,17,89,70,63,68,73,42]
[null,null,null,null,null,null,null,null,null,null,35,20,39,36,60,83,62,69,11,42,51,34,36,50,48,7,7,34,32,16]
[null,null,null,null,null,null,null,null,null,null,24,42,69,77,10,87,33,4,55,91,52,15,62,12,7,66,38,41,87,41]
[null,null,null,null,null,null,null,null,null,null,66,34,71,48,48,54,45,82,35,14,54,11,40,58,23,97,30,5,84,59]
[null,null,null,null,null,null,null,null,null,null,75,35,7,53,28,9,82,61,82,66,43,90,67,21,39,41,13,30,75,20]
[null,null,null,null,null,null,null,null,null,null,47,61,39,77,63,54,89,92,56,91,73,69,83,17,19,16,84,43,31,27]
[null,null,null,null,null,null,null,null,null,null,75,83,38,56,55,5,96,90,75,65,80,18,42,64,31,92,65,83,1,33]
[null,null,null,null,null,null,null,null,null,null,62,32,49,76,59,48,40,29,33,60,20,82,56,87,70,7,74,16,95,60]
[null,null,null,null,null,null,null,null,null,null,90,2,31,1,86,96,41,11,89,62,22,57,67,77,13,42,76,76,89,48]
[null,null,null,null,null,null,null,null,null,null,9,4,60,71,6,49,33,19,31,56,25,22,19,1,2,64,87,74,46,91]
[null,null,null,null,null,null,null,null,null,null,58,47,83,28,10,39,15,71,84,84,65,78,72,3,68,36,88,8,32,71]
[null,null,null,null,null,null,null,null,null,null,87,29,30,76,72,11,91,2,71,60,9,16,94,72,12,82,42,65,93,9]
[null,null,null,null,null,null,null,null,null,null,5,37,65,32,8,44,42,90,84,68,76,14,79,7,33,35,21,24,85,16]
[null,null,null,null,null,null,null,null,null,null,71,55,13,82,26,58,53,81,39,6,99,49,77,14,10,50,64,21,88,100]
[null,null,null,null,null,null,null,null,null,null,40,27,2,33,73,3,87,10,58,82,100,91,83,14,45,6,43,87,6,7]
[null,null,null,null,null,null,null,null,null,null,77,90,32,82,40,62,49,32,60,4,72,55,97,83,7,32,75,92,65,48]
[null,null,null,null,null,null,null,null,null,null,62,31,22,48,69,66,28,54,3,58,56,21,100,94,12,94,24,6,14,83]
[null,null,null,null,null,null,null,null,null,null,75,7,75,57,36,24,65,72,21,69,79,23,10,34,14,47,66,30,97,91]
[null,null,null,null,null,null,null,null,null,null,68,54,34,43,18,89,25,1,94,64,86,86,25,92,19,34,22,52,51,8]
[null,null,null,null,null,null,null,null,null,null,68,17,81,73,51,24,99,49,99,95,22,32,5,74,4,19,3,26,66,68]
[null,null,null,null,null,null,null,null,null,null,60,53,39,63,39,49,52,66,37,69,88,3,86,44,78,43,88,5,38,94]
[null,null,null,null,null,null,null,null,null,null,38,44,18,1,14,6,88,7,8,87,51,54,35,92,35,1,72,78,79,69]
[null,null,null,null,null,null,null,null,null,null,13,2,66,24,33,64,9,73,50,100,33,9,90,16,28,65,6,91,29,41]
[null,null,null,null,null,null,null,null,null,null,65,78,33,93,61,75,81,47,24,10,8,54,21,94,85,70,86,71,1,55]
[null,null,null,null,null,null,null,null,null,null,11,74,100,95,33,87,58,14,10,41,85,63,5,14,72,9,39,98,56,94]
[null,null,null,null,null,null,null,null,null,null,100,79,1,30,38,38,2,52,10,76,34,28,82,89,37,68,86,9,97,62]
[null,null,null,null,null,null,null,null,null,null,93,77,58,4,76,71,79,10,7,40,73,26,6,95,19,27,41,83,90,16]
[null,null,null,null,null,null,null,null,null,null,99,39,52,60,13,65,16,90,12,57,57,35,80,19,43,13,70,22,74,9]
[null,null,null,null,null,null,null,null,null,null,47,15,65,34,2,49,3,68,46,42,32,76,41,47,40,73,65,63,98,15]
[null,null,null,null,null,null,null,null,null,null,62,100,64,94,41,79,3,11,9,23,40,63,60,39,27,18,16,6,19,28]
[null,null,null,null,null,null,null,null,null,null,36,37,100,34,96,54,46,34,58,61,7,51,55,90,20,49,94,56,53,17]
[null,null,null,null,null,null,null,null,null,null,50,30,8,81,33,75,76,68,2,39,38,25,64,36,1,18,78,31,90,51]
[null,null,null,null,null,null,null,null,null,null,71,63,57,70,12,93,83,29,96,51,85,77,22,5,57,15,39,90,19,14]
[null,null,null,null,null,null,null,null,null,null,33,54,72,49,3,68,38,97,81,6,37,35,11,65,31,14,52,19,42,12]
[null,null,null,null,null,null,null,null,null,null,68,32,91,5,34,66,31,25,69,89,35,56,39,15,59,88,100,9,38,72]
[null,null,null,null,null,null,null,null,null,null,80,89,86,36,50,78,81,78,8,4,51,20,88,51,91,14,81,34,27,21]
[null,null,null,null,null,null,null,null,null,null,82,22,53,19,14,39,86,50,13,62,91,8,63,47,72,79,86,48,37,83]
[null,null,null,null,null,null,null,null,null,null,70,43,74,72,45,41,13,42,87,34,42,99,84,81,23,29,16,2,96,28]
[null,null,null,null,null,null,null,null,null,null,95,33,7,76,39,88,55,64,16,37,35,31,4,32,63,94,50,10,95,74]
[null,null,null,null,null,null,null,null,null,null,24,70,27,78,78,36,85,79,50,15,27,71,66,93,74,40,99,13,81,49]
[null,null,null,null,null,null,null,null,null,null,1,42,24,11,41,78,58,7,51,27,59,88,8,78,17,63,6,20,69,68]
[null,null,null,null,null,null,null,null,null,null,91,26,84,65,71,15,32,95,79,31,75,46,39,87,34,73,95,48,44,54]
[null,null,null,null,null,null,null,null,null,null,100,79,78,99,41,89,12,77,90,48,41,19,5,95,71,17,1,90,40,22]
[null,null,null,null,null,null,null,null,null,null,58,12,65,57,60,52,37,25,71,26,11,31,70,14,88,34,26,41,73,23]
[null,null,null,null,null,null,null,null,null,null,45,98,2,43,82,3,26,52,86,28,100,2,10,75,78,3,73,5,25,37]
[null,null,null,null,null,null,null,null,null,null,21,50,29,23,18,59,79,48,63,97,17,61,39,85,83,56,27,95,58,16]
[null,null,null,null,null,null,null,null,null,null,53,25,43,25,98,79,6,30,89,48,13,79,80,1,15,35,94,85,44,59]
[null,null,null,null,null,null,null,null,null,null,5,51,1,1,36,34,51,17,93,73,53,95,53,51,21,88,93,34,27,24]
[null,null,null,null,null,null,null,null,null,null,35,83,10,62,46,46,82,47,97,46,92,22,63,28,60,26,91,1,48,62]
[null,null,null,null,null,null,null,null,null,null,53,25,29,1,97,7,45,16,62,83,26,37,36,79,93,56,75,94,87,58]
[null,null,null,null,null,null,null,null,null,null,51,24,71,78,75,40,97,97,69,39,89,5,79,8,35,38,75,6,94,63]
[null,null,null,null,null,null,null,null,null,null,35,4,69,90,27,70,16,15,56,96,48,1,24,33,27,52,25,19,13,79]
[null,null,null,null,null,null,null,null,null,null,22,80,64,22,36,66,3,14,81,69,35,5,9,64,2,45,80,64,47,74]
[null,null,null,null,null,null,null,null,null,null,4,54,13,100,97,23,71,46,63,52,11,60,47,59,76,77,10,81,3,22]
[null,null,null,null,null,null,null,null,null,null,8,88,74,93,53,84,2,55,10,2,22,35,39,48,4,93,9,84,74,63]
[null,null,null,null,null,null,null,null,null,null,75,28,66,58,48,87,30,12,83,27,91,53,26,36,10,46,67,80,84,42]
[null,null,null,null,null,null,null,null,null,null,5,35,40,86,85,56,79,20,7,86,34,2,63,86,81,17,8,33,79,31]
[null,null,null,null,null,null,null,null,null,null,13,5,86,97,42,43,21,71,86,70,58,29,73,6,5,10,92,65,39,20]
[null,null,null,null,null,null,null,null,null,null,31,64,50,32,28,86,46,98,2,36,54,95,100,81,98,51,36,17,77,22]
[null,null,null,null,null,null,null,null,null,null,98,67,43,64,41,72,95,83,92,44,61,62,3,12,77,12,62,23,90,83]
[null,null,null,null,null,null,null,null,null,null,6,64,79,7,7,94,92,40,25,88,51,22,59,50,50,36,14,35,52,34]
[null,null,null,null,null,null,null,null,null,null,97,55,34,5,19,89,58,38,82,66,35,48,59,87,55,93,88,7,82,96]
[null,null,null,null,null,null,null,null,null,null,67,43,50,69,37,11,16,79,92,17,18,56,13,51,45,14,71,53,31,89]
[null,null,null,null,null,null,null,null,null,null,16,79,76,21,85,12,67,18,32,68,90,19,28,49,60,12,52,46,48,54]
[null,null,null,null,null,null,null,null,null,null,49,82,70,80,13,44,70,57,27,70,26,14,67,63,24,34,94,30,31,1]
[null,null,null,null,null,null,null,null,null,null,6,83,5,79,15,91,92,29,50,79,67,74,10,13,15,92,27,19,19,43]
[null,null,null,null,null,null,null,null,null,null,81,84,67,96,65,88,82,98,12,30,63,87,90,22,41,37,46,25,88,44]
[null,null,null,null,null,null,null,null,null,null,55,13,37,12,100,57,68,80,27,71,32,38,95,69,58,74,11,81,99,50]
[null,null,null,null,null,null,null,null,null,null,79,51,75,17,89,44,22,34,62,95,25,66,66,59,30,19,86,51,6,44]
[null,null,null,null,null,null,null,null,null,null,7,60,8,51,74,41,84,1,38,82,80,95,64,35,84,26,90,96,8,6]
[null,null,null,null,null,null,null,null,null,null,97,29,35,1,37,65,88,99,45,100,96,58,5,46,37,11,18,32,63,71]
[null,null,null,null,null,null,null,null,null,null,68,29,86,53,36,26,23,83,19,63,68,88,10,83,19,26,36,84,78,48]
[null,null,null,null,null,null,null,null,null,null,26,43,93,34,93,35,17,6,99,55,7,42,29,55,37,95,65,59,47,95]

{"sheet":"Selecting a Range","index":24,"n_rows":101,"n_cols":31,"rows_kept":101,"cut":false,"hidden":true,"merged":[]}
[]
["© S. Christian Albright, 2011, All Rights Reserved"]
[null,null,null,null,null,null,null,null,null,null,9,2,10]
[null,null,null,null,null,null,null,null,null,null,1,3,8]
[null,null,null,null,null,null,null,null,null,null,8,1,10]
[null,null,null,null,null,null,null,null,null,null,7,5,4]
[null,null,null,null,null,null,null,null,null,null,5,1,1]
[null,null,null,null,null,null,null,null,null,null,5,10,7]
[]
[]
[]
[]
[]
[]
[]
[]
[]
[]
[]
[]
[]
[]
[null,null,null,null,null,null,null,null,null,null,63,61,4,36,45,85,91,23,17,76,49,49,44,70,31,67,78,20,98,47,88]
[null,null,null,null,null,null,null,null,null,null,52,95,40,75,28,67,79,75,49,76,61,77,11,51,34,31,56,61,83,33,24]
[null,null,null,null,null,null,null,null,null,null,18,98,47,28,65,17,86,23,63,73,21,16,58,34,98,16,16,3,76,5,25]
[null,null,null,null,null,null,null,null,null,null,25,21,7,68,16,12,80,87,59,29,27,56,14,91,25,91,6,63,35,98,67]
[null,null,null,null,null,null,null,null,null,null,26,76,55,60,55,19,82,61,42,44,69,9,80,23,78,100,6,96,47,41,50]
[null,null,null,null,null,null,null,null,null,null,42,52,72,79,16,14,85,49,81,7,25,30,92,61,71,26,85,93,71,55,67]
[null,null,null,null,null,null,null,null,null,null,14,29,75,36,52,75,17,33,66,50,33,13,51,65,39,29,26,41,17,65,93]
[null,null,null,null,null,null,null,null,null,null,87,41,48,22,25,77,3,57,32,3,57,3,79,32,66,4,18,40,62,45,4]
[null,null,null,null,null,null,null,null,null,null,100,71,10,11,90,15,62,24,83,66,47,88,15,53,21,64,70,1,78,81,16]
[null,null,null,null,null,null,null,null,null,null,59,51,90,35,94,83,77,26,79,61,84,100,79,8,5,42,12,28,95,25,63]
[null,null,null,null,null,null,null,null,null,null,43,72,53,21,60,22,33,67,29,71,56,28,72,4,48,24,95,93,61,92,70]
[null,null,null,null,null,null,null,null,null,null,19,73,49,38,33,42,49,84,8,49,97,11,80,93,63,95,86,51,19,2,50]
[null,null,null,null,null,null,null,null,null,null,86,58,55,59,41,63,75,19,34,37,84,29,81,94,78,9,7,89,73,42,37]
[null,null,null,null,null,null,null,null,null,null,7,62,41,62,26,17,95,97,79,98,6,20,53,54,18,4,82,59,48,62,76]
[null,null,null,null,null,null,null,null,null,null,52,78,37,18,45,98,35,40,73,72,63,10,72,6,36,30,88,50,5,57,27]
[null,null,null,null,null,null,null,null,null,null,18,32,62,79,86,31,58,3,14,26,15,87,60,88,86,45,36,76,98,59,65]
[null,null,null,null,null,null,null,null,null,null,1,89,92,86,88,94,12,49,38,52,54,16,18,26,17,24,26,34,94,59,13]
[null,null,null,null,null,null,null,null,null,null,71,71,58,14,37,27,73,31,83,28,3,11,85,63,41,71,15,42,87,85,55]
[null,null,null,null,null,null,null,null,null,null,75,18,70,77,52,6,45,8,57,78,24,41,43,29,67,82,62,63,14,59,91]
[null,null,null,null,null,null,null,null,null,null,2,5,21,95,16,8,66,82,72,87,85,64,24,24,49,30,78,73,44,70,99]
[null,null,null,null,null,null,null,null,null,null,64,89,38,32,8,51,63,86,1,91,68,20,2,43,85,42,58,20,43,73,71]
[null,null,null,null,null,null,null,null,null,null,64,67,81,11,34,16,30,16,39,65,51,49,14,73,98,20,67,33,84,7,71]
[null,null,null,null,null,null,null,null,null,null,6,30,42,3,68,27,12,86,77,24,87,38,25,46,61,68,17,26,43,20,49]
[null,null,null,null,null,null,null,null,null,null,87,78,33,53,48,86,17,4,61,4,59,86,33,25,95,28,55,17,6,92,45]
[null,null,null,null,null,null,null,null,null,null,64,64,15,28,44,65,29,10,57,92,91,96,93,29,54,7,56,2,38,88,87]
[null,null,null,null,null,null,null,null,null,null,58,33,81,90,48,26,55,49,34,23,15,74,17,57,89,12,64,28,100,76,42]
[null,null,null,null,null,null,null,null,null,null,76,54,84,66,65,78,3,88,17,97,53,7,40,45,83,35,76,57,8,24,76]
[null,null,null,null,null,null,null,null,null,null,15,79,47,71,19,74,58,63,57,4,83,8,31,50,96,96,33,80,20,14,56]
[null,null,null,null,null,null,null,null,null,null,73,85,20,100,6,46,17,24,86,49,11,52,3,58,61,34,51,43,90,73,25]
[null,null,null,null,null,null,null,null,null,null,43,40,26,30,59,98,46,85,23,75,83,37,53,99,90,65,91,21,95,48,61]
[null,null,null,null,null,null,null,null,null,null,83,54,38,91,59,27,82,98,39,91,77,31,75,6,72,36,39,51,25,72,97]
[null,null,null,null,null,null,null,null,null,null,41,85,63,28,29,59,47,76,81,24,49,12,36,47,54,76,39,22,5,30,98]
[null,null,null,null,null,null,null,null,null,null,55,72,42,24,59,41,78,1,53,7,65,34,60,47,82,72,33,20,74,52,1]
[null,null,null,null,null,null,null,null,null,null,23,22,17,76,50,67,17,6,97,74,84,32,10,84,74,22,10,26,39,64,41]
[null,null,null,null,null,null,null,null,null,null,54,74,23,86,88,85,98,79,83,51,6,88,15,60,13,17,92,71,45,45,25]
[null,null,null,null,null,null,null,null,null,null,81,54,24,61,41,43,13,44,91,18,59,20,62,17,80,12,17,78,96,55,79]
[null,null,null,null,null,null,null,null,null,null,16,86,24,58,99,49,50,93,65,88,8,30,73,2,52,71,29,21,41,59,69]
[null,null,null,null,null,null,null,null,null,null,31,38,91,46,44,15,23,12,32,70,22,27,1,50,3,15,13,41,71,13,78]
[null,null,null,null,null,null,null,null,null,null,47,67,39,26,54,85,65,52,4,57,1,79,98,30,14,12,63,11,54,41,43]
[null,null,null,null,null,null,null,null,null,null,69,4,10,56,89,66,13,99,22,10,18,90,45,74,53,80,71,3,35,74,24]
[null,null,null,null,null,null,null,null,null,null,82,28,25,20,88,92,28,97,42,65,45,72,47,25,73,82,45,29,39,100,75]
[null,null,null,null,null,null,null,null,null,null,66,69,81,19,78,100,57,27,52,80,9,78,17,35,52,54,93,74,77,66,50]
[null,null,null,null,null,null,null,null,null,null,19,85,32,47,1,69,68,16,19,28,71,63,73,18,49,41,19,11,42,49,3]
[null,null,null,null,null,null,null,null,null,null,58,30,88,16,44,90,9,91,68,87,24,38,39,66,100,74,73,12,87,42,30]
[null,null,null,null,null,null,null,null,null,null,8,98,6,1,74,2,53,35,85,80,71,49,91,9,29,46,57,47,10,98,82]
[null,null,null,null,null,null,null,null,null,null,4,22,18,11,61,5,100,43,49,34,10,76,40,93,79,81,33,7,97,43,44]
[null,null,null,null,null,null,null,null,null,null,22,89,29,84,88,18,67,12,26,34,18,86,17,49,63,39,11,36,23,63,37]
[null,null,null,null,null,null,null,null,null,null,5,81,48,65,9,67,13,78,55,36,53,17,97,64,53,44,53,28,85,29,8]
[null,null,null,null,null,null,null,null,null,null,33,95,12,21,18,73,31,17,85,97,86,25,77,59,36,86,43,73,23,68,25]
[null,null,null,null,null,null,null,null,null,null,57,32,94,59,15,22,18,77,4,84,63,99,36,53,34,59,36,36,61,84,37]
[null,null,null,null,null,null,null,null,null,null,67,55,5,66,36,26,34,82,59,8,48,60,41,33,53,1,99,83,15,65,56]
[null,null,null,null,null,null,null,null,null,null,4,10,12,86,91,11,73,14,28,67,95,47,63,73,89,94,98,4,33,90,51]
[null,null,null,null,null,null,null,null,null,null,52,69,35,8,38,63,20,68,16,64,58,75,86,75,87,12,86,60,9,93,6]
[null,null,null,null,null,null,null,null,null,null,46,25,70,45,99,56,34,4,98,77,70,92,42,91,29,47,1,6,61,53,31]
[null,null,null,null,null,null,null,null,null,null,79,71,61,38,37,66,24,97,91,44,29,57,83,93,81,40,15,68,41,45,67]
[null,null,null,null,null,null,null,null,null,null,28,51,23,75,42,89,79,42,22,58,99,92,40,22,35,2,22,16,75,16,8]
[null,null,null,null,null,null,null,null,null,null,95,41,44,60,83,57,61,59,39,9,7,62,71,50,62,16,12,49,28,73,5]
[null,null,null,null,null,null,null,null,null,null,40,76,54,4,46,23,28,66,29,76,37,22,59,66,40,58,66,14,77,3,54]
[null,null,null,null,null,null,null,null,null,null,96,61,55,1,59,67,37,96,52,95,10,74,12,13,94,72,74,86,71,33,36]
[null,null,null,null,null,null,null,null,null,null,3,7,17,28,87,5,98,31,62,72,52,32,71,18,55,72,48,65,84,87,26]
[null,null,null,null,null,null,null,null,null,null,96,37,82,70,8,56,25,41,16,72,94,49,11,94,84,79,37,61,48,32,35]
[null,null,null,null,null,null,null,null,null,null,39,33,1,82,35,51,71,55,66,43,20,5,77,86,5,19,71,53,94,65,73]
[null,null,null,null,null,null,null,null,null,null,46,15,81,86,74,69,22,85,64,69,17,99,90,76,84,14,2,41,63,23,37]
[null,null,null,null,null,null,null,null,null,null,23,24,3,40,30,27,73,16,85,2,20,44,68,34,47,77,75,8,15,98,5]
[null,null,null,null,null,null,null,null,null,null,6,64,5,95,11,15,90,36,44,97,99,41,50,82,67,13,72,40,99,95,25]
[null,null,null,null,null,null,null,null,null,null,72,36,24,58,23,89,45,83,68,65,48,77,13,71,63,5,32,53,14,40,69]
[null,null,null,null,null,null,null,null,null,null,8,34,69,26,14,77,15,8,21,71,64,93,34,51,48,55,4,36,28,63,100]
[null,null,null,null,null,null,null,null,null,null,48,91,81,13,94,87,18,48,63,29,16,6,60,50,91,58,50,74,27,69,5]
[null,null,null,null,null,null,null,null,null,null,70,29,30,5,18,75,97,27,62,76,3,18,66,54,58,74,33,95,84,63,60]
[null,null,null,null,null,null,null,null,null,null,57,78,44,99,59,65,31,91,38,13,35,9,85,46,78,100,79,62,86,36,45]
[null,null,null,null,null,null,null,null,null,null,98,92,39,60,45,75,30,34,53,95,70,8,93,88,42,64,8,96,51,12,13]
[null,null,null,null,null,null,null,null,null,null,45,23,30,91,89,36,9,64,11,54,8,68,10,100,42,10,42,28,52,74,95]
[null,null,null,null,null,null,null,null,null,null,69,70,86,55,70,5,78,71,51,70,48,77,78,55,91,47,41,83,94,91,46]
[null,null,null,null,null,null,null,null,null,null,50,56,42,18,47,2,85,49,53,17,51,67,58,70,51,87,24,24,86,36,54]
[null,null,null,null,null,null,null,null,null,null,17,20,19,68,2,10,2,12,79,67,93,73,40,50,46,24,40,58,83,53,94]
[null,null,null,null,null,null,null,null,null,null,55,56,25,28,1,71,64,8,7,23,15,42,28,56,33,99,10,30,73,51,16]
[null,null,null,null,null,null,null,null,null,null,64,68,99,77,20,38,29,96,6,92,60,90,85,83,53,39,66,37,79,6,95]
[null,null,null,null,null,null,null,null,null,null,87,77,77,13,85,62,4,66,11,95,99,57,13,74,28,33,70,22,90,29,78]
[null,null,null,null,null,null,null,null,null,null,96,72,80,61,73,72,86,49,79,89,52,100,9,74,100,64,46,37,32,98,10]

{"sheet":"Selecting Multiple Ranges","index":25,"n_rows":10,"n_cols":15,"rows_kept":10,"cut":false,"hidden":true,"merged":[]}
[]
["© S. Christian Albright, 2011, All Rights Reserved"]
[null,null,null,null,null,null,null,null,null,null,10,13,null,7,9]
[null,null,null,null,null,null,null,null,null,null,1,9,null,12,7]
[null,null,null,null,null,null,null,null,null,null,5,4,null,1,1]
[null,null,null,null,null,null,null,null,null,null,null,null,null,6,12]
[null,null,null,null,null,null,null,null,null,null,null,null,null,15,2]
[]
[]
[null,null,null,null,null,null,null,null,null,null,null,13,4,10]

{"sheet":"Go To Options","index":26,"n_rows":28,"n_cols":13,"rows_kept":28,"cut":false,"hidden":true,"merged":[]}
[]
["© S. Christian Albright, 2011, All Rights Reserved"]
[]
[]
[]
[]
[]
[]
[]
[]
[]
[]
[null,null,null,null,null,null,null,null,null,null,"Jan","Q1",2009]
[]
[]
[null,null,null,null,null,null,null,null,null,null,"Feb"]
[]
[]
[null,null,null,null,null,null,null,null,null,null,"Mar"]
[]
[]
[null,null,null,null,null,null,null,null,null,null,"Apr","Q2"]
[]
[]
[null,null,null,null,null,null,null,null,null,null,"May"]
[]
[]
[null,null,null,null,null,null,null,null,null,null,"Jun"]

{"sheet":"Copying, Cutting, Pasting","index":27,"n_rows":2,"n_cols":1,"rows_kept":2,"cut":false,"hidden":true,"merged":[]}
[]
["© S. Christian Albright, 2011, All Rights Reserved"]

{"sheet":"Copying and Pasting","index":28,"n_rows":76,"n_cols":13,"rows_kept":76,"cut":false,"hidden":true,"merged":[]}
[]
["© S. Christian Albright, 2011, All Rights Reserved"]
[]
[]
[]
[]
[]
[]
[]
[]
[]
[]
[]
[null,null,null,null,null,null,null,null,null,null,3,3,{"$f":"K14*L14","v":9}]
[null,null,null,null,null,null,null,null,null,null,4,1]
[null,null,null,null,null,null,null,null,null,null,2,3]
[null,null,null,null,null,null,null,null,null,null,2,1]
[null,null,null,null,null,null,null,null,null,null,5,1]
[null,null,null,null,null,null,null,null,null,null,4,2]
[null,null,null,null,null,null,null,null,null,null,3,5]
[]
[]
[]
[]
[]
[]
[]
[]
[]
[]
[]
[]
[null,null,null,null,null,null,null,null,null,null,6,2]
[null,null,null,null,null,null,null,null,null,null,9,1]
[null,null,null,null,null,null,null,null,null,null,4,9]
[null,null,null,null,null,null,null,null,null,null,7,6]
[null,null,null,null,null,null,null,null,null,null,2,3]
[null,null,null,null,null,null,null,null,null,null,8,5]
[null,null,null,null,null,null,null,null,null,null,3,9]
[]
[]
[]
[]
[]
[]
[]
[]
[]
[]
[]
[]
[]
[]
[]
[null,null,null,null,null,null,null,null,null,null,10,7,{"$f":"K55*L55","v":70}]
[null,null,null,null,null,null,null,null,null,null,6,9]
[null,null,null,null,null,null,null,null,null,null,4,9]
[null,null,null,null,null,null,null,null,null,null,5,1]
[null,null,null,null,null,null,null,null,null,null,2,8]
[null,null,null,null,null,null,null,null,null,null,8,10]
[null,null,null,null,null,null,null,null,null,null,10,7]
[]
[]
[]
[]
[]
[]
[]
[]
[null,null,null,null,null,null,null,null,null,null,7,8,{"$f":"K70*L70","v":56}]
[null,null,null,null,null,null,null,null,null,null,2,1]
[null,null,null,null,null,null,null,null,null,null,10,2]
[null,null,null,null,null,null,null,null,null,null,4,1]
[null,null,null,null,null,null,null,null,null,null,4,5]
[null,null,null,null,null,null,null,null,null,null,3,8]
[null,null,null,null,null,null,null,null,null,null,7,8]

{"sheet":"Copying and Pasting Special","index":29,"n_rows":73,"n_cols":15,"rows_kept":73,"cut":false,"hidden":true,"merged":[]}
[]
["© S. Christian Albright, 2011, All Rights Reserved"]
[null,null,null,null,null,null,null,null,null,null,1,1,{"$f":"K3*L3","v":1}]
[null,null,null,null,null,null,null,null,null,null,2,3,6]
[null,null,null,null,null,null,null,null,null,null,9,5,45]
[null,null,null,null,null,null,null,null,null,null,7,4,28]
[null,null,null,null,null,null,null,null,null,null,8,8,64]
[null,null,null,null,null,null,null,null,null,null,8,10,80]
[null,null,null,null,null,null,null,null,null,null,7,6,42]
[]
[]
[]
[]
[]
[]
[]
[]
[]
[null,null,null,null,null,null,null,null,null,null,"Excel 2007",null,null,"Excel 2010"]
[]
[]
[]
[]
[]
[]
[]
[]
[]
[]
[]
[]
[]
[]
[]
[]
[]
[]
[null,null,null,null,null,null,null,null,null,null,10,2,{"$f":"PRODUCT(K38:L38)","v":20}]
[null,null,null,null,null,null,null,null,null,null,6,7,{"$f":"PRODUCT(K39:L39)","v":42}]
[null,null,null,null,null,null,null,null,null,null,1,8,{"$f":"PRODUCT(K40:L40)","v":8}]
[]
[]
[]
[]
[null,null,null,null,null,null,null,null,null,null,null,null,null,null,47.65]
[null,null,null,null,null,null,null,null,null,null,null,null,null,null,44.2]
[null,null,null,null,null,null,null,null,null,null,null,null,null,null,37.68]
[null,null,null,null,null,null,null,null,null,null,null,null,null,null,31.34]
[null,null,null,null,null,null,null,null,null,null,null,null,null,null,89.36]
[null,null,null,null,null,null,null,null,null,null,null,null,null,null,68.150000000000006]
[null,null,null,null,null,null,null,null,null,null,null,null,null,null,28.57]
[]
[]
[]
[]
[]
[]
[]
[]
[]
[]
[]
[]
[]
[null,null,null,null,null,null,null,null,null,null,147]
[null,null,null,null,null,null,null,null,null,null,173]
[null,null,null,null,null,null,null,null,null,null,217]
[null,null,null,null,null,null,null,null,null,null,178]
[null,null,null,null,null,null,null,null,null,null,120]
[null,null,null,null,null,null,null,null,null,null,203]
[null,null,null,null,null,null,null,null,null,null,137]
[null,null,null,null,null,null,null,null,null,null,217]
[null,null,null,null,null,null,null,null,null,null,153]

{"sheet":"Transposing a Range","index":30,"n_rows":10,"n_cols":14,"rows_kept":10,"cut":false,"hidden":true,"merged":[]}
[]
["© S. Christian Albright, 2011, All Rights Reserved"]
[null,null,null,null,null,null,null,null,null,null,"Sales figures"]
[]
[null,null,null,null,null,null,null,null,null,null,null,"Jan","Feb","Mar"]
[null,null,null,null,null,null,null,null,null,null,"North",2300,3200,4500]
[null,null,null,null,null,null,null,null,null,null,"West",4300,3500,4200]
[null,null,null,null,null,null,null,null,null,null,"East",5500,6500,6000]
[]
[null,null,null,null,null,null,null,null,null,null,"Excel 2007",null,null,"Excel 2010"]

{"sheet":"Cutting and Pasting","index":31,"n_rows":9,"n_cols":13,"rows_kept":9,"cut":false,"hidden":true,"merged":[]}
[]
["© S. Christian Albright, 2011, All Rights Reserved"]
[null,null,null,null,null,null,null,null,null,null,2,3,{"$f":"K3*L3","v":6}]
[null,null,null,null,null,null,null,null,null,null,7,4,28]
[null,null,null,null,null,null,null,null,null,null,3,6,18]
[null,null,null,null,null,null,null,null,null,null,3,9,27]
[null,null,null,null,null,null,null,null,null,null,6,7,42]
[null,null,null,null,null,null,null,null,null,null,6,6,36]
[null,null,null,null,null,null,null,null,null,null,1,4,4]

{"sheet":"Other Basic Tools","index":32,"n_rows":2,"n_cols":1,"rows_kept":2,"cut":false,"hidden":true,"merged":[]}
[]
["© S. Christian Albright, 2011, All Rights Reserved"]

{"sheet":"Undoing Actions","index":33,"n_rows":38,"n_cols":12,"rows_kept":38,"cut":false,"hidden":true,"merged":[]}
[]
["© S. Christian Albright, 2011, All Rights Reserved"]
[]
[]
[]
[]
[]
[]
[]
[]
[]
[]
[]
[]
[]
[]
[]
[]
[]
[]
[]
[]
[]
[]
[]
[null,null,null,null,null,null,null,null,null,null,{"$f":"RANDBETWEEN(1,50)","v":27},14]
[null,null,null,null,null,null,null,null,null,null,43,48]
[null,null,null,null,null,null,null,null,null,null,7,24]
[null,null,null,null,null,null,null,null,null,null,47,1]
[null,null,null,null,null,null,null,null,null,null,48,9]
[null,null,null,null,null,null,null,null,null,null,18,2]
[null,null,null,null,null,null,null,null,null,null,15,5]
[null,null,null,null,null,null,null,null,null,null,5,19]
[null,null,null,null,null,null,null,null,null,null,44,2]
[null,null,null,null,null,null,null,null,null,null,28,9]
[null,null,null,null,null,null,null,null,null,null,16,16]
[null,null,null,null,null,null,null,null,null,null,39,10]
[null,null,null,null,null,null,null,null,null,null,6,4]

{"sheet":"Manipulating Rows, Columns","index":34,"n_rows":94,"n_cols":5,"rows_kept":94,"cut":false,"hidden":true,"merged":[]}
[]
["© S. Christian Albright, 2011, All Rights Reserved"]
[]
[]
[]
[]
[]
[]
[]
[]
[]
[]
[]
[]
[]
[]
[]
[]
[]
[]
[]
[]
[]
[]
[]
[null,"Month","Price","Units sold","Revenue"]
[null,"Jan",3,100,{"$f":"C27*D27","v":300}]
[null,"Mar",3.25,50,{"$f":"C28*D28","v":162.5}]
[null,"Jun",3.5,200,{"$f":"C29*D29","v":700}]
[]
[]
[]
[]
[]
[]
[]
[]
[]
[]
[]
[]
[]
[]
[]
[]
[]
[]
[]
[]
[]
[]
[]
[]
[]
[]
[]
[]
[]
[]
[]
[]
[]
[]
[null,"Person","Age"]
[null,1,36]
[null,2,33]
[null,3,49]
[null,4,25]
[null,5,21]
[null,6,46]
[null,7,27]
[null,8,35]
[null,9,22]
[null,10,27]
[null,11,37]
[null,12,36]
[null,13,21]
[null,14,35]
[null,15,39]
[null,16,48]
[null,17,35]
[null,18,38]
[null,19,36]
[null,20,44]
[null,21,34]
[null,22,50]
[null,23,44]
[null,24,41]
[null,25,43]
[null,26,48]
[null,27,29]
[null,28,34]
[null,29,22]
[null,30,28]

{"sheet":"Manipulating Worksheets","index":35,"n_rows":2,"n_cols":1,"rows_kept":2,"cut":false,"hidden":true,"merged":[]}
[]
["© S. Christian Albright, 2011, All Rights Reserved"]

{"sheet":"Filling a Series","index":36,"n_rows":51,"n_cols":17,"rows_kept":51,"cut":false,"hidden":true,"merged":[]}
[]
["© S. Christian Albright, 2011, All Rights Reserved"]
[null,null,null,null,null,null,null,null,null,null,"Day","Sales",null,"Day","Sales"]
[null,null,null,null,null,null,null,null,null,null,null,227,null,null,167]
[null,null,null,null,null,null,null,null,null,null,null,157,null,null,107]
[null,null,null,null,null,null,null,null,null,null,null,143,null,null,255]
[null,null,null,null,null,null,null,null,null,null,null,129,null,null,113]
[null,null,null,null,null,null,null,null,null,null,null,102,null,null,186]
[null,null,null,null,null,null,null,null,null,null,null,116,null,null,124]
[null,null,null,null,null,null,null,null,null,null,null,269,null,null,271]
[null,null,null,null,null,null,null,null,null,null,null,111,null,null,288]
[null,null,null,null,null,null,null,null,null,null,null,210,null,null,273]
[null,null,null,null,null,null,null,null,null,null,null,117,null,null,285]
[null,null,null,null,null,null,null,null,null,null,null,214,null,null,231]
[null,null,null,null,null,null,null,null,null,null,null,150,null,null,272]
[null,null,null,null,null,null,null,null,null,null,null,229,null,null,169]
[null,null,null,null,null,null,null,null,null,null,null,241,null,null,269]
[null,null,null,null,null,null,null,null,null,null,null,270,null,null,274]
[null,null,null,null,null,null,null,null,null,null,null,224,null,null,133]
[null,null,null,null,null,null,null,null,null,null,null,127,null,null,280]
[null,null,null,null,null,null,null,null,null,null,null,246,null,null,289]
[null,null,null,null,null,null,null,null,null,null,null,203,null,null,254]
[null,null,null,null,null,null,null,null,null,null,null,207,null,null,114]
[null,null,null,null,null,null,null,null,null,null,null,190,null,null,181]
[null,null,null,null,null,null,null,null,null,null,null,256,null,null,259]
[null,null,null,null,null,null,null,null,null,null,null,297,null,null,185]
[null,null,null,null,null,null,null,null,null,null,null,175,null,null,117]
[null,null,null,null,null,null,null,null,null,null,null,169,null,null,224]
[]
[]
[]
[]
[]
[]
[null,null,null,null,null,null,null,null,null,null,"Original","Series","Difference",null,"Original","Series","Ratio"]
[null,null,null,null,null,null,null,null,null,null,1.1000000000000001,1.0000000000000002,null,null,1.1000000000000001,1.1613486817334817]
[null,null,null,null,null,null,null,null,null,null,1.9,2.0500000000000003,{"$f":"L37-L36","v":1.05},null,1.9,1.8229737798046926,{"$f":"P37/P36","v":1.5697040935919773}]
[null,null,null,null,null,null,null,null,null,null,3.1,3.1000000000000005,1.0500000000000003,null,3.1,2.8615294046702657,1.5697040935919773]
[null,null,null,null,null,null,null,null,null,null,4.2,4.1500000000000004,1.0499999999999998,null,4.2,4.4917544204447299,1.5697040935919773]
[null,null,null,null,null,null,null,null,null,null,null,5.2,1.0499999999999998,null,null,7.0507253011819522,1.5697040935919773]
[null,null,null,null,null,null,null,null,null,null,null,6.2500000000000009,1.0500000000000007,null,null,11.067552368057838,1.5697040935919773]
[null,null,null,null,null,null,null,null,null,null,null,7.3000000000000007,1.0499999999999998,null,null,17.372782258183971,1.5697040935919775]
[null,null,null,null,null,null,null,null,null,null,null,8.3500000000000014,1.0500000000000007,null,null,27.270127427753454,1.5697040935919773]
[null,null,null,null,null,null,null,null,null,null,null,9.4000000000000021,1.0500000000000007,null,null,42.806030656119461,1.5697040935919775]
[null,null,null,null,null,null,null,null,null,null,null,10.45,1.0499999999999972,null,null,67.192801551334384,1.569704093591977]
[null,null,null,null,null,null,null,null,null,null,null,11.5,1.0500000000000007,null,null,105.47281565504295,1.5697040935919775]
[null,null,null,null,null,null,null,null,null,null,null,12.55,1.0500000000000007,null,null,165.56111049639293,1.5697040935919775]
[null,null,null,null,null,null,null,null,null,null,null,13.600000000000001,1.0500000000000007,null,null,259.88195288582165,1.5697040935919773]
[null,null,null,null,null,null,null,null,null,null,null,14.650000000000002,1.0500000000000007,null,null,407.93776529555163,1.5697040935919773]
[null,null,null,null,null,null,null,null,null,null,null,15.7,1.0499999999999972,null,null,640.3415801151906,1.5697040935919773]
[null,null,null,null,null,null,null,null,null,null,null,16.75,1.0500000000000007,null,null,1005.14679960397,1.5697040935919775]

{"sheet":"Sorting","index":37,"n_rows":100,"n_cols":16,"rows_kept":100,"cut":false,"hidden":true,"merged":[]}
[]
["© S. Christian Albright, 2011, All Rights Reserved"]
[null,null,null,null,null,null,null,null,null,null,"Person","Age","Gender","State","Children","Salary"]
[null,null,null,null,null,null,null,null,null,null,1,35,"Male","Ohio",1,65400]
[null,null,null,null,null,null,null,null,null,null,2,61,"Female","Illinois",2,62000]
[null,null,null,null,null,null,null,null,null,null,3,35,"Male","Illinois",0,63200]
[null,null,null,null,null,null,null,null,null,null,4,37,"Male","Indiana",2,52000]
[null,null,null,null,null,null,null,null,null,null,5,32,"Female","Ohio",3,81400]
[null,null,null,null,null,null,null,null,null,null,6,33,"Female","Illinois",3,46300]
[null,null,null,null,null,null,null,null,null,null,7,65,"Female","Illinois",2,49600]
[null,null,null,null,null,null,null,null,null,null,8,45,"Male","Ohio",1,45900]
[null,null,null,null,null,null,null,null,null,null,9,40,"Male","Illinois",3,47700]
[null,null,null,null,null,null,null,null,null,null,10,32,"Female","Ohio",1,59900]
[null,null,null,null,null,null,null,null,null,null,11,57,"Male","Illinois",1,48100]
[null,null,null,null,null,null,null,null,null,null,12,38,"Female","Indiana",0,58100]
[null,null,null,null,null,null,null,null,null,null,13,37,"Female","Indiana",2,56000]
[null,null,null,null,null,null,null,null,null,null,14,42,"Female","Ohio",2,53400]
[null,null,null,null,null,null,null,null,null,null,15,38,"Female","Ohio",2,39000]
[null,null,null,null,null,null,null,null,null,null,16,48,"Male","Ohio",1,61500]
[null,null,null,null,null,null,null,null,null,null,17,40,"Male","Indiana",0,37700]
[null,null,null,null,null,null,null,null,null,null,18,57,"Female","Indiana",2,36700]
[null,null,null,null,null,null,null,null,null,null,19,44,"Male","Illinois",2,45200]
[null,null,null,null,null,null,null,null,null,null,20,40,"Male","Ohio",0,59000]
[null,null,null,null,null,null,null,null,null,null,21,21,"Female","Indiana",2,54300]
[null,null,null,null,null,null,null,null,null,null,22,49,"Male","Ohio",1,62100]
[]
[]
[]
[]
[]
[]
[]
[]
[]
[]
[]
[]
[]
[]
[]
[]
[]
[]
[]
[]
[]
[]
[]
[]
[]
[]
[]
[]
[]
[]
[null,null,null,null,null,null,null,null,null,null,"Grade",null,"Name"]
[null,null,null,null,null,null,null,null,null,null,"A+",null,"FRED"]
[null,null,null,null,null,null,null,null,null,null,"A",null,"TOM"]
[null,null,null,null,null,null,null,null,null,null,"A-",null,"jenny"]
[null,null,null,null,null,null,null,null,null,null,"B+",null,"doug"]
[null,null,null,null,null,null,null,null,null,null,"B",null,"MARY"]
[null,null,null,null,null,null,null,null,null,null,"B-",null,"sam"]
[null,null,null,null,null,null,null,null,null,null,"C+",null,"charlie"]
[null,null,null,null,null,null,null,null,null,null,"C",null,"BOB"]
[null,null,null,null,null,null,null,null,null,null,"C-",null,"CHRIS"]
[null,null,null,null,null,null,null,null,null,null,"D+"]
[null,null,null,null,null,null,null,null,null,null,"D"]
[null,null,null,null,null,null,null,null,null,null,"D-"]
[null,null,null,null,null,null,null,null,null,null,"F"]
[]
[]
[]
[]
[]
[null,null,null,null,null,null,null,null,null,null,"Order","Time","Day"]
[null,null,null,null,null,null,null,null,null,null,1,"Morning","Saturday"]
[null,null,null,null,null,null,null,null,null,null,2,"Evening","Wednesday"]
[null,null,null,null,null,null,null,null,null,null,3,"Evening","Saturday"]
[null,null,null,null,null,null,null,null,null,null,4,"Afternoon","Friday"]
[null,null,null,null,null,null,null,null,null,null,5,"Evening","Tuesday"]
[null,null,null,null,null,null,null,null,null,null,6,"Morning","Tuesday"]
[null,null,null,null,null,null,null,null,null,null,7,"Afternoon","Monday"]
[null,null,null,null,null,null,null,null,null,null,8,"Afternoon","Saturday"]
[null,null,null,null,null,null,null,null,null,null,9,"Afternoon","Monday"]
[null,null,null,null,null,null,null,null,null,null,10,"Morning","Tuesday"]
[null,null,null,null,null,null,null,null,null,null,11,"Evening","Sunday"]
[null,null,null,null,null,null,null,null,null,null,12,"Morning","Monday"]
[null,null,null,null,null,null,null,null,null,null,13,"Afternoon","Wednesday"]
[null,null,null,null,null,null,null,null,null,null,14,"Morning","Friday"]
[null,null,null,null,null,null,null,null,null,null,15,"Afternoon","Saturday"]
[null,null,null,null,null,null,null,null,null,null,16,"Morning","Tuesday"]
[null,null,null,null,null,null,null,null,null,null,17,"Afternoon","Thursday"]
[null,null,null,null,null,null,null,null,null,null,18,"Afternoon","Friday"]
[null,null,null,null,null,null,null,null,null,null,19,"Afternoon","Friday"]
[null,null,null,null,null,null,null,null,null,null,20,"Evening","Thursday"]
[null,null,null,null,null,null,null,null,null,null,21,"Morning","Sunday"]
[null,null,null,null,null,null,null,null,null,null,22,"Morning","Monday"]
[null,null,null,null,null,null,null,null,null,null,23,"Morning","Sunday"]
[null,null,null,null,null,null,null,null,null,null,24,"Morning","Sunday"]
[null,null,null,null,null,null,null,null,null,null,25,"Morning","Saturday"]

{"sheet":"Hyperlinks","index":38,"n_rows":3,"n_cols":11,"rows_kept":3,"cut":false,"hidden":true,"merged":[]}
[]
["© S. Christian Albright, 2011, All Rights Reserved"]
[null,null,null,null,null,null,null,null,null,null,"Go to Undoing Actions Worksheet"]

{"sheet":"Documenting Your Work","index":39,"n_rows":19,"n_cols":17,"rows_kept":19,"cut":false,"hidden":true,"merged":[]}
[]
["© S. Christian Albright, 2011, All Rights Reserved"]
[]
[]
[]
[]
[]
[]
[]
[]
[]
[]
[]
[null,null,null,null,null,null,null,null,null,null,null,null,null,null,null,null,"Sales"]
[null,null,null,null,null,null,null,null,null,null,null,null,null,null,null,null,15.3]
[null,null,null,null,null,null,null,null,null,null,null,null,null,null,null,null,14.7]
[null,null,null,null,null,null,null,null,null,null,null,null,null,null,null,null,9.6]
[null,null,null,null,null,null,null,null,null,null,null,null,null,null,null,null,12.1]
[null,null,null,null,null,null,null,null,null,null,null,null,null,null,null,null,14.2]

{"sheet":"Printing","index":40,"n_rows":2,"n_cols":1,"rows_kept":2,"cut":false,"hidden":true,"merged":[]}
[]
["© S. Christian Albright, 2011, All Rights Reserved"]

{"sheet":"Working with Formulas","index":41,"n_rows":2,"n_cols":1,"rows_kept":2,"cut":false,"hidden":true,"merged":[]}
[]
["© S. Christian Albright, 2011, All Rights Reserved"]

{"sheet":"Relative Absolute","index":42,"n_rows":41,"n_cols":27,"rows_kept":41,"cut":false,"hidden":true,"merged":[]}
[]
["© S. Christian Albright, 2011, All Rights Reserved"]
[]
[]
[]
[]
[]
[]
[]
[]
[]
[]
[]
[]
[]
[]
[]
[]
[]
[]
[]
[]
[]
[]
[]
[null,null,null,null,null,null,null,null,null,null,"Fixed cost",50,null,null,null,null,null,null,null,null,null,"Fixed cost",50]
[null,null,null,null,null,null,null,null,null,null,"Variable cost",2,null,null,null,null,null,null,null,null,null,"Variable cost",2]
[]
[null,null,null,null,null,null,null,null,null,null,"Month","Jan","Feb","Mar","Apr",null,null,null,null,null,null,"Month","Jan","Feb","Mar","Apr"]
[null,null,null,null,null,null,null,null,null,null,"Units produced",224,194,228,258,null,null,null,null,null,null,"Units produced",224,194,228,258]
[null,null,null,null,null,null,null,null,null,null,"Total cost",null,null,null,null,null,null,null,null,null,null,"Total cost",{"$f":"$W$26+$W$27*W30","v":498},{"$f":"$W$26+$W$27*X30","v":438},{"$f":"$W$26+$W$27*Y30","v":506},{"$f":"$W$26+$W$27*Z30","v":566}]
[]
[null,null,null,null,null,null,null,null,null,null,"Table of revenues for various unit prices and units sold"]
[]
[null,null,null,null,null,null,null,null,null,null,null,null,"Units sold",null,null,null,null,null,null,null,null,null,null,"Units sold"]
[null,null,null,null,null,null,null,null,null,null,null,null,50,100,150,200,null,null,null,null,null,null,null,50,100,150,200]
[null,null,null,null,null,null,null,null,null,null,"Unit price",3.25,null,null,null,null,null,null,null,null,null,"Unit price",3.25,{"$f":"$W37*X$36","v":162.5},325,487.5,650]
[null,null,null,null,null,null,null,null,null,null,null,3.5,null,null,null,null,null,null,null,null,null,null,3.5,175,350,525,700]
[null,null,null,null,null,null,null,null,null,null,null,3.75,null,null,null,null,null,null,null,null,null,null,3.75,187.5,375,562.5,750]
[null,null,null,null,null,null,null,null,null,null,null,4,null,null,null,null,null,null,null,null,null,null,4,200,400,600,800]
[null,null,null,null,null,null,null,null,null,null,null,4.25,null,null,null,null,null,null,null,null,null,null,4.25,212.5,425,637.5,850]

{"sheet":"R1C1 Notation","index":43,"n_rows":21,"n_cols":16,"rows_kept":21,"cut":false,"hidden":true,"merged":[]}
[]
["© S. Christian Albright, 2011, All Rights Reserved"]
[]
[]
[]
[]
[]
[]
[]
[]
[]
[]
[]
[]
[null,null,null,null,null,null,null,null,null,null,"Multiplication table"]
[null,null,null,null,null,null,null,null,null,null,null,null,1,2,3,4]
[null,null,null,null,null,null,null,null,null,null,null,1,{"$f":"$L17*M$16","v":1},2,3,4]
[null,null,null,null,null,null,null,null,null,null,null,2,2,4,6,8]
[null,null,null,null,null,null,null,null,null,null,null,3,3,6,9,12]
[null,null,null,null,null,null,null,null,null,null,null,4,4,8,12,16]
[null,null,null,null,null,null,null,null,null,null,null,"Total",{"$f":"SUM(M17:M20)","v":10},{"$f":"SUM(N17:N20)","v":20},{"$f":"SUM(O17:O20)","v":30},{"$f":"SUM(P17:P20)","v":40}]

{"sheet":"Range Names","index":44,"n_rows":96,"n_cols":18,"rows_kept":96,"cut":false,"hidden":true,"merged":[]}
[]
["© S. Christian Albright, 2011, All Rights Reserved"]
[]
[]
[]
[]
[]
[]
[]
[]
[]
[]
[]
[]
[]
[]
[]
[]
[]
[]
[]
[]
[]
[]
[]
[]
[]
[]
[]
[]
[null,null,null,null,null,null,null,null,null,null,71,31,9,69,5]
[null,null,null,null,null,null,null,null,null,null,15,74,46,84,27]
[null,null,null,null,null,null,null,null,null,null,14,49,25,38,83]
[null,null,null,null,null,null,null,null,null,null,40,43,20,75,83]
[null,null,null,null,null,null,null,null,null,null,28,72,30,92,75]
[null,null,null,null,null,null,null,null,null,null,41,56,90,89,73]
[null,null,null,null,null,null,null,null,null,null,28,81,43,81,61]
[]
[]
[]
[]
[]
[]
[]
[]
[]
[]
[]
[]
[]
[]
[]
[]
[]
[null,null,null,null,null,null,null,null,null,null,null,null,null,null,"Month","UnitsSold","UnitPrice","Revenue"]
[null,null,null,null,null,null,null,null,null,null,null,null,null,null,"Jan",100,1.25,{"$f":"P56*Q56","v":125}]
[null,null,null,null,null,null,null,null,null,null,null,null,null,null,"Feb",150,1.25,187.5]
[null,null,null,null,null,null,null,null,null,null,null,null,null,null,"Mar",200,1.4,280]
[null,null,null,null,null,null,null,null,null,null,null,null,null,null,"Apr",230,1.4,322]
[null,null,null,null,null,null,null,null,null,null,null,null,null,null,"May",200,1.5,300]
[null,null,null,null,null,null,null,null,null,null,null,null,null,null,"Jun",300,1.5,450]
[null,null,null,null,null,null,null,null,null,null,null,null,null,null,"Totals",{"$f":"SUM(P56:P61)","v":1180},null,{"$f":"SUM(R56:R61)","v":1664.5}]
[]
[]
[]
[]
[]
[]
[]
[]
[]
[]
[]
[]
[]
[]
[]
[]
[]
[]
[]
[]
[]
[]
[]
[]
[]
[]
[]
[]
[]
[]
[]
[]
[]
[null,null,null,null,null,null,null,null,null,null,null,null,null,null,"Range names used in this workbook:"]

{"sheet":"Auditing formulas","index":45,"n_rows":39,"n_cols":12,"rows_kept":39,"cut":false,"hidden":true,"merged":[]}
[]
["© S. Christian Albright, 2011, All Rights Reserved"]
[]
[]
[]
[]
[]
[]
[]
[]
[]
[]
[]
[]
[]
[]
[]
[]
[]
[]
[]
[null,null,null,null,null,null,null,null,null,null,"Unit printing cost",0.1]
[null,null,null,null,null,null,null,null,null,null,"Unit mailing cost",0.15]
[null,null,null,null,null,null,null,null,null,null,"Variable cost of printing and mailing",0.25]
[null,null,null,null,null,null,null,null,null,null,"Number mailed",100000]
[]
[null,null,null,null,null,null,null,null,null,null,"Average revenue per order",60]
[null,null,null,null,null,null,null,null,null,null,"Order fulfillment cost (% of revenue)",0.6]
[null,null,null,null,null,null,null,null,null,null,"Variable cost per order fulfillment",{"$f":"0.6*L27","v":36}]
[]
[null,null,null,null,null,null,null,null,null,null,"Response rate",0.03]
[null,null,null,null,null,null,null,null,null,null,"Number of responses",{"$f":"L25*L31","v":3000}]
[]
[null,null,null,null,null,null,null,null,null,null,"Total Revenue",{"$f":"L32*L27","v":180000}]
[null,null,null,null,null,null,null,null,null,null,"Fixed cost of printing",20000]
[null,null,null,null,null,null,null,null,null,null,"Total variable cost of printing and mailing",{"$f":"L25*L24","v":25000}]
[null,null,null,null,null,null,null,null,null,null,"Total variable cost of order fulfillment",{"$f":"L32*L29","v":108000}]
[null,null,null,null,null,null,null,null,null,null,"Total cost",{"$f":"SUM(L35:L37)","v":153000}]
[null,null,null,null,null,null,null,null,null,null,"Profit",{"$f":"L34-L38","v":27000}]

{"sheet":"Calculation Options","index":46,"n_rows":2,"n_cols":1,"rows_kept":2,"cut":false,"hidden":true,"merged":[]}
[]
["© S. Christian Albright, 2011, All Rights Reserved"]

{"sheet":"AutoSum Button","index":47,"n_rows":21,"n_cols":14,"rows_kept":21,"cut":false,"hidden":true,"merged":[]}
[]
["© S. Christian Albright, 2011, All Rights Reserved"]
[]
[]
[]
[]
[]
[]
[]
[]
[]
[]
[]
[]
[]
[]
[null,null,null,null,null,null,null,null,null,null,51,94,15,7]
[null,null,null,null,null,null,null,null,null,null,37,6,2,41]
[null,null,null,null,null,null,null,null,null,null,13,83,29,88]
[null,null,null,null,null,null,null,null,null,null,73,64,46,32]
[null,null,null,null,null,null,null,null,null,null,38,11,3,80]

{"sheet":"Evaluating a formula","index":48,"n_rows":24,"n_cols":14,"rows_kept":24,"cut":false,"hidden":true,"merged":[]}
[]
["© S. Christian Albright, 2011, All Rights Reserved"]
[]
[]
[]
[]
[]
[]
[]
[]
[null,null,null,null,null,null,null,null,null,null,"Person","Status","Last Invoice","Category"]
[null,null,null,null,null,null,null,null,null,null,1,"D",859.69,{"$f":"IF(AND(OR(L12=\"A\",L12=\"B\"),M12>=3000),\"Excellent\",IF(OR(AND(OR(L12=\"A\",L12=\"B\"),M12>=2000),M12>=3500),\"Good\",\"Ok\"))","v":"Ok"}]
[null,null,null,null,null,null,null,null,null,null,2,"B",3297.24,{"$f":"IF(AND(OR(L13=\"A\",L13=\"B\"),M13>=3000),\"Excellent\",IF(OR(AND(OR(L13=\"A\",L13=\"B\"),M13>=2000),M13>=3500),\"Good\",\"Ok\"))","v":"Excellent"}]
[null,null,null,null,null,null,null,null,null,null,3,"A",2130,"Good"]
[null,null,null,null,null,null,null,null,null,null,4,"C",1574.8,"Ok"]
[null,null,null,null,null,null,null,null,null,null,5,"D",3729.78,"Good"]
[null,null,null,null,null,null,null,null,null,null,6,"B",1400.08,"Ok"]
[null,null,null,null,null,null,null,null,null,null,7,"D",2593.58,"Ok"]
[null,null,null,null,null,null,null,null,null,null,8,"C",3827.74,"Good"]
[null,null,null,null,null,null,null,null,null,null,9,"A",3047,"Excellent"]
[null,null,null,null,null,null,null,null,null,null,10,"D",1802.1,"Ok"]
[null,null,null,null,null,null,null,null,null,null,11,"A",3346.41,"Excellent"]
[null,null,null,null,null,null,null,null,null,null,12,"A",1728.75,"Ok"]
[null,null,null,null,null,null,null,null,null,null,13,"C",1421.96,"Ok"]

{"sheet":"External Formula References","index":49,"n_rows":6,"n_cols":15,"rows_kept":6,"cut":false,"hidden":true,"merged":[]}
[]
["© S. Christian Albright, 2011, All Rights Reserved"]
[null,null,null,null,null,null,null,null,null,null,"Average invoice",{"$f":"AVERAGE('Evaluating a formula'!M12:M24)","v":2366.0869230769231},null,"Tax rate",1.05]
[null,null,null,null,null,null,null,null,null,null,"Avg invoice with tax",{"$f":"AVERAGE('Evaluating a formula'!M12:M24)*'External Formula References'!O3","v":2484.3912692307695}]
[]
[null,null,null,null,null,null,null,null,null,null,"Average score",{"$f":"AVERAGE(IF!L25:L30)","v":75}]

{"sheet":"Working with Charts","index":50,"n_rows":2,"n_cols":1,"rows_kept":2,"cut":false,"hidden":true,"merged":[]}
[]
["© S. Christian Albright, 2011, All Rights Reserved"]

{"sheet":"Creating a Chart","index":51,"n_rows":109,"n_cols":23,"rows_kept":109,"cut":false,"hidden":true,"merged":[]}
[]
["© S. Christian Albright, 2011, All Rights Reserved"]
[null,null,null,null,null,null,null,null,null,null,"Month","Sales"]
[null,null,null,null,null,null,null,null,null,null,"2009-01-01",8627]
[null,null,null,null,null,null,null,null,null,null,"2009-02-01",5343]
[null,null,null,null,null,null,null,null,null,null,"2009-03-01",6244]
[null,null,null,null,null,null,null,null,null,null,"2009-04-01",9451]
[null,null,null,null,null,null,null,null,null,null,"2009-05-01",6698]
[null,null,null,null,null,null,null,null,null,null,"2009-06-01",6752]
[null,null,null,null,null,null,null,null,null,null,"2009-07-01",5985]
[null,null,null,null,null,null,null,null,null,null,"2009-08-01",5586]
[null,null,null,null,null,null,null,null,null,null,"2009-09-01",8476]
[null,null,null,null,null,null,null,null,null,null,"2009-10-01",9191]
[null,null,null,null,null,null,null,null,null,null,"2009-11-01",7242]
[null,null,null,null,null,null,null,null,null,null,"2009-12-01",8277]
[]
[]
[]
[null,null,null,null,null,null,null,null,null,null,"Month","Sales1","Sales2"]
[null,null,null,null,null,null,null,null,null,null,"2009-01-01",8627,8452]
[null,null,null,null,null,null,null,null,null,null,"2009-02-01",5343,6801]
[null,null,null,null,null,null,null,null,null,null,"2009-03-01",6244,5497]
[null,null,null,null,null,null,null,null,null,null,"2009-04-01",9451,10329]
[null,null,null,null,null,null,null,null,null,null,"2009-05-01",6698,5995]
[null,null,null,null,null,null,null,null,null,null,"2009-06-01",6752,8103]
[null,null,null,null,null,null,null,null,null,null,"2009-07-01",5985,6386]
[null,null,null,null,null,null,null,null,null,null,"2009-08-01",5586,5047]
[null,null,null,null,null,null,null,null,null,null,"2009-09-01",8476,8641]
[null,null,null,null,null,null,null,null,null,null,"2009-10-01",9191,10696]
[null,null,null,null,null,null,null,null,null,null,"2009-11-01",7242,6914]
[null,null,null,null,null,null,null,null,null,null,"2009-12-01",8277,9004]
[]
[]
[]
[null,null,null,null,null,null,null,null,null,null,"Month","2009-01-01","2009-02-01","2009-03-01","2009-04-01","2009-05-01","2009-06-01","2009-07-01","2009-08-01","2009-09-01","2009-10-01","2009-11-01","2009-12-01"]
[null,null,null,null,null,null,null,null,null,null,"Sales1",8627,5343,6244,9451,6698,6752,5985,5586,8476,9191,7242,8277]
[null,null,null,null,null,null,null,null,null,null,"Sales2",8452,6801,5497,10329,5995,8103,6386,5047,8641,10696,6914,9004]
[]
[]
[]
[]
[]
[]
[]
[]
[]
[]
[]
[]
[]
[]
[]
[null,null,null,null,null,null,null,null,null,null,null,"Product1","Product2","Product3","Product4"]
[null,null,null,null,null,null,null,null,null,null,"Region1",4749,1637,1002,4212]
[null,null,null,null,null,null,null,null,null,null,"Region2",1187,2259,4236,2711]
[null,null,null,null,null,null,null,null,null,null,"Region3",2973,3779,4419,1881]
[null,null,null,null,null,null,null,null,null,null,"Region4",4570,3677,3682,3020]
[null,null,null,null,null,null,null,null,null,null,"Region5",3494,1040,4637,1808]
[null,null,null,null,null,null,null,null,null,null,"Region6",2158,4644,1296,3920]
[]
[]
[]
[]
[]
[]
[]
[null,null,null,null,null,null,null,null,null,null,null,"2009-01-01","2009-02-01","2009-03-01","2009-04-01","2009-05-01","2009-06-01"]
[null,null,null,null,null,null,null,null,null,null,"Product1",1191,2116,1328,2136,2352,4156]
[null,null,null,null,null,null,null,null,null,null,"Product2",3147,3751,3954,4314,4194,2442]
[null,null,null,null,null,null,null,null,null,null,"Product3",2959,3628,3628,4529,2548,4415]
[null,null,null,null,null,null,null,null,null,null,"Product4",1740,2733,4310,2228,1313,2675]
[null,null,null,null,null,null,null,null,null,null,"Product5",4730,1058,4800,2156,2518,2917]
[null,null,null,null,null,null,null,null,null,null,"Product6",4970,4947,2707,1134,1787,1927]
[]
[]
[]
[]
[]
[null,null,null,null,null,null,null,null,null,null,"Month","Junk1","Junk2","Sales1","Sales2"]
[null,null,null,null,null,null,null,null,null,null,"2009-01-01",29,27,2625,4139]
[null,null,null,null,null,null,null,null,null,null,"2009-02-01",74,23,1776,4955]
[null,null,null,null,null,null,null,null,null,null,"2009-03-01",78,59,2537,2379]
[null,null,null,null,null,null,null,null,null,null,"2009-04-01",6,12,4360,4631]
[null,null,null,null,null,null,null,null,null,null,"2009-05-01",69,2,3636,2413]
[null,null,null,null,null,null,null,null,null,null,"2009-06-01",62,3,2135,4187]
[]
[]
[]
[]
[]
[]
[]
[]
[]
[]
[]
[]
[]
[null,null,null,null,null,null,null,null,null,null,"Person","Height","Weight"]
[null,null,null,null,null,null,null,null,null,null,1,60,155]
[null,null,null,null,null,null,null,null,null,null,2,61,162]
[null,null,null,null,null,null,null,null,null,null,3,62,162]
[null,null,null,null,null,null,null,null,null,null,4,63,162]
[null,null,null,null,null,null,null,null,null,null,5,63,164]
[null,null,null,null,null,null,null,null,null,null,6,65,168]
[null,null,null,null,null,null,null,null,null,null,7,70,175]
[null,null,null,null,null,null,null,null,null,null,8,72,199]
[null,null,null,null,null,null,null,null,null,null,9,72,215]
[null,null,null,null,null,null,null,null,null,null,10,76,241]

{"sheet":"Locating a chart","index":52,"n_rows":15,"n_cols":12,"rows_kept":15,"cut":false,"hidden":true,"merged":[]}
[]
["© S. Christian Albright, 2011, All Rights Reserved"]
[null,null,null,null,null,null,null,null,null,null,"Month","Sales"]
[null,null,null,null,null,null,null,null,null,null,"2009-01-01",8627]
[null,null,null,null,null,null,null,null,null,null,"2009-02-01",5343]
[null,null,null,null,null,null,null,null,null,null,"2009-03-01",6244]
[null,null,null,null,null,null,null,null,null,null,"2009-04-01",9451]
[null,null,null,null,null,null,null,null,null,null,"2009-05-01",6698]
[null,null,null,null,null,null,null,null,null,null,"2009-06-01",6752]
[null,null,null,null,null,null,null,null,null,null,"2009-07-01",5985]
[null,null,null,null,null,null,null,null,null,null,"2009-08-01",5586]
[null,null,null,null,null,null,null,null,null,null,"2009-09-01",8476]
[null,null,null,null,null,null,null,null,null,null,"2009-10-01",9191]
[null,null,null,null,null,null,null,null,null,null,"2009-11-01",7242]
[null,null,null,null,null,null,null,null,null,null,"2009-12-01",8277]

{"sheet":"Modifying a Chart","index":53,"n_rows":15,"n_cols":12,"rows_kept":15,"cut":false,"hidden":true,"merged":[]}
[]
["© S. Christian Albright, 2011, All Rights Reserved"]
[null,null,null,null,null,null,null,null,null,null,"Sales1","Sales2"]
[null,null,null,null,null,null,null,null,null,null,8627,23919]
[null,null,null,null,null,null,null,null,null,null,5343,19507]
[null,null,null,null,null,null,null,null,null,null,6244,34377]
[null,null,null,null,null,null,null,null,null,null,9451,30285]
[null,null,null,null,null,null,null,null,null,null,6698,19673]
[null,null,null,null,null,null,null,null,null,null,6752,21007]
[null,null,null,null,null,null,null,null,null,null,5985,16644]
[null,null,null,null,null,null,null,null,null,null,5586,21022]
[null,null,null,null,null,null,null,null,null,null,8476,23928]
[null,null,null,null,null,null,null,null,null,null,9191,31403]
[null,null,null,null,null,null,null,null,null,null,7242,25333]
[null,null,null,null,null,null,null,null,null,null,8277,28071]

{"sheet":"Working with Functions","index":54,"n_rows":12,"n_cols":13,"rows_kept":12,"cut":false,"hidden":true,"merged":[]}
[]
["© S. Christian Albright, 2011, All Rights Reserved"]
[null,null,null,null,null,null,null,null,null,null,"Bob","Mary","Jack"]
[null,null,null,null,null,null,null,null,null,null,10,6,5]
[null,null,null,null,null,null,null,null,null,null,5,11,7]
[null,null,null,null,null,null,null,null,null,null,13,10,6]
[null,null,null,null,null,null,null,null,null,null,2,15,19]
[null,null,null,null,null,null,null,null,null,null,9,5,20]
[null,null,null,null,null,null,null,null,null,null,18,16,19]
[null,null,null,null,null,null,null,null,null,null,18,15,1]
[null,null,null,null,null,null,null,null,null,null,2,19,10]
[null,null,null,null,null,null,null,null,null,null,18,14,6]

{"sheet":"Function help","index":55,"n_rows":8,"n_cols":23,"rows_kept":8,"cut":false,"hidden":true,"merged":[]}
[]
["© S. Christian Albright, 2011, All Rights Reserved"]
[null,null,null,null,null,null,null,null,null,null,"Payments for Mr. Jones, who just bought a new car"]
[]
[null,null,null,null,null,null,null,null,null,null,"Amount financed",15000]
[null,null,null,null,null,null,null,null,null,null,"Annual interest rate",8.8999999999999996E-2]
[null,null,null,null,null,null,null,null,null,null,"Term (number of months financed)",36]
[null,null,null,null,null,null,null,null,null,null,"Monthly payment",null,null,null,null,null,null,null,null,null,null,"Payment",{"$f":"PMT(L6/12,L7,-L5)","v":476.2981772811147}]

{"sheet":"Two Essential Functions","index":56,"n_rows":2,"n_cols":1,"rows_kept":2,"cut":false,"hidden":true,"merged":[]}
[]
["© S. Christian Albright, 2011, All Rights Reserved"]

{"sheet":"IF","index":57,"n_rows":67,"n_cols":23,"rows_kept":67,"cut":false,"hidden":true,"merged":[]}
[]
["© S. Christian Albright, 2011, All Rights Reserved"]
[null,null,null,null,null,null,null,null,null,null,"For each product, if the end inventory is less than or equal to 50 units,"]
[null,null,null,null,null,null,null,null,null,null,"enough units are ordered to bring stock back up to 200; otherwise, no"]
[null,null,null,null,null,null,null,null,null,null,"units of that product are ordered"]
[]
[null,null,null,null,null,null,null,null,null,null,"Product","End inventory","Order placed (yes or no)?","# of units ordered",null,null,null,null,null,null,null,"Order placed?","# ordered"]
[null,null,null,null,null,null,null,null,null,null,1,100,null,null,null,null,null,null,null,null,null,{"$f":"IF(L8<=50,\"yes\",\"no\")","v":"no"},{"$f":"IF(L8<=50,200-L8,0)","v":0}]
[null,null,null,null,null,null,null,null,null,null,2,40,null,null,null,null,null,null,null,null,null,{"$f":"IF(L9<=50,\"yes\",\"no\")","v":"yes"},{"$f":"IF(L9<=50,200-L9,0)","v":160}]
[null,null,null,null,null,null,null,null,null,null,3,20,null,null,null,null,null,null,null,null,null,{"$f":"IF(L10<=50,\"yes\",\"no\")","v":"yes"},{"$f":"IF(L10<=50,200-L10,0)","v":180}]
[null,null,null,null,null,null,null,null,null,null,4,70,null,null,null,null,null,null,null,null,null,{"$f":"IF(L11<=50,\"yes\",\"no\")","v":"no"},{"$f":"IF(L11<=50,200-L11,0)","v":0}]
[]
[]
[]
[]
[]
[]
[]
[]
[]
[null,null,null,null,null,null,null,null,null,null,"Each student gets an A (if score is 90 or above), S for satisfactory (if score"]
[null,null,null,null,null,null,null,null,null,null,"if 60 or above but less than 90) or U for unsatisfactory if score is below 60"]
[]
[null,null,null,null,null,null,null,null,null,null,"Student","Score","Grade",null,null,null,null,null,null,null,null,"Grade"]
[null,null,null,null,null,null,null,null,null,null,1,70,null,null,null,null,null,null,null,null,null,{"$f":"IF(L25>=90,\"A\",IF(L25>=60,\"S\",\"U\"))","v":"S"}]
[null,null,null,null,null,null,null,null,null,null,2,95,null,null,null,null,null,null,null,null,null,"A"]
[null,null,null,null,null,null,null,null,null,null,3,55,null,null,null,null,null,null,null,null,null,"U"]
[null,null,null,null,null,null,null,null,null,null,4,80,null,null,null,null,null,null,null,null,null,"S"]
[null,null,null,null,null,null,null,null,null,null,5,60,null,null,null,null,null,null,null,null,null,"S"]
[null,null,null,null,null,null,null,null,null,null,6,90,null,null,null,null,null,null,null,null,null,"A"]
[]
[]
[]
[]
[]
[]
[]
[]
[]
[]
[]
[]
[null,null,null,null,null,null,null,null,null,null,"Investor sells stock only if its price has gone up three consecutive days"]
[null,null,null,null,null,null,null,null,null,null,"(including the current day)"]
[]
[null,null,null,null,null,null,null,null,null,null,"Day","Price change","Sell (yes or no)?"]
[null,null,null,null,null,null,null,null,null,null,1,"Up",null,null,null,null,null,null,null,null,null,"Sell?"]
[null,null,null,null,null,null,null,null,null,null,2,"Down"]
[null,null,null,null,null,null,null,null,null,null,3,"Up",null,null,null,null,null,null,null,null,null,{"$f":"IF(AND(L47=\"Up\",L48=\"Up\",L49=\"Up\"),\"Yes\",\"No\")","v":"No"}]
[null,null,null,null,null,null,null,null,null,null,4,"Up",null,null,null,null,null,null,null,null,null,{"$f":"IF(AND(L48=\"Up\",L49=\"Up\",L50=\"Up\"),\"Yes\",\"No\")","v":"No"}]
[null,null,null,null,null,null,null,null,null,null,5,"Up",null,null,null,null,null,null,null,null,null,{"$f":"IF(AND(L49=\"Up\",L50=\"Up\",L51=\"Up\"),\"Yes\",\"No\")","v":"Yes"}]
[null,null,null,null,null,null,null,null,null,null,6,"Down",null,null,null,null,null,null,null,null,null,{"$f":"IF(AND(L50=\"Up\",L51=\"Up\",L52=\"Up\"),\"Yes\",\"No\")","v":"No"}]
[]
[]
[]
[]
[]
[null,null,null,null,null,null,null,null,null,null,"Any student who scores at least 95 on any of the exams gets a bonus"]
[null,null,null,null,null,null,null,null,null,null,"which is 1% of their total score."]
[]
[null,null,null,null,null,null,null,null,null,null,"Student","Exam 1","Exam 2","Exam 3","Exam 4","Bonus",null,null,null,null,null,"Bonus"]
[null,null,null,null,null,null,null,null,null,null,1,87,83,83,80,null,null,null,null,null,null,{"$f":"IF(OR(L62>=95,M62>=95,N62>=95,O62>=95),0.01*SUM(L62:O62),0)","v":0}]
[null,null,null,null,null,null,null,null,null,null,2,77,72,74,97,null,null,null,null,null,null,3.2]
[null,null,null,null,null,null,null,null,null,null,3,80,95,79,75,null,null,null,null,null,null,3.29]
[null,null,null,null,null,null,null,null,null,null,4,82,87,96,88,null,null,null,null,null,null,3.5300000000000002]
[null,null,null,null,null,null,null,null,null,null,5,78,94,81,79,null,null,null,null,null,null,0]
[null,null,null,null,null,null,null,null,null,null,6,75,83,80,72,null,null,null,null,null,null,0]

{"sheet":"VLOOKUP","index":58,"n_rows":68,"n_cols":25,"rows_kept":68,"cut":false,"hidden":true,"merged":[]}
[]
["© S. Christian Albright, 2011, All Rights Reserved"]
[]
[]
[]
[]
[]
[]
[]
[]
[]
[]
[]
[]
[]
[]
[]
[]
[]
[]
[]
[]
[]
[]
[]
[]
[]
[]
[]
[]
[]
[]
[]
[]
[]
[]
[null,null,null,null,null,null,null,null,null,null,"Student","Score","Grade",null,"Lookup table"]
[null,null,null,null,null,null,null,null,null,null,1,67,{"$f":"VLOOKUP(L38,$O$38:$P$42,2)","v":"D"},null,0,"F"]
[null,null,null,null,null,null,null,null,null,null,2,72,"C",null,60,"D"]
[null,null,null,null,null,null,null,null,null,null,3,77,"C",null,70,"C"]
[null,null,null,null,null,null,null,null,null,null,4,70,"C",null,80,"B"]
[null,null,null,null,null,null,null,null,null,null,5,66,"D",null,90,"A"]
[null,null,null,null,null,null,null,null,null,null,6,81,"B"]
[null,null,null,null,null,null,null,null,null,null,7,93,"A"]
[null,null,null,null,null,null,null,null,null,null,8,59,"F"]
[null,null,null,null,null,null,null,null,null,null,9,90,"A"]
[]
[null,null,null,null,null,null,null,null,null,null,"Order #","Units sold","Total cost",null,null,null,null,null,null,null,null,"Total cost",null,"Lookup table"]
[null,null,null,null,null,null,null,null,null,null,1,373,null,null,null,null,null,null,null,null,null,{"$f":"VLOOKUP(L49,$X$49:$Y$51,2)*L49","v":932.5},null,0,3]
[null,null,null,null,null,null,null,null,null,null,2,475,null,null,null,null,null,null,null,null,null,950,null,300,2.5]
[null,null,null,null,null,null,null,null,null,null,3,459,null,null,null,null,null,null,null,null,null,918,null,400,2]
[null,null,null,null,null,null,null,null,null,null,4,441,null,null,null,null,null,null,null,null,null,882]
[null,null,null,null,null,null,null,null,null,null,5,238,null,null,null,null,null,null,null,null,null,714]
[null,null,null,null,null,null,null,null,null,null,6,349,null,null,null,null,null,null,null,null,null,872.5]
[null,null,null,null,null,null,null,null,null,null,7,344,null,null,null,null,null,null,null,null,null,860]
[null,null,null,null,null,null,null,null,null,null,8,203,null,null,null,null,null,null,null,null,null,{"$f":"VLOOKUP(L56,$X$49:$Y$51,2)*L56","v":609}]
[]
[]
[]
[null,null,null,null,null,null,null,null,null,null,"Student","Grade","Gradepoints",null,"Grade","Gradepoints"]
[null,null,null,null,null,null,null,null,null,null,"Adams","B",null,null,"A",4]
[null,null,null,null,null,null,null,null,null,null,"Davis","A-",null,null,"A-",3.7]
[null,null,null,null,null,null,null,null,null,null,"Edwards","C+",null,null,"B+",3.3]
[null,null,null,null,null,null,null,null,null,null,"Johnson","B-",null,null,"B",3]
[null,null,null,null,null,null,null,null,null,null,"Myers","B+",null,null,"B-",2.7]
[null,null,null,null,null,null,null,null,null,null,"Smith","A",null,null,"C+",2.2999999999999998]
[null,null,null,null,null,null,null,null,null,null,"Thomson","C",null,null,"C",2]
[null,null,null,null,null,null,null,null,null,null,"Williams","D",null,null,"C-",1.7]

{"sheet":"Counting, Summing Functions","index":59,"n_rows":2,"n_cols":1,"rows_kept":2,"cut":false,"hidden":true,"merged":[]}
[]
["© S. Christian Albright, 2011, All Rights Reserved"]

{"sheet":"SUM, AVERAGE","index":60,"n_rows":88,"n_cols":15,"rows_kept":88,"cut":false,"hidden":true,"merged":[]}
[]
["© S. Christian Albright, 2011, All Rights Reserved"]
[null,null,null,null,null,null,null,null,null,null,"Table of costs for units produced in one month (along side)"]
[null,null,null,null,null,null,null,null,null,null,"for use in another month (along top)"]
[]
[null,null,null,null,null,null,null,null,null,null,null,"Feb","Mar","Apr","May"]
[null,null,null,null,null,null,null,null,null,null,"Jan",{"$f":"ROUND(INT(RAND()*4000+3000),-2)","v":3400},{"$f":"ROUND(INT(RAND()*4000+3000),-2)","v":4100},{"$f":"ROUND(INT(RAND()*4000+3000),-2)","v":6800},{"$f":"ROUND(INT(RAND()*4000+3000),-2)","v":3700}]
[null,null,null,null,null,null,null,null,null,null,"Feb",null,{"$f":"ROUND(INT(RAND()*4000+3000),-2)","v":4000},{"$f":"ROUND(INT(RAND()*4000+3000),-2)","v":4500},{"$f":"ROUND(INT(RAND()*4000+3000),-2)","v":5200}]
[null,null,null,null,null,null,null,null,null,null,"Mar",null,null,{"$f":"ROUND(INT(RAND()*4000+3000),-2)","v":3100},{"$f":"ROUND(INT(RAND()*4000+3000),-2)","v":5700}]
[null,null,null,null,null,null,null,null,null,null,"Apr",null,null,null,{"$f":"ROUND(INT(RAND()*4000+3000),-2)","v":4500}]
[]
[null,null,null,null,null,null,null,null,null,null,"Total cost"]
[]
[]
[]
[]
[]
[]
[]
[]
[]
[]
[]
[]
[]
[]
[null,null,null,null,null,null,null,null,null,null,"Student ID","Exam score",null,null,"Average (only for students who took the exam)"]
[null,null,null,null,null,null,null,null,null,null,1533,68]
[null,null,null,null,null,null,null,null,null,null,8031,74]
[null,null,null,null,null,null,null,null,null,null,9859,80,null,null,"Average (giving 0s to students who were absent)"]
[null,null,null,null,null,null,null,null,null,null,9106,63]
[null,null,null,null,null,null,null,null,null,null,3535,72]
[null,null,null,null,null,null,null,null,null,null,8192,"Absent"]
[null,null,null,null,null,null,null,null,null,null,6102,85]
[null,null,null,null,null,null,null,null,null,null,6774,70]
[null,null,null,null,null,null,null,null,null,null,7558,64]
[null,null,null,null,null,null,null,null,null,null,314,72]
[null,null,null,null,null,null,null,null,null,null,9082,81]
[null,null,null,null,null,null,null,null,null,null,2397,75]
[null,null,null,null,null,null,null,null,null,null,2517,80]
[null,null,null,null,null,null,null,null,null,null,2432,73]
[null,null,null,null,null,null,null,null,null,null,6016,63]
[null,null,null,null,null,null,null,null,null,null,5269,80]
[null,null,null,null,null,null,null,null,null,null,4847,88]
[null,null,null,null,null,null,null,null,null,null,6537,71]
[null,null,null,null,null,null,null,null,null,null,9922,73]
[null,null,null,null,null,null,null,null,null,null,4525,71]
[null,null,null,null,null,null,null,null,null,null,1491,71]
[null,null,null,null,null,null,null,null,null,null,7897,68]
[null,null,null,null,null,null,null,null,null,null,4088,82]
[null,null,null,null,null,null,null,null,null,null,166,76]
[null,null,null,null,null,null,null,null,null,null,7925,75]
[null,null,null,null,null,null,null,null,null,null,6405,81]
[null,null,null,null,null,null,null,null,null,null,802,76]
[null,null,null,null,null,null,null,null,null,null,2931,83]
[null,null,null,null,null,null,null,null,null,null,7625,67]
[null,null,null,null,null,null,null,null,null,null,2628,67]
[null,null,null,null,null,null,null,null,null,null,5417,92]
[null,null,null,null,null,null,null,null,null,null,7804,72]
[null,null,null,null,null,null,null,null,null,null,3994,69]
[null,null,null,null,null,null,null,null,null,null,394,85]
[null,null,null,null,null,null,null,null,null,null,8847,78]
[null,null,null,null,null,null,null,null,null,null,7855,81]
[null,null,null,null,null,null,null,null,null,null,8668,"Absent"]
[null,null,null,null,null,null,null,null,null,null,3738,77]
[null,null,null,null,null,null,null,null,null,null,5534,70]
[null,null,null,null,null,null,null,null,null,null,6965,71]
[null,null,null,null,null,null,null,null,null,null,8863,69]
[null,null,null,null,null,null,null,null,null,null,8762,73]
[null,null,null,null,null,null,null,null,null,null,6466,60]
[null,null,null,null,null,null,null,null,null,null,6100,76]
[null,null,null,null,null,null,null,null,null,null,1878,74]
[null,null,null,null,null,null,null,null,null,null,5970,67]
[null,null,null,null,null,null,null,null,null,null,9691,62]
[null,null,null,null,null,null,null,null,null,null,8666,77]
[null,null,null,null,null,null,null,null,null,null,4865,91]
[null,null,null,null,null,null,null,null,null,null,6198,81]
[null,null,null,null,null,null,null,null,null,null,8554,87]
[null,null,null,null,null,null,null,null,null,null,6753,76]
[null,null,null,null,null,null,null,null,null,null,9574,77]
[null,null,null,null,null,null,null,null,null,null,3891,81]
[null,null,null,null,null,null,null,null,null,null,8186,"Absent"]
[null,null,null,null,null,null,null,null,null,null,1306,73]
[null,null,null,null,null,null,null,null,null,null,6835,83]
[null,null,null,null,null,null,null,null,null,null,3136,59]
[null,null,null,null,null,null,null,null,null,null,4938,74]
[null,null,null,null,null,null,null,null,null,null,4807,74]
[null,null,null,null,null,null,null,null,null,null,4421,78]

{"sheet":"COUNT, COUNTA, COUNTBLANK","index":61,"n_rows":75,"n_cols":14,"rows_kept":75,"cut":false,"hidden":true,"merged":[]}
[]
["© S. Christian Albright, 2011, All Rights Reserved"]
[null,null,null,null,null,null,null,null,null,null,"Student","Exam score",null,"Number enrolled"]
[null,null,null,null,null,null,null,null,null,null,1,62]
[null,null,null,null,null,null,null,null,null,null,2,73]
[null,null,null,null,null,null,null,null,null,null,3,74,null,"Number who took exam"]
[null,null,null,null,null,null,null,null,null,null,4]
[null,null,null,null,null,null,null,null,null,null,5,77]
[null,null,null,null,null,null,null,null,null,null,6,57,null,"Number who were absent"]
[null,null,null,null,null,null,null,null,null,null,7,67]
[null,null,null,null,null,null,null,null,null,null,8,90]
[null,null,null,null,null,null,null,null,null,null,9,77]
[null,null,null,null,null,null,null,null,null,null,10,83]
[null,null,null,null,null,null,null,null,null,null,11,71]
[null,null,null,null,null,null,null,null,null,null,12,75]
[null,null,null,null,null,null,null,null,null,null,13,72]
[null,null,null,null,null,null,null,null,null,null,14,82]
[null,null,null,null,null,null,null,null,null,null,15,68]
[null,null,null,null,null,null,null,null,null,null,16,86]
[null,null,null,null,null,null,null,null,null,null,17,77]
[null,null,null,null,null,null,null,null,null,null,18,68]
[null,null,null,null,null,null,null,null,null,null,19,86]
[null,null,null,null,null,null,null,null,null,null,20]
[null,null,null,null,null,null,null,null,null,null,21,80]
[null,null,null,null,null,null,null,null,null,null,22,81]
[null,null,null,null,null,null,null,null,null,null,23,84]
[null,null,null,null,null,null,null,null,null,null,24,71]
[null,null,null,null,null,null,null,null,null,null,25,76]
[null,null,null,null,null,null,null,null,null,null,26,81]
[null,null,null,null,null,null,null,null,null,null,27,99]
[null,null,null,null,null,null,null,null,null,null,28,72]
[null,null,null,null,null,null,null,null,null,null,29,78]
[null,null,null,null,null,null,null,null,null,null,30,67]
[null,null,null,null,null,null,null,null,null,null,31,89]
[null,null,null,null,null,null,null,null,null,null,32,70]
[null,null,null,null,null,null,null,null,null,null,33,77]
[null,null,null,null,null,null,null,null,null,null,34]
[null,null,null,null,null,null,null,null,null,null,35,83]
[null,null,null,null,null,null,null,null,null,null,36,74]
[null,null,null,null,null,null,null,null,null,null,37,87]
[null,null,null,null,null,null,null,null,null,null,38,75]
[null,null,null,null,null,null,null,null,null,null,39,86]
[null,null,null,null,null,null,null,null,null,null,40,77]
[null,null,null,null,null,null,null,null,null,null,41,73]
[null,null,null,null,null,null,null,null,null,null,42,74]
[null,null,null,null,null,null,null,null,null,null,43,79]
[null,null,null,null,null,null,null,null,null,null,44,80]
[null,null,null,null,null,null,null,null,null,null,45,77]
[null,null,null,null,null,null,null,null,null,null,46,72]
[null,null,null,null,null,null,null,null,null,null,47,77]
[null,null,null,null,null,null,null,null,null,null,48,71]
[null,null,null,null,null,null,null,null,null,null,49,70]
[null,null,null,null,null,null,null,null,null,null,50,68]
[null,null,null,null,null,null,null,null,null,null,51,79]
[null,null,null,null,null,null,null,null,null,null,52,75]
[null,null,null,null,null,null,null,null,null,null,53,80]
[null,null,null,null,null,null,null,null,null,null,54,73]
[null,null,null,null,null,null,null,null,null,null,55,61]
[null,null,null,null,null,null,null,null,null,null,56,62]
[null,null,null,null,null,null,null,null,null,null,57,68]
[null,null,null,null,null,null,null,null,null,null,58,92]
[null,null,null,null,null,null,null,null,null,null,59,85]
[null,null,null,null,null,null,null,null,null,null,60,77]
[null,null,null,null,null,null,null,null,null,null,61,79]
[null,null,null,null,null,null,null,null,null,null,62,86]
[null,null,null,null,null,null,null,null,null,null,63,83]
[null,null,null,null,null,null,null,null,null,null,64,83]
[null,null,null,null,null,null,null,null,null,null,65,76]
[null,null,null,null,null,null,null,null,null,null,66,89]
[null,null,null,null,null,null,null,null,null,null,67,72]
[null,null,null,null,null,null,null,null,null,null,68,69]
[null,null,null,null,null,null,null,null,null,null,69,66]
[null,null,null,null,null,null,null,null,null,null,70,71]
[null,null,null,null,null,null,null,null,null,null,71,80]
[null,null,null,null,null,null,null,null,null,null,72,61]

{"sheet":"COUNTIF, SUMIF, AVERAGEIF","index":62,"n_rows":75,"n_cols":26,"rows_kept":75,"cut":false,"hidden":true,"merged":[]}
[]
["© S. Christian Albright, 2011, All Rights Reserved"]
[null,null,null,null,null,null,null,null,null,null,"Student","Gender","Age","Exam score",null,"Gender condition","Male"]
[null,null,null,null,null,null,null,null,null,null,1,"Male",18,62,null,"Age cutoff",20]
[null,null,null,null,null,null,null,null,null,null,2,"Female",21,73,null,"Exam score cutoff",87]
[null,null,null,null,null,null,null,null,null,null,3,"Female",18,74]
[null,null,null,null,null,null,null,null,null,null,4,"Female",18,null,null,"# of \"high\" scores",null,null,null,null,null,null,null,null,null,{"$f":"COUNTIF(N4:N75,\">=\"&Q5)","v":6}]
[null,null,null,null,null,null,null,null,null,null,5,"Male",18,77]
[null,null,null,null,null,null,null,null,null,null,6,"Female",20,57,null,"Sum of scores for males",null,null,null,null,null,null,null,null,null,{"$f":"SUMIF(L4:L75,\"Male\",N4:N75)","v":2660}]
[null,null,null,null,null,null,null,null,null,null,7,"Female",18,67,null,"Average of scores for males",null,null,null,null,null,null,null,null,null,{"$f":"AVERAGEIF(L4:L75,\"Male\",N4:N75)","v":78.235294117647058}]
[null,null,null,null,null,null,null,null,null,null,8,"Male",19,90,null,"Sum of scores for \"young\" people",null,null,null,null,null,null,null,null,null,{"$f":"SUMIF(M4:M75,\"<\"&Q4,N4:N75)","v":2527}]
[null,null,null,null,null,null,null,null,null,null,9,"Male",19,77,null,"Average of scores for \"young\" people",null,null,null,null,null,null,null,null,null,{"$f":"AVERAGEIF(M4:M75,\"<\"&Q4,N4:N75)","v":76.575757575757578}]
[null,null,null,null,null,null,null,null,null,null,10,"Male",22,83,null,"Sum of scores for \"old\" people",null,null,null,null,null,null,null,null,null,{"$f":"SUMIF(M4:M75,\">=\"&Q4,N4:N75)","v":2733}]
[null,null,null,null,null,null,null,null,null,null,11,"Female",20,71,null,"Average of scores for \"old\" people",null,null,null,null,null,null,null,null,null,{"$f":"AVERAGEIF(M4:M75,\">=\"&Q4,N4:N75)","v":75.916666666666671}]
[null,null,null,null,null,null,null,null,null,null,12,"Female",20,75]
[null,null,null,null,null,null,null,null,null,null,13,"Female",20,72]
[null,null,null,null,null,null,null,null,null,null,14,"Female",24,82]
[null,null,null,null,null,null,null,null,null,null,15,"Female",18,68]
[null,null,null,null,null,null,null,null,null,null,16,"Male",18,86]
[null,null,null,null,null,null,null,null,null,null,17,"Female",24,77]
[null,null,null,null,null,null,null,null,null,null,18,"Male",21,68]
[null,null,null,null,null,null,null,null,null,null,19,"Male",20,86]
[null,null,null,null,null,null,null,null,null,null,20,"Female",21]
[null,null,null,null,null,null,null,null,null,null,21,"Male",20,80]
[null,null,null,null,null,null,null,null,null,null,22,"Female",18,81]
[null,null,null,null,null,null,null,null,null,null,23,"Male",20,84]
[null,null,null,null,null,null,null,null,null,null,24,"Female",19,71]
[null,null,null,null,null,null,null,null,null,null,25,"Female",18,76]
[null,null,null,null,null,null,null,null,null,null,26,"Male",21,81]
[null,null,null,null,null,null,null,null,null,null,27,"Female",18,99]
[null,null,null,null,null,null,null,null,null,null,28,"Male",20,72]
[null,null,null,null,null,null,null,null,null,null,29,"Female",18,78]
[null,null,null,null,null,null,null,null,null,null,30,"Female",21,67]
[null,null,null,null,null,null,null,null,null,null,31,"Female",21,89]
[null,null,null,null,null,null,null,null,null,null,32,"Female",19,70]
[null,null,null,null,null,null,null,null,null,null,33,"Female",19,77]
[null,null,null,null,null,null,null,null,null,null,34,"Female",18]
[null,null,null,null,null,null,null,null,null,null,35,"Male",22,83]
[null,null,null,null,null,null,null,null,null,null,36,"Female",19,74]
[null,null,null,null,null,null,null,null,null,null,37,"Male",19,87]
[null,null,null,null,null,null,null,null,null,null,38,"Male",18,75]
[null,null,null,null,null,null,null,null,null,null,39,"Male",20,86]
[null,null,null,null,null,null,null,null,null,null,40,"Male",21,77]
[null,null,null,null,null,null,null,null,null,null,41,"Male",20,73]
[null,null,null,null,null,null,null,null,null,null,42,"Male",20,74]
[null,null,null,null,null,null,null,null,null,null,43,"Female",20,79]
[null,null,null,null,null,null,null,null,null,null,44,"Male",18,80]
[null,null,null,null,null,null,null,null,null,null,45,"Male",20,77]
[null,null,null,null,null,null,null,null,null,null,46,"Female",21,72]
[null,null,null,null,null,null,null,null,null,null,47,"Male",19,77]
[null,null,null,null,null,null,null,null,null,null,48,"Male",19,71]
[null,null,null,null,null,null,null,null,null,null,49,"Female",23,70]
[null,null,null,null,null,null,null,null,null,null,50,"Female",19,68]
[null,null,null,null,null,null,null,null,null,null,51,"Female",24,79]
[null,null,null,null,null,null,null,null,null,null,52,"Male",19,75]
[null,null,null,null,null,null,null,null,null,null,53,"Male",18,80]
[null,null,null,null,null,null,null,null,null,null,54,"Female",19,73]
[null,null,null,null,null,null,null,null,null,null,55,"Female",21,61]
[null,null,null,null,null,null,null,null,null,null,56,"Female",21,62]
[null,null,null,null,null,null,null,null,null,null,57,"Male",19,68]
[null,null,null,null,null,null,null,null,null,null,58,"Male",19,92]
[null,null,null,null,null,null,null,null,null,null,59,"Female",20,85]
[null,null,null,null,null,null,null,null,null,null,60,"Male",22,77]
[null,null,null,null,null,null,null,null,null,null,61,"Female",19,79]
[null,null,null,null,null,null,null,null,null,null,62,"Male",20,86]
[null,null,null,null,null,null,null,null,null,null,63,"Female",19,83]
[null,null,null,null,null,null,null,null,null,null,64,"Male",19,83]
[null,null,null,null,null,null,null,null,null,null,65,"Male",18,76]
[null,null,null,null,null,null,null,null,null,null,66,"Female",24,89]
[null,null,null,null,null,null,null,null,null,null,67,"Female",18,72]
[null,null,null,null,null,null,null,null,null,null,68,"Female",21,69]
[null,null,null,null,null,null,null,null,null,null,69,"Male",23,66]
[null,null,null,null,null,null,null,null,null,null,70,"Male",24,71]
[null,null,null,null,null,null,null,null,null,null,71,"Male",20,80]
[null,null,null,null,null,null,null,null,null,null,72,"Female",18,61]

{"sheet":"COUNTIFS, SUMIFS, AVERAGEIFS","index":63,"n_rows":75,"n_cols":27,"rows_kept":75,"cut":false,"hidden":true,"merged":[]}
[]
["© S. Christian Albright, 2011, All Rights Reserved"]
[null,null,null,null,null,null,null,null,null,null,"Student","Gender","Age","Exam score",null,"Gender condition","Female"]
[null,null,null,null,null,null,null,null,null,null,1,"Male",18,62,null,"Age cutoff",20]
[null,null,null,null,null,null,null,null,null,null,2,"Female",21,73,null,"Exam score cutoff",87]
[null,null,null,null,null,null,null,null,null,null,3,"Female",18,1]
[null,null,null,null,null,null,null,null,null,null,4,"Female",18,65,null,"COUNTIFS question",null,null,null,null,null,null,null,null,null,null,{"$f":"COUNTIFS(L4:L75,Q3,M4:M75,\"<\"&Q4,N4:N75,\"<=\"&Q5)","v":18}]
[null,null,null,null,null,null,null,null,null,null,5,"Male",18,77]
[null,null,null,null,null,null,null,null,null,null,6,"Female",20,57,null,"SUMIFS question",null,null,null,null,null,null,null,null,null,null,{"$f":"SUMIFS(N4:N75,L4:L75,Q3,M4:M75,\"<\"&Q4)","v":1342}]
[null,null,null,null,null,null,null,null,null,null,7,"Female",18,67,null,"AVERAGEIFS question",null,null,null,null,null,null,null,null,null,null,{"$f":"AVERAGEIFS(N4:N75,L4:L75,Q3,M4:M75,\"<\"&Q4)","v":70.631578947368425}]
[null,null,null,null,null,null,null,null,null,null,8,"Male",19,90]
[null,null,null,null,null,null,null,null,null,null,9,"Male",19,77]
[null,null,null,null,null,null,null,null,null,null,10,"Male",22,83]
[null,null,null,null,null,null,null,null,null,null,11,"Female",20,71]
[null,null,null,null,null,null,null,null,null,null,12,"Female",20,75]
[null,null,null,null,null,null,null,null,null,null,13,"Female",20,72]
[null,null,null,null,null,null,null,null,null,null,14,"Female",24,82]
[null,null,null,null,null,null,null,null,null,null,15,"Female",18,68]
[null,null,null,null,null,null,null,null,null,null,16,"Male",18,86]
[null,null,null,null,null,null,null,null,null,null,17,"Female",24,77]
[null,null,null,null,null,null,null,null,null,null,18,"Male",21,68]
[null,null,null,null,null,null,null,null,null,null,19,"Male",20,86]
[null,null,null,null,null,null,null,null,null,null,20,"Female",21,89]
[null,null,null,null,null,null,null,null,null,null,21,"Male",20,80]
[null,null,null,null,null,null,null,null,null,null,22,"Female",18,81]
[null,null,null,null,null,null,null,null,null,null,23,"Male",20,84]
[null,null,null,null,null,null,null,null,null,null,24,"Female",19,71]
[null,null,null,null,null,null,null,null,null,null,25,"Female",18,76]
[null,null,null,null,null,null,null,null,null,null,26,"Male",21,81]
[null,null,null,null,null,null,null,null,null,null,27,"Female",18,99]
[null,null,null,null,null,null,null,null,null,null,28,"Male",20,72]
[null,null,null,null,null,null,null,null,null,null,29,"Female",18,78]
[null,null,null,null,null,null,null,null,null,null,30,"Female",21,67]
[null,null,null,null,null,null,null,null,null,null,31,"Female",21,89]
[null,null,null,null,null,null,null,null,null,null,32,"Female",19,70]
[null,null,null,null,null,null,null,null,null,null,33,"Female",19,77]
[null,null,null,null,null,null,null,null,null,null,34,"Female",18,79]
[null,null,null,null,null,null,null,null,null,null,35,"Male",22,83]
[null,null,null,null,null,null,null,null,null,null,36,"Female",19,74]
[null,null,null,null,null,null,null,null,null,null,37,"Male",19,87]
[null,null,null,null,null,null,null,null,null,null,38,"Male",18,75]
[null,null,null,null,null,null,null,null,null,null,39,"Male",20,86]
[null,null,null,null,null,null,null,null,null,null,40,"Male",21,77]
[null,null,null,null,null,null,null,null,null,null,41,"Male",20,73]
[null,null,null,null,null,null,null,null,null,null,42,"Male",20,74]
[null,null,null,null,null,null,null,null,null,null,43,"Female",20,79]
[null,null,null,null,null,null,null,null,null,null,44,"Male",18,80]
[null,null,null,null,null,null,null,null,null,null,45,"Male",20,77]
[null,null,null,null,null,null,null,null,null,null,46,"Female",21,72]
[null,null,null,null,null,null,null,null,null,null,47,"Male",19,77]
[null,null,null,null,null,null,null,null,null,null,48,"Male",19,71]
[null,null,null,null,null,null,null,null,null,null,49,"Female",23,70]
[null,null,null,null,null,null,null,null,null,null,50,"Female",19,68]
[null,null,null,null,null,null,null,null,null,null,51,"Female",24,79]
[null,null,null,null,null,null,null,null,null,null,52,"Male",19,75]
[null,null,null,null,null,null,null,null,null,null,53,"Male",18,80]
[null,null,null,null,null,null,null,null,null,null,54,"Female",19,73]
[null,null,null,null,null,null,null,null,null,null,55,"Female",21,61]
[null,null,null,null,null,null,null,null,null,null,56,"Female",21,62]
[null,null,null,null,null,null,null,null,null,null,57,"Male",19,68]
[null,null,null,null,null,null,null,null,null,null,58,"Male",19,92]
[null,null,null,null,null,null,null,null,null,null,59,"Female",20,85]
[null,null,null,null,null,null,null,null,null,null,60,"Male",22,77]
[null,null,null,null,null,null,null,null,null,null,61,"Female",19,79]
[null,null,null,null,null,null,null,null,null,null,62,"Male",20,86]
[null,null,null,null,null,null,null,null,null,null,63,"Female",19,83]
[null,null,null,null,null,null,null,null,null,null,64,"Male",19,83]
[null,null,null,null,null,null,null,null,null,null,65,"Male",18,76]
[null,null,null,null,null,null,null,null,null,null,66,"Female",24,89]
[null,null,null,null,null,null,null,null,null,null,67,"Female",18,72]
[null,null,null,null,null,null,null,null,null,null,68,"Female",21,69]
[null,null,null,null,null,null,null,null,null,null,69,"Male",23,66]
[null,null,null,null,null,null,null,null,null,null,70,"Male",24,71]
[null,null,null,null,null,null,null,null,null,null,71,"Male",20,80]
[null,null,null,null,null,null,null,null,null,null,72,"Female",18,61]

{"sheet":"SUMPRODUCT","index":64,"n_rows":13,"n_cols":14,"rows_kept":13,"cut":false,"hidden":true,"merged":[]}
[]
["© S. Christian Albright, 2011, All Rights Reserved"]
[null,null,null,null,null,null,null,null,null,null,"Unit shipping costs","City1","City2","City3"]
[null,null,null,null,null,null,null,null,null,null,"Plant1",1.25,1.35,1.55]
[null,null,null,null,null,null,null,null,null,null,"Plant2",1.1499999999999999,1.45,1.25]
[null,null,null,null,null,null,null,null,null,null,"Plant3",1.35,1.45,1.1499999999999999]
[]
[null,null,null,null,null,null,null,null,null,null,"Units shipped","City1","City2","City3"]
[null,null,null,null,null,null,null,null,null,null,"Plant1",155,180,0]
[null,null,null,null,null,null,null,null,null,null,"Plant2",250,130,185]
[null,null,null,null,null,null,null,null,null,null,"Plant3",0,210,140]
[]
[null,null,null,null,null,null,null,null,null,null,"Total cost"]

{"sheet":"Math Functions","index":65,"n_rows":2,"n_cols":1,"rows_kept":2,"cut":false,"hidden":true,"merged":[]}
[]
["© S. Christian Albright, 2011, All Rights Reserved"]

{"sheet":"INT, ROUND","index":66,"n_rows":17,"n_cols":15,"rows_kept":17,"cut":false,"hidden":true,"merged":[]}
[]
["© S. Christian Albright, 2011, All Rights Reserved"]
[null,null,null,null,null,null,null,null,null,null,1.7,-3.2,14,-7]
[]
[]
[]
[]
[]
[]
[]
[]
[]
[]
[]
[]
[null,null,null,null,null,null,null,null,null,null,100.35,14325,16.346699999999998,154432,0.3569]
[null,null,null,null,null,null,null,null,null,null,0,-2,2,-3,1]

{"sheet":"ABS, SQRT, SUMSQ","index":67,"n_rows":23,"n_cols":15,"rows_kept":23,"cut":false,"hidden":true,"merged":[]}
[]
["© S. Christian Albright, 2011, All Rights Reserved"]
[null,null,null,null,null,null,null,null,null,null,6,-50,0]
[]
[]
[]
[]
[]
[]
[]
[]
[]
[null,null,null,null,null,null,null,null,null,null,64,0.5,-20,0]
[]
[]
[]
[]
[]
[]
[]
[]
[]
[null,null,null,null,null,null,null,null,null,null,21,43,4,21,35]

{"sheet":"LN, EXP","index":68,"n_rows":17,"n_cols":15,"rows_kept":17,"cut":false,"hidden":true,"merged":[]}
[]
["© S. Christian Albright, 2011, All Rights Reserved"]
[null,null,null,null,null,null,null,null,null,null,1023,0.7,1,0,-40]
[]
[]
[]
[]
[]
[]
[]
[]
[]
[]
[]
[]
[]
[null,null,null,null,null,null,null,null,null,null,1,-4,2.2999999999999998,0,15]

{"sheet":"RAND, RANDBETWEEN","index":69,"n_rows":2,"n_cols":1,"rows_kept":2,"cut":false,"hidden":true,"merged":[]}
[]
["© S. Christian Albright, 2011, All Rights Reserved"]

{"sheet":"Text Functions","index":70,"n_rows":2,"n_cols":1,"rows_kept":2,"cut":false,"hidden":true,"merged":[]}
[]
["© S. Christian Albright, 2011, All Rights Reserved"]

{"sheet":"TRIM, VALUE","index":71,"n_rows":29,"n_cols":11,"rows_kept":29,"cut":false,"hidden":true,"merged":[]}
[]
["© S. Christian Albright, 2011, All Rights Reserved"]
[null,null,null,null,null,null,null,null,null,null,"  Bob  "]
[null,null,null,null,null,null,null,null,null,null,"  Jane  "]
[null,null,null,null,null,null,null,null,null,null,"  Justin  "]
[null,null,null,null,null,null,null,null,null,null,"  Lindsay  "]
[null,null,null,null,null,null,null,null,null,null,"  George  "]
[null,null,null,null,null,null,null,null,null,null,"  Sam  "]
[null,null,null,null,null,null,null,null,null,null,"  Christine  "]
[null,null,null,null,null,null,null,null,null,null,"  Tom  "]
[null,null,null,null,null,null,null,null,null,null,"  Jenny  "]
[null,null,null,null,null,null,null,null,null,null,"  Doug  "]
[]
[]
[]
[]
[]
[]
[]
[]
[]
[]
[null,null,null,null,null,null,null,null,null,null,"19"]
[null,null,null,null,null,null,null,null,null,null,"65"]
[null,null,null,null,null,null,null,null,null,null,"36"]
[null,null,null,null,null,null,null,null,null,null,"12"]
[null,null,null,null,null,null,null,null,null,null,"57"]
[null,null,null,null,null,null,null,null,null,null,"93"]
[null,null,null,null,null,null,null,null,null,null,"45"]

{"sheet":"Concatenating","index":72,"n_rows":12,"n_cols":13,"rows_kept":12,"cut":false,"hidden":true,"merged":[]}
[]
["© S. Christian Albright, 2011, All Rights Reserved"]
[null,null,null,null,null,null,null,null,null,null,"Bob","E","Jones"]
[null,null,null,null,null,null,null,null,null,null,"Stephen","C","Davis"]
[null,null,null,null,null,null,null,null,null,null,"Andy","T","Thompson"]
[null,null,null,null,null,null,null,null,null,null,"John","F","Wilson"]
[null,null,null,null,null,null,null,null,null,null,"Kathy","C","Fredericks"]
[null,null,null,null,null,null,null,null,null,null,"Karen","D","Williams"]
[null,null,null,null,null,null,null,null,null,null,"Tom","T","Smith"]
[null,null,null,null,null,null,null,null,null,null,"Peter","F","Jennings"]
[null,null,null,null,null,null,null,null,null,null,"Ted","R","Benson"]
[null,null,null,null,null,null,null,null,null,null,"Jason","E","Samson"]

{"sheet":"Parsing with Text to Columns","index":73,"n_rows":36,"n_cols":11,"rows_kept":36,"cut":false,"hidden":true,"merged":[]}
[]
["© S. Christian Albright, 2011, All Rights Reserved"]
[null,null,null,null,null,null,null,null,null,null,"606,360,516,1757,371"]
[null,null,null,null,null,null,null,null,null,null,"1631,1337,1260,1855,2823"]
[null,null,null,null,null,null,null,null,null,null,"904,749,486,1852,1612"]
[null,null,null,null,null,null,null,null,null,null,"2463,1324,1889,2597,312"]
[null,null,null,null,null,null,null,null,null,null,"1256,1839,1745,244,1508"]
[null,null,null,null,null,null,null,null,null,null,"2159,2917,1699,1351,974"]
[null,null,null,null,null,null,null,null,null,null,"1084,2379,1791,1933,507"]
[null,null,null,null,null,null,null,null,null,null,"1686,2454,1954,256,1068"]
[null,null,null,null,null,null,null,null,null,null,"1274,2330,2334,343,255"]
[null,null,null,null,null,null,null,null,null,null,"303,2128,578,824,1714"]
[null,null,null,null,null,null,null,null,null,null,"2989,2317,2196,642,2812"]
[null,null,null,null,null,null,null,null,null,null,"1743,2122,2428,871,2701"]
[null,null,null,null,null,null,null,null,null,null,"2817,2330,1217,407,327"]
[null,null,null,null,null,null,null,null,null,null,"894,1893,1963,1641,2533"]
[null,null,null,null,null,null,null,null,null,null,"2747,1952,243,2832,1487"]
[null,null,null,null,null,null,null,null,null,null,"358,2674,1660,1006,1249"]
[null,null,null,null,null,null,null,null,null,null,"1032,939,2172,2112,347"]
[null,null,null,null,null,null,null,null,null,null,"2639,2489,2905,412,2877"]
[null,null,null,null,null,null,null,null,null,null,"730,696,639,454,1591"]
[null,null,null,null,null,null,null,null,null,null,"1774,2506,2690,2498,2407"]
[null,null,null,null,null,null,null,null,null,null,"2406,493,1457,1317,2993"]
[null,null,null,null,null,null,null,null,null,null,"1359,894,2281,2454,1239"]
[null,null,null,null,null,null,null,null,null,null,"2847,1432,381,1518,941"]
[null,null,null,null,null,null,null,null,null,null,"1597,313,1231,596,702"]
[null,null,null,null,null,null,null,null,null,null,"2838,2547,846,868,1753"]
[null,null,null,null,null,null,null,null,null,null,"2049,558,201,1034,351"]
[null,null,null,null,null,null,null,null,null,null,"1395,1314,1004,489,275"]
[null,null,null,null,null,null,null,null,null,null,"2628,2596,1901,2114,381"]
[null,null,null,null,null,null,null,null,null,null,"1439,1574,2318,277,1202"]
[null,null,null,null,null,null,null,null,null,null,"918,2177,621,1777,2106"]
[null,null,null,null,null,null,null,null,null,null,"867,2906,2844,2173,1370"]
[null,null,null,null,null,null,null,null,null,null,"2314,236,1387,1586,1106"]
[null,null,null,null,null,null,null,null,null,null,"1316,1475,1791,1494,2405"]
[null,null,null,null,null,null,null,null,null,null,"1006,795,1804,861,979"]

{"sheet":"Parsing with text functions","index":74,"n_rows":121,"n_cols":33,"rows_kept":121,"cut":false,"hidden":true,"merged":[]}
[]
["© S. Christian Albright, 2011, All Rights Reserved"]
[null,null,null,null,null,null,null,null,null,null,"Jones, Bob","Bob","Jones"]
[null,null,null,null,null,null,null,null,null,null,"Davis, Stephen"]
[null,null,null,null,null,null,null,null,null,null,"Thompson, Andy"]
[null,null,null,null,null,null,null,null,null,null,"Wilson, John"]
[null,null,null,null,null,null,null,null,null,null,"Fredericks, Kathy"]
[null,null,null,null,null,null,null,null,null,null,"Williams, Karen"]
[null,null,null,null,null,null,null,null,null,null,"Smith, Tom"]
[null,null,null,null,null,null,null,null,null,null,"Jennings, Peter"]
[null,null,null,null,null,null,null,null,null,null,"Benson, Ted"]
[null,null,null,null,null,null,null,null,null,null,"Samson, Jason"]
[]
[]
[]
[]
[]
[]
[]
[]
[]
[]
[]
[]
[]
[]
[]
[]
[]
[]
[]
[]
[]
[]
[]
[]
[]
[]
[]
[]
[]
[]
[]
[]
[]
[]
[]
[]
[]
[]
[]
[]
[]
[]
[]
[]
[]
[]
[]
[]
[]
[]
[]
[]
[]
[]
[]
[]
[]
[]
[]
[]
[]
[]
[]
[]
[]
[]
[]
[]
[]
[]
[]
[]
[]
[]
[]
[]
[]
[]
[]
[]
[null,null,null,null,null,null,null,null,null,null,"Full name","Length","Comma","Space","First name","Last name",null,null,null,null,null,null,null,"Full name","Length","Comma","Space","First name","Last name"]
[null,null,null,null,null,null,null,null,null,null,"Jones, Bob",null,null,null,null,null,null,null,null,null,null,null,null,"Jones, Bob",{"$f":"LEN(X94)","v":10},{"$f":"FIND(\",\",X94,1)","v":6},{"$f":"Z94+1","v":7},{"$f":"RIGHT(X94,Y94-AA94)","v":"Bob"},{"$f":"LEFT(X94,Z94-1)","v":"Jones"}]
[null,null,null,null,null,null,null,null,null,null,"Davis, Stephen",null,null,null,null,null,null,null,null,null,null,null,null,"Davis, Stephen",14,6,7,"Stephen","Davis"]
[null,null,null,null,null,null,null,null,null,null,"Thompson, Andy",null,null,null,null,null,null,null,null,null,null,null,null,"Thompson, Andy",14,9,10,"Andy","Thompson"]
[null,null,null,null,null,null,null,null,null,null,"Wilson, John",null,null,null,null,null,null,null,null,null,null,null,null,"Wilson, John",12,7,8,"John","Wilson"]
[null,null,null,null,null,null,null,null,null,null,"Fredericks, Kathy",null,null,null,null,null,null,null,null,null,null,null,null,"Fredericks, Kathy",17,11,12,"Kathy","Fredericks"]
[null,null,null,null,null,null,null,null,null,null,"Williams, Karen",null,null,null,null,null,null,null,null,null,null,null,null,"Williams, Karen",15,9,10,"Karen","Williams"]
[null,null,null,null,null,null,null,null,null,null,"Smith, Tom",null,null,null,null,null,null,null,null,null,null,null,null,"Smith, Tom",10,6,7,"Tom","Smith"]
[null,null,null,null,null,null,null,null,null,null,"Jennings, Peter",null,null,null,null,null,null,null,null,null,null,null,null,"Jennings, Peter",15,9,10,"Peter","Jennings"]
[null,null,null,null,null,null,null,null,null,null,"Benson, Ted",null,null,null,null,null,null,null,null,null,null,null,null,"Benson, Ted",11,7,8,"Ted","Benson"]
[null,null,null,null,null,null,null,null,null,null,"Samson, Jason",null,null,null,null,null,null,null,null,null,null,null,null,"Samson, Jason",13,7,8,"Jason","Samson"]
[]
[]
[]
[]
[]
[]
[]
[null,null,null,null,null,null,null,null,null,null,null,null,null,null,null,null,null,null,null,null,null,null,null,"Full name","Length","Comma","Space1","Period","Space2","Last name","Used name","Initial","Middle initial"]
[null,null,null,null,null,null,null,null,null,null,"Jones, Bob E.",null,null,null,null,null,null,null,null,null,null,null,null,"Jones, Bob E.",{"$f":"LEN(X112)","v":13},{"$f":"FIND(\",\",X112,1)","v":6},{"$f":"Z112+1","v":7},{"$f":"FIND(\".\",X112,1)","v":13},{"$f":"FIND(\" \",X112,AA112+1)","v":11},{"$f":"LEFT(X112,Z112-1)","v":"Jones"},{"$f":"IF(ISERROR(AB112),RIGHT(X112,Y112-AA112),IF(AC112=AB112+1,RIGHT(X112,Y112-AC112),MID(X112,AA112+1,AC112-AA112-1)))","v":"Bob"},{"$f":"IF(ISERROR(AB112),\"\",MID(X112,AB112-1,1))","v":"E"},{"$f":"IF(ISERROR(AB112),\"\",IF(AB112=Y112,\"Yes\",\"No\"))","v":"Yes"}]
[null,null,null,null,null,null,null,null,null,null,"Davis, F. Stephen",null,null,null,null,null,null,null,null,null,null,null,null,"Davis, F. Stephen",17,6,7,9,10,{"$f":"LEFT(X113,Z113-1)","v":"Davis"},{"$f":"IF(ISERROR(AB113),RIGHT(X113,Y113-AA113),IF(AC113=AB113+1,RIGHT(X113,Y113-AC113),MID(X113,AA113+1,AC113-AA113-1)))","v":"Stephen"},{"$f":"IF(ISERROR(AB113),\"\",MID(X113,AB113-1,1))","v":"F"},{"$f":"IF(ISERROR(AB113),\"\",IF(AB113=Y113,\"Yes\",\"No\"))","v":"No"}]
[null,null,null,null,null,null,null,null,null,null,"Thompson, Andy",null,null,null,null,null,null,null,null,null,null,null,null,"Thompson, Andy",14,9,10,{"$error":"#VALUE!"},{"$error":"#VALUE!"},"Thompson","Andy","",""]
[null,null,null,null,null,null,null,null,null,null,"Wilson, John B.",null,null,null,null,null,null,null,null,null,null,null,null,"Wilson, John B.",15,7,8,15,13,"Wilson","John","B","Yes"]
[null,null,null,null,null,null,null,null,null,null,"Fredericks, Kathy C.",null,null,null,null,null,null,null,null,null,null,null,null,"Fredericks, Kathy C.",20,11,12,20,18,"Fredericks","Kathy","C","Yes"]
[null,null,null,null,null,null,null,null,null,null,"Williams, Karen R.",null,null,null,null,null,null,null,null,null,null,null,null,"Williams, Karen R.",18,9,10,18,16,"Williams","Karen","R","Yes"]
[null,null,null,null,null,null,null,null,null,null,"Smith, J. Tom",null,null,null,null,null,null,null,null,null,null,null,null,"Smith, J. Tom",13,6,7,9,10,"Smith","Tom","J","No"]
[null,null,null,null,null,null,null,null,null,null,"Jennings, Peter",null,null,null,null,null,null,null,null,null,null,null,null,"Jennings, Peter",15,9,10,{"$error":"#VALUE!"},{"$error":"#VALUE!"},"Jennings","Peter","",""]
[null,null,null,null,null,null,null,null,null,null,"Benson, Ted C.",null,null,null,null,null,null,null,null,null,null,null,null,"Benson, Ted C.",14,7,8,14,12,"Benson","Ted","C","Yes"]
[null,null,null,null,null,null,null,null,null,null,"Samson, Jason A.",null,null,null,null,null,null,null,null,null,null,null,null,"Samson, Jason A.",16,7,8,16,14,"Samson","Jason","A","Yes"]

{"sheet":"Date functions","index":75,"n_rows":40,"n_cols":11,"rows_kept":40,"cut":false,"hidden":true,"merged":[]}
[]
["© S. Christian Albright, 2011, All Rights Reserved"]
[]
[]
[]
[]
[]
[]
[]
[]
[]
[]
[]
[]
[]
[]
[]
[]
[]
[]
[]
[]
[]
[]
[]
[]
[]
[]
[]
[]
[]
[]
[]
[]
[null,null,null,null,null,null,null,null,null,null,"2004-03-14T13:30:00"]
[null,null,null,null,null,null,null,null,null,null,"1901-12-31"]
[null,null,null,null,null,null,null,null,null,null,"03:50:00"]
[null,null,null,null,null,null,null,null,null,null,"12:00:00"]
[null,null,null,null,null,null,null,null,null,null,"1996-02-29"]
[null,null,null,null,null,null,null,null,null,null,"1946-09-24T14:45:00"]

{"sheet":"Y2K","index":76,"n_rows":2,"n_cols":1,"rows_kept":2,"cut":false,"hidden":true,"merged":[]}
[]
["© S. Christian Albright, 2011, All Rights Reserved"]

{"sheet":"NOW, TODAY","index":77,"n_rows":4,"n_cols":11,"rows_kept":4,"cut":false,"hidden":true,"merged":[]}
[]
["© S. Christian Albright, 2011, All Rights Reserved"]
[null,null,null,null,null,null,null,null,null,null,"Today's date"]
[null,null,null,null,null,null,null,null,null,null,"Current time"]

{"sheet":"YEAR, MONTH, DAY, WEEKDAY","index":78,"n_rows":23,"n_cols":17,"rows_kept":23,"cut":false,"hidden":true,"merged":[]}
[]
["© S. Christian Albright, 2011, All Rights Reserved"]
[null,null,null,null,null,null,null,null,null,null,"Date","Year","Month number","Month name","Day","Weekday number","Weekday name"]
[null,null,null,null,null,null,null,null,null,null,"2001-09-11"]
[null,null,null,null,null,null,null,null,null,null,"1986-01-28"]
[null,null,null,null,null,null,null,null,null,null,"1963-11-22"]
[null,null,null,null,null,null,null,null,null,null,"1945-08-06"]
[null,null,null,null,null,null,null,null,null,null,"1941-12-07"]
[null,null,null,null,null,null,null,null,null,null,"1912-04-14"]
[]
[null,null,null,null,null,null,null,null,null,null,"Lookup table - months",null,null,"Lookup table - days"]
[null,null,null,null,null,null,null,null,null,null,1,"January",null,1,"Sunday"]
[null,null,null,null,null,null,null,null,null,null,2,"February",null,2,"Monday"]
[null,null,null,null,null,null,null,null,null,null,3,"March",null,3,"Tuesday"]
[null,null,null,null,null,null,null,null,null,null,4,"April",null,4,"Wednesday"]
[null,null,null,null,null,null,null,null,null,null,5,"May",null,5,"Thursday"]
[null,null,null,null,null,null,null,null,null,null,6,"June",null,6,"Friday"]
[null,null,null,null,null,null,null,null,null,null,7,"July",null,7,"Saturday"]
[null,null,null,null,null,null,null,null,null,null,8,"August"]
[null,null,null,null,null,null,null,null,null,null,9,"September"]
[null,null,null,null,null,null,null,null,null,null,10,"October"]
[null,null,null,null,null,null,null,null,null,null,11,"November"]
[null,null,null,null,null,null,null,null,null,null,12,"December"]

{"sheet":"DATEDIF","index":79,"n_rows":11,"n_cols":23,"rows_kept":11,"cut":false,"hidden":true,"merged":[]}
[]
["© S. Christian Albright, 2011, All Rights Reserved"]
[null,null,null,null,null,null,null,null,null,null,"Dates of last two physical exams"]
[]
[null,null,null,null,null,null,null,null,null,null,"First exam","2009-04-05"]
[null,null,null,null,null,null,null,null,null,null,"Next exam","2011-07-15"]
[]
[null,null,null,null,null,null,null,null,null,null,"Days (subtraction)",null,null,null,null,null,null,null,null,null,null,null,{"$f":"L6-L5","v":831}]
[null,null,null,null,null,null,null,null,null,null,"Days (DATEDIF)",null,null,null,null,null,null,null,null,null,null,null,{"$f":"DATEDIF(L5,L6,\"d\")","v":831}]
[null,null,null,null,null,null,null,null,null,null,"Months (DATEDIF)",null,null,null,null,null,null,null,null,null,null,null,{"$f":"DATEDIF(L5,L6,\"m\")","v":27}]
[null,null,null,null,null,null,null,null,null,null,"Years (DATEDIF)",null,null,null,null,null,null,null,null,null,null,null,{"$f":"DATEDIF(L5,L6,\"y\")","v":2}]

{"sheet":"DATE, DATEVALUE","index":80,"n_rows":30,"n_cols":24,"rows_kept":30,"cut":false,"hidden":true,"merged":[]}
[]
["© S. Christian Albright, 2011, All Rights Reserved"]
[null,null,null,null,null,null,null,null,null,null,"Birthdate","Next birthday"]
[null,null,null,null,null,null,null,null,null,null,"1976-07-22",{"$f":"IF(DATE(YEAR(TODAY()),MONTH(K4),DAY(K4))<TODAY(),DATE(YEAR(TODAY()+1),MONTH(K4),DAY(K4)),DATE(YEAR(TODAY()),MONTH(K4),DAY(K4)))","v":"2012-07-22"}]
[]
[]
[]
[]
[]
[]
[]
[]
[]
[]
[]
[null,null,null,null,null,null,null,null,null,null,"Birthdate","Age",null,null,null,null,null,null,null,null,null,null,"Birthdate","Age"]
[null,null,null,null,null,null,null,null,null,null,null,null,null,null,null,null,null,null,null,null,null,null,"1976-08-16",{"$f":"IF(DATE(YEAR(TODAY()),MONTH(W17),DAY(W17))<=TODAY(),YEAR(TODAY())-YEAR(W17),YEAR(TODAY())-YEAR(W17)-1)","v":35}]
[]
[]
[]
[]
[]
[]
[null,null,null,null,null,null,null,null,null,null,"Dates imported from a legacy system"]
[]
[null,null,null,null,null,null,null,null,null,null,"Nov 25, 1997"]
[null,null,null,null,null,null,null,null,null,null,"Nov 26, 1997"]
[null,null,null,null,null,null,null,null,null,null,"Nov 29, 1997"]
[null,null,null,null,null,null,null,null,null,null,"Dec 1, 1997"]
[null,null,null,null,null,null,null,null,null,null,"Dec 3, 1997"]

{"sheet":"NETWORKDAYS, WORKDAY","index":81,"n_rows":32,"n_cols":26,"rows_kept":32,"cut":false,"hidden":true,"merged":[]}
[]
["© S. Christian Albright, 2011, All Rights Reserved"]
[]
[]
[null,null,null,null,null,null,null,null,null,null,"Start date","2010-06-01",null,"Holidays",null,null,null,null,null,null,null,null,null,"NETWORKDAYS",{"$f":"NETWORKDAYS(L5,L6,O6:O12)","v":210}]
[null,null,null,null,null,null,null,null,null,null,"Finish date","2011-03-25",null,"Independence Day","2010-07-04",null,null,null,null,null,null,null,null,"NETWORKDAYS.INTL",{"$f":"NETWORKDAYS.INTL(L5,L6,11,O6:O12)","v":250}]
[null,null,null,null,null,null,null,null,null,null,null,null,null,"Thanksgiving","2010-11-25"]
[null,null,null,null,null,null,null,null,null,null,"Network days",null,null,null,"2010-11-26"]
[null,null,null,null,null,null,null,null,null,null,null,null,null,"Christmas, New Years","2010-12-24"]
[null,null,null,null,null,null,null,null,null,null,null,null,null,null,"2010-12-25"]
[null,null,null,null,null,null,null,null,null,null,null,null,null,null,"2010-12-31"]
[null,null,null,null,null,null,null,null,null,null,null,null,null,null,"2011-01-01"]
[]
[]
[]
[]
[]
[]
[]
[]
[]
[]
[]
[]
[null,null,null,null,null,null,null,null,null,null,"Start date","2010-06-01",null,"Holidays",null,null,null,null,null,null,null,null,null,"WORKDAY",{"$f":"WORKDAY(L25,L26,O26:O32)","v":"2011-02-07"}]
[null,null,null,null,null,null,null,null,null,null,"Days required",175,null,"Independence Day","2010-07-04",null,null,null,null,null,null,null,null,"WEEKDAY",{"$f":"WEEKDAY(Y25)","v":2},"  Monday"]
[null,null,null,null,null,null,null,null,null,null,null,null,null,"Thanksgiving","2010-11-25"]
[null,null,null,null,null,null,null,null,null,null,"First available workday",null,null,null,"2010-11-26",null,null,null,null,null,null,null,null,"WORKDAY.INTL",{"$f":"WORKDAY.INTL(L25,L26,11,O26:O32)","v":"2010-12-27"}]
[null,null,null,null,null,null,null,null,null,null,null,null,null,"Christmas, New Years","2010-12-24",null,null,null,null,null,null,null,null,"WEEKDAY",{"$f":"WEEKDAY(Y28)","v":2},"  Monday"]
[null,null,null,null,null,null,null,null,null,null,null,null,null,null,"2010-12-25"]
[null,null,null,null,null,null,null,null,null,null,null,null,null,null,"2010-12-31"]
[null,null,null,null,null,null,null,null,null,null,null,null,null,null,"2011-01-01"]

{"sheet":"Statistical Functions","index":82,"n_rows":2,"n_cols":1,"rows_kept":2,"cut":false,"hidden":true,"merged":[]}
[]
["© S. Christian Albright, 2011, All Rights Reserved"]

{"sheet":"MIN, MAX","index":83,"n_rows":10,"n_cols":17,"rows_kept":10,"cut":false,"hidden":true,"merged":[]}
[]
["© S. Christian Albright, 2011, All Rights Reserved"]
[null,null,null,null,null,null,null,null,null,null,"Sales rep","Allison","Baker","Jones","Miller","Smith","Taylor"]
[null,null,null,null,null,null,null,null,null,null,"Jan sales",3700,2400,2300,3000,3800,3700]
[null,null,null,null,null,null,null,null,null,null,"Feb sales",2600,2200,2400,2800,3600,2300]
[]
[]
[null,null,null,null,null,null,null,null,null,null,null,"Min sales","Max sales"]
[null,null,null,null,null,null,null,null,null,null,"Jan"]
[null,null,null,null,null,null,null,null,null,null,"Feb"]

{"sheet":"MEDIAN, PERCENTILE, QUANTILE","index":84,"n_rows":102,"n_cols":13,"rows_kept":102,"cut":false,"hidden":true,"merged":[]}
[]
["© S. Christian Albright, 2011, All Rights Reserved"]
[null,null,null,null,null,null,null,null,null,null,33,null,"Average"]
[null,null,null,null,null,null,null,null,null,null,3,null,"Median"]
[null,null,null,null,null,null,null,null,null,null,0]
[null,null,null,null,null,null,null,null,null,null,1,null,"Quartiles"]
[null,null,null,null,null,null,null,null,null,null,4,null,"Q1"]
[null,null,null,null,null,null,null,null,null,null,14,null,"Q2"]
[null,null,null,null,null,null,null,null,null,null,5,null,"Q3"]
[null,null,null,null,null,null,null,null,null,null,41]
[null,null,null,null,null,null,null,null,null,null,3,null,"Percentiles"]
[null,null,null,null,null,null,null,null,null,null,5,null,"P01"]
[null,null,null,null,null,null,null,null,null,null,9,null,"P05"]
[null,null,null,null,null,null,null,null,null,null,1,null,"P10"]
[null,null,null,null,null,null,null,null,null,null,0,null,"P25"]
[null,null,null,null,null,null,null,null,null,null,22,null,"P50"]
[null,null,null,null,null,null,null,null,null,null,10,null,"P75"]
[null,null,null,null,null,null,null,null,null,null,5,null,"P90"]
[null,null,null,null,null,null,null,null,null,null,13,null,"P95"]
[null,null,null,null,null,null,null,null,null,null,7,null,"P99"]
[null,null,null,null,null,null,null,null,null,null,6]
[null,null,null,null,null,null,null,null,null,null,3]
[null,null,null,null,null,null,null,null,null,null,9]
[null,null,null,null,null,null,null,null,null,null,5]
[null,null,null,null,null,null,null,null,null,null,14]
[null,null,null,null,null,null,null,null,null,null,7]
[null,null,null,null,null,null,null,null,null,null,27]
[null,null,null,null,null,null,null,null,null,null,10]
[null,null,null,null,null,null,null,null,null,null,7]
[null,null,null,null,null,null,null,null,null,null,3]
[null,null,null,null,null,null,null,null,null,null,11]
[null,null,null,null,null,null,null,null,null,null,15]
[null,null,null,null,null,null,null,null,null,null,35]
[null,null,null,null,null,null,null,null,null,null,9]
[null,null,null,null,null,null,null,null,null,null,0]
[null,null,null,null,null,null,null,null,null,null,5]
[null,null,null,null,null,null,null,null,null,null,6]
[null,null,null,null,null,null,null,null,null,null,11]
[null,null,null,null,null,null,null,null,null,null,13]
[null,null,null,null,null,null,null,null,null,null,4]
[null,null,null,null,null,null,null,null,null,null,17]
[null,null,null,null,null,null,null,null,null,null,3]
[null,null,null,null,null,null,null,null,null,null,19]
[null,null,null,null,null,null,null,null,null,null,4]
[null,null,null,null,null,null,null,null,null,null,5]
[null,null,null,null,null,null,null,null,null,null,1]
[null,null,null,null,null,null,null,null,null,null,21]
[null,null,null,null,null,null,null,null,null,null,4]
[null,null,null,null,null,null,null,null,null,null,16]
[null,null,null,null,null,null,null,null,null,null,6]
[null,null,null,null,null,null,null,null,null,null,18]
[null,null,null,null,null,null,null,null,null,null,18]
[null,null,null,null,null,null,null,null,null,null,2]
[null,null,null,null,null,null,null,null,null,null,3]
[null,null,null,null,null,null,null,null,null,null,17]
[null,null,null,null,null,null,null,null,null,null,7]
[null,null,null,null,null,null,null,null,null,null,9]
[null,null,null,null,null,null,null,null,null,null,6]
[null,null,null,null,null,null,null,null,null,null,4]
[null,null,null,null,null,null,null,null,null,null,2]
[null,null,null,null,null,null,null,null,null,null,7]
[null,null,null,null,null,null,null,null,null,null,3]
[null,null,null,null,null,null,null,null,null,null,0]
[null,null,null,null,null,null,null,null,null,null,14]
[null,null,null,null,null,null,null,null,null,null,2]
[null,null,null,null,null,null,null,null,null,null,4]
[null,null,null,null,null,null,null,null,null,null,24]
[null,null,null,null,null,null,null,null,null,null,12]
[null,null,null,null,null,null,null,null,null,null,1]
[null,null,null,null,null,null,null,null,null,null,4]
[null,null,null,null,null,null,null,null,null,null,36]
[null,null,null,null,null,null,null,null,null,null,3]
[null,null,null,null,null,null,null,null,null,null,0]
[null,null,null,null,null,null,null,null,null,null,2]
[null,null,null,null,null,null,null,null,null,null,4]
[null,null,null,null,null,null,null,null,null,null,12]
[null,null,null,null,null,null,null,null,null,null,7]
[null,null,null,null,null,null,null,null,null,null,2]
[null,null,null,null,null,null,null,null,null,null,1]
[null,null,null,null,null,null,null,null,null,null,16]
[null,null,null,null,null,null,null,null,null,null,5]
[null,null,null,null,null,null,null,null,null,null,31]
[null,null,null,null,null,null,null,null,null,null,15]
[null,null,null,null,null,null,null,null,null,null,29]
[null,null,null,null,null,null,null,null,null,null,12]
[null,null,null,null,null,null,null,null,null,null,5]
[null,null,null,null,null,null,null,null,null,null,4]
[null,null,null,null,null,null,null,null,null,null,5]
[null,null,null,null,null,null,null,null,null,null,22]
[null,null,null,null,null,null,null,null,null,null,14]
[null,null,null,null,null,null,null,null,null,null,7]
[null,null,null,null,null,null,null,null,null,null,7]
[null,null,null,null,null,null,null,null,null,null,19]
[null,null,null,null,null,null,null,null,null,null,38]
[null,null,null,null,null,null,null,null,null,null,15]
[null,null,null,null,null,null,null,null,null,null,45]
[null,null,null,null,null,null,null,null,null,null,1]
[null,null,null,null,null,null,null,null,null,null,4]
[null,null,null,null,null,null,null,null,null,null,14]
[null,null,null,null,null,null,null,null,null,null,3]
[null,null,null,null,null,null,null,null,null,null,16]
[null,null,null,null,null,null,null,null,null,null,4]

{"sheet":"STDEV, VAR","index":85,"n_rows":202,"n_cols":27,"rows_kept":202,"cut":false,"hidden":true,"merged":[]}
[]
["© S. Christian Albright, 2011, All Rights Reserved"]
[null,null,null,null,null,null,null,null,null,null,1034.44,null,"Mean",null,null,null,null,null,null,null,null,null,null,"Mean",{"$f":"AVERAGE(K3:K202)","v":999.77185000000031}]
[null,null,null,null,null,null,null,null,null,null,877.35,null,"Variance",null,null,null,null,null,null,null,null,null,null,"Variance",{"$f":"VAR(K3:K202)","v":83102.377630227318}]
[null,null,null,null,null,null,null,null,null,null,794.42,null,"Standard deviation",null,null,null,null,null,null,null,null,null,null,"St Dev",{"$f":"STDEV(K3:K202)","v":288.27483003243157}]
[null,null,null,null,null,null,null,null,null,null,828.45]
[null,null,null,null,null,null,null,null,null,null,765.9,null,"% within 1 stdev",null,null,null,null,null,null,null,null,null,null,"Mean - Stdev",{"$f":"Y3-Y5","v":711.4970199675688},"# less",{"$f":"COUNTIF(K3:K202,\"<\"&Y7)","v":36}]
[null,null,null,null,null,null,null,null,null,null,1088.95,null,null,null,null,null,null,null,null,null,null,null,null,"Mean + Stdev",{"$f":"Y3+Y5","v":1288.0466800324318},"# greater",{"$f":"COUNTIF(K3:K202,\">\"&Y8)","v":40}]
[null,null,null,null,null,null,null,null,null,null,786.05,null,null,null,null,null,null,null,null,null,null,null,null,"Pct with 1 stdev of mean",null,null,{"$f":"1-SUM(AA7:AA8)/200","v":0.62}]
[null,null,null,null,null,null,null,null,null,null,1523.02]
[null,null,null,null,null,null,null,null,null,null,920.48]
[null,null,null,null,null,null,null,null,null,null,777.23]
[null,null,null,null,null,null,null,null,null,null,1247.6300000000001]
[null,null,null,null,null,null,null,null,null,null,1117.8699999999999]
[null,null,null,null,null,null,null,null,null,null,1157.3]
[null,null,null,null,null,null,null,null,null,null,641.35]
[null,null,null,null,null,null,null,null,null,null,520.49]
[null,null,null,null,null,null,null,null,null,null,586.67999999999995]
[null,null,null,null,null,null,null,null,null,null,952.22]
[null,null,null,null,null,null,null,null,null,null,878.36]
[null,null,null,null,null,null,null,null,null,null,1582.12]
[null,null,null,null,null,null,null,null,null,null,807.99]
[null,null,null,null,null,null,null,null,null,null,913.13]
[null,null,null,null,null,null,null,null,null,null,1051.6500000000001]
[null,null,null,null,null,null,null,null,null,null,628.44000000000005]
[null,null,null,null,null,null,null,null,null,null,651.86]
[null,null,null,null,null,null,null,null,null,null,843.55]
[null,null,null,null,null,null,null,null,null,null,1233.3699999999999]
[null,null,null,null,null,null,null,null,null,null,1036.55]
[null,null,null,null,null,null,null,null,null,null,543.16999999999996]
[null,null,null,null,null,null,null,null,null,null,866.31]
[null,null,null,null,null,null,null,null,null,null,883.25]
[null,null,null,null,null,null,null,null,null,null,1285.68]
[null,null,null,null,null,null,null,null,null,null,650.44000000000005]
[null,null,null,null,null,null,null,null,null,null,1412.4]
[null,null,null,null,null,null,null,null,null,null,1105.44]
[null,null,null,null,null,null,null,null,null,null,671.55]
[null,null,null,null,null,null,null,null,null,null,1077.21]
[null,null,null,null,null,null,null,null,null,null,1471.87]
[null,null,null,null,null,null,null,null,null,null,1362.55]
[null,null,null,null,null,null,null,null,null,null,1044.3699999999999]
[null,null,null,null,null,null,null,null,null,null,601.52]
[null,null,null,null,null,null,null,null,null,null,1256.48]
[null,null,null,null,null,null,null,null,null,null,1069.69]
[null,null,null,null,null,null,null,null,null,null,407.54]
[null,null,null,null,null,null,null,null,null,null,1609.11]
[null,null,null,null,null,null,null,null,null,null,1141.03]
[null,null,null,null,null,null,null,null,null,null,972.54]
[null,null,null,null,null,null,null,null,null,null,851.91]
[null,null,null,null,null,null,null,null,null,null,1324.67]
[null,null,null,null,null,null,null,null,null,null,1061.0899999999999]
[null,null,null,null,null,null,null,null,null,null,809.91]
[null,null,null,null,null,null,null,null,null,null,655.81]
[null,null,null,null,null,null,null,null,null,null,1224.02]
[null,null,null,null,null,null,null,null,null,null,1105.52]
[null,null,null,null,null,null,null,null,null,null,1102.6300000000001]
[null,null,null,null,null,null,null,null,null,null,342.62]
[null,null,null,null,null,null,null,null,null,null,642.01]
[null,null,null,null,null,null,null,null,null,null,762.48]
[null,null,null,null,null,null,null,null,null,null,945.73]
[null,null,null,null,null,null,null,null,null,null,1431.55]
[null,null,null,null,null,null,null,null,null,null,695.66]
[null,null,null,null,null,null,null,null,null,null,871.12]
[null,null,null,null,null,null,null,null,null,null,827.21]
[null,null,null,null,null,null,null,null,null,null,1468.62]
[null,null,null,null,null,null,null,null,null,null,863.17]
[null,null,null,null,null,null,null,null,null,null,582.4]
[null,null,null,null,null,null,null,null,null,null,919.07]
[null,null,null,null,null,null,null,null,null,null,1314.83]
[null,null,null,null,null,null,null,null,null,null,1418.85]
[null,null,null,null,null,null,null,null,null,null,909.82]
[null,null,null,null,null,null,null,null,null,null,1086.1099999999999]
[null,null,null,null,null,null,null,null,null,null,620.14]
[null,null,null,null,null,null,null,null,null,null,668.74]
[null,null,null,null,null,null,null,null,null,null,598.66]
[null,null,null,null,null,null,null,null,null,null,1175.0899999999999]
[null,null,null,null,null,null,null,null,null,null,1139]
[null,null,null,null,null,null,null,null,null,null,1369.23]
[null,null,null,null,null,null,null,null,null,null,618.30999999999995]
[null,null,null,null,null,null,null,null,null,null,693.67]
[null,null,null,null,null,null,null,null,null,null,1341.85]
[null,null,null,null,null,null,null,null,null,null,1479.33]
[null,null,null,null,null,null,null,null,null,null,477.41]
[null,null,null,null,null,null,null,null,null,null,962.29]
[null,null,null,null,null,null,null,null,null,null,686.64]
[null,null,null,null,null,null,null,null,null,null,1495.96]
[null,null,null,null,null,null,null,null,null,null,1101.8699999999999]
[null,null,null,null,null,null,null,null,null,null,1018.6]
[null,null,null,null,null,null,null,null,null,null,1027.43]
[null,null,null,null,null,null,null,null,null,null,921.99]
[null,null,null,null,null,null,null,null,null,null,868.49]
[null,null,null,null,null,null,null,null,null,null,856.14]
[null,null,null,null,null,null,null,null,null,null,724.87]
[null,null,null,null,null,null,null,null,null,null,1345.72]
[null,null,null,null,null,null,null,null,null,null,1127.9100000000001]
[null,null,null,null,null,null,null,null,null,null,1467.66]
[null,null,null,null,null,null,null,null,null,null,918.88]
[null,null,null,null,null,null,null,null,null,null,997.56]
[null,null,null,null,null,null,null,null,null,null,965.11]
[null,null,null,null,null,null,null,null,null,null,1059.32]
[null,null,null,null,null,null,null,null,null,null,1157.3499999999999]
[null,null,null,null,null,null,null,null,null,null,1116.73]
[null,null,null,null,null,null,null,null,null,null,1410.39]
[null,null,null,null,null,null,null,null,null,null,786.62]
[null,null,null,null,null,null,null,null,null,null,1477.32]
[null,null,null,null,null,null,null,null,null,null,1328.5]
[null,null,null,null,null,null,null,null,null,null,753.26]
[null,null,null,null,null,null,null,null,null,null,905.17]
[null,null,null,null,null,null,null,null,null,null,821.06]
[null,null,null,null,null,null,null,null,null,null,1052.57]
[null,null,null,null,null,null,null,null,null,null,926.89]
[null,null,null,null,null,null,null,null,null,null,579.01]
[null,null,null,null,null,null,null,null,null,null,873.54]
[null,null,null,null,null,null,null,null,null,null,1100.79]
[null,null,null,null,null,null,null,null,null,null,727.32]
[null,null,null,null,null,null,null,null,null,null,718.17]
[null,null,null,null,null,null,null,null,null,null,948.09]
[null,null,null,null,null,null,null,null,null,null,866.89]
[null,null,null,null,null,null,null,null,null,null,684.5]
[null,null,null,null,null,null,null,null,null,null,1391.63]
[null,null,null,null,null,null,null,null,null,null,678.82]
[null,null,null,null,null,null,null,null,null,null,961.36]
[null,null,null,null,null,null,null,null,null,null,1023.22]
[null,null,null,null,null,null,null,null,null,null,851.44]
[null,null,null,null,null,null,null,null,null,null,1247.6300000000001]
[null,null,null,null,null,null,null,null,null,null,1373.37]
[null,null,null,null,null,null,null,null,null,null,1177.79]
[null,null,null,null,null,null,null,null,null,null,929.79]
[null,null,null,null,null,null,null,null,null,null,690.18]
[null,null,null,null,null,null,null,null,null,null,736.95]
[null,null,null,null,null,null,null,null,null,null,1293.1400000000001]
[null,null,null,null,null,null,null,null,null,null,1134.24]
[null,null,null,null,null,null,null,null,null,null,1316.3]
[null,null,null,null,null,null,null,null,null,null,1440.09]
[null,null,null,null,null,null,null,null,null,null,1249.47]
[null,null,null,null,null,null,null,null,null,null,787.9]
[null,null,null,null,null,null,null,null,null,null,1320.84]
[null,null,null,null,null,null,null,null,null,null,1263.3800000000001]
[null,null,null,null,null,null,null,null,null,null,1212.95]
[null,null,null,null,null,null,null,null,null,null,1081.6300000000001]
[null,null,null,null,null,null,null,null,null,null,1214.1400000000001]
[null,null,null,null,null,null,null,null,null,null,1367.41]
[null,null,null,null,null,null,null,null,null,null,1579.93]
[null,null,null,null,null,null,null,null,null,null,1405.68]
[null,null,null,null,null,null,null,null,null,null,965.25]
[null,null,null,null,null,null,null,null,null,null,1081.01]
[null,null,null,null,null,null,null,null,null,null,713.61]
[null,null,null,null,null,null,null,null,null,null,1033.28]
[null,null,null,null,null,null,null,null,null,null,999.4]
[null,null,null,null,null,null,null,null,null,null,361.42]
[null,null,null,null,null,null,null,null,null,null,721.3]
[null,null,null,null,null,null,null,null,null,null,1052.6199999999999]
[null,null,null,null,null,null,null,null,null,null,1094.3]
[null,null,null,null,null,null,null,null,null,null,937.92]
[null,null,null,null,null,null,null,null,null,null,1217.1400000000001]
[null,null,null,null,null,null,null,null,null,null,225.9]
[null,null,null,null,null,null,null,null,null,null,707.88]
[null,null,null,null,null,null,null,null,null,null,856.16]
[null,null,null,null,null,null,null,null,null,null,949.8]
[null,null,null,null,null,null,null,null,null,null,1510.56]
[null,null,null,null,null,null,null,null,null,null,1234.83]
[null,null,null,null,null,null,null,null,null,null,1147.42]
[null,null,null,null,null,null,null,null,null,null,820.95]
[null,null,null,null,null,null,null,null,null,null,1049.69]
[null,null,null,null,null,null,null,null,null,null,915.41]
[null,null,null,null,null,null,null,null,null,null,862.87]
[null,null,null,null,null,null,null,null,null,null,1017.05]
[null,null,null,null,null,null,null,null,null,null,763.08]
[null,null,null,null,null,null,null,null,null,null,978.67]
[null,null,null,null,null,null,null,null,null,null,1357.03]
[null,null,null,null,null,null,null,null,null,null,1279.6199999999999]
[null,null,null,null,null,null,null,null,null,null,1361.16]
[null,null,null,null,null,null,null,null,null,null,952.66]
[null,null,null,null,null,null,null,null,null,null,523.33000000000004]
[null,null,null,null,null,null,null,null,null,null,1375.14]
[null,null,null,null,null,null,null,null,null,null,545.6]
[null,null,null,null,null,null,null,null,null,null,847.12]
[null,null,null,null,null,null,null,null,null,null,1464.07]
[null,null,null,null,null,null,null,null,null,null,1113.21]
[null,null,null,null,null,null,null,null,null,null,1292.26]
[null,null,null,null,null,null,null,null,null,null,634.98]
[null,null,null,null,null,null,null,null,null,null,651.65]
[null,null,null,null,null,null,null,null,null,null,602.12]
[null,null,null,null,null,null,null,null,null,null,1367.6]
[null,null,null,null,null,null,null,null,null,null,891.63]
[null,null,null,null,null,null,null,null,null,null,1197.3699999999999]
[null,null,null,null,null,null,null,null,null,null,1355.34]
[null,null,null,null,null,null,null,null,null,null,904.44]
[null,null,null,null,null,null,null,null,null,null,1638.89]
[null,null,null,null,null,null,null,null,null,null,1325.24]
[null,null,null,null,null,null,null,null,null,null,892.26]
[null,null,null,null,null,null,null,null,null,null,1553.37]
[null,null,null,null,null,null,null,null,null,null,697.54]
[null,null,null,null,null,null,null,null,null,null,1127.03]
[null,null,null,null,null,null,null,null,null,null,854.27]
[null,null,null,null,null,null,null,null,null,null,810.98]
[null,null,null,null,null,null,null,null,null,null,902.46]
[null,null,null,null,null,null,null,null,null,null,623.26]
[null,null,null,null,null,null,null,null,null,null,952.45]
[null,null,null,null,null,null,null,null,null,null,853.4]
[null,null,null,null,null,null,null,null,null,null,1029.52]
[null,null,null,null,null,null,null,null,null,null,1172.72]

{"sheet":"CORREL, COVAR","index":86,"n_rows":82,"n_cols":27,"rows_kept":82,"cut":false,"hidden":true,"merged":[]}
[]
["© S. Christian Albright, 2011, All Rights Reserved"]
[null,null,null,null,null,null,null,null,null,null,"Month","Sales1","Sales2","Sales3",null,"Correlations"]
[null,null,null,null,null,null,null,null,null,null,"2003-01-01",800,1750,640,null,"Sales1 vs Sales2",null,null,null,null,null,null,null,null,null,null,{"$f":"CORREL(L4:L82,M4:M82)","v":0.77611193158688774}]
[null,null,null,null,null,null,null,null,null,null,"2003-02-01",1360,2970,280,null,"Sales1 vs Sales3",null,null,null,null,null,null,null,null,null,null,{"$f":"CORREL(L4:L82,N4:N82)","v":-0.31273925666101104}]
[null,null,null,null,null,null,null,null,null,null,"2003-03-01",1150,2370,230,null,"Sales2 vs Sales3",null,null,null,null,null,null,null,null,null,null,{"$f":"CORREL(M4:M82,N4:N82)","v":-0.41242051819881692}]
[null,null,null,null,null,null,null,null,null,null,"2003-04-01",940,2010,410]
[null,null,null,null,null,null,null,null,null,null,"2003-05-01",740,1690,290]
[null,null,null,null,null,null,null,null,null,null,"2003-06-01",1090,2590,460]
[null,null,null,null,null,null,null,null,null,null,"2003-07-01",780,1640,760]
[null,null,null,null,null,null,null,null,null,null,"2003-08-01",910,2100,840]
[null,null,null,null,null,null,null,null,null,null,"2003-09-01",990,1620,760]
[null,null,null,null,null,null,null,null,null,null,"2003-10-01",800,1790,710]
[null,null,null,null,null,null,null,null,null,null,"2003-11-01",1200,2320,690]
[null,null,null,null,null,null,null,null,null,null,"2003-12-01",1150,2090,640]
[null,null,null,null,null,null,null,null,null,null,"2004-01-01",880,2170,530]
[null,null,null,null,null,null,null,null,null,null,"2004-02-01",870,1640,640]
[null,null,null,null,null,null,null,null,null,null,"2004-03-01",870,1980,560]
[null,null,null,null,null,null,null,null,null,null,"2004-04-01",760,1360,980]
[null,null,null,null,null,null,null,null,null,null,"2004-05-01",1010,2110,880]
[null,null,null,null,null,null,null,null,null,null,"2004-06-01",820,1740,570]
[null,null,null,null,null,null,null,null,null,null,"2004-07-01",1140,2040,650]
[null,null,null,null,null,null,null,null,null,null,"2004-08-01",730,1940,600]
[null,null,null,null,null,null,null,null,null,null,"2004-09-01",1150,2000,540]
[null,null,null,null,null,null,null,null,null,null,"2004-10-01",690,890,1130]
[null,null,null,null,null,null,null,null,null,null,"2004-11-01",1210,2480,600]
[null,null,null,null,null,null,null,null,null,null,"2004-12-01",1080,2050,660]
[null,null,null,null,null,null,null,null,null,null,"2005-01-01",1420,2840,330]
[null,null,null,null,null,null,null,null,null,null,"2005-02-01",1230,2490,710]
[null,null,null,null,null,null,null,null,null,null,"2005-03-01",1170,2330,610]
[null,null,null,null,null,null,null,null,null,null,"2005-04-01",1140,2540,840]
[null,null,null,null,null,null,null,null,null,null,"2005-05-01",560,1750,1010]
[null,null,null,null,null,null,null,null,null,null,"2005-06-01",910,2490,950]
[null,null,null,null,null,null,null,null,null,null,"2005-07-01",1260,2930,150]
[null,null,null,null,null,null,null,null,null,null,"2005-08-01",1050,2500,390]
[null,null,null,null,null,null,null,null,null,null,"2005-09-01",1020,2240,440]
[null,null,null,null,null,null,null,null,null,null,"2005-10-01",760,1630,420]
[null,null,null,null,null,null,null,null,null,null,"2005-11-01",710,1380,880]
[null,null,null,null,null,null,null,null,null,null,"2005-12-01",1000,2000,660]
[null,null,null,null,null,null,null,null,null,null,"2006-01-01",940,2200,630]
[null,null,null,null,null,null,null,null,null,null,"2006-02-01",1270,2510,510]
[null,null,null,null,null,null,null,null,null,null,"2006-03-01",1370,2610,560]
[null,null,null,null,null,null,null,null,null,null,"2006-04-01",1050,2180,620]
[null,null,null,null,null,null,null,null,null,null,"2006-05-01",1110,2590,470]
[null,null,null,null,null,null,null,null,null,null,"2006-06-01",1170,2160,580]
[null,null,null,null,null,null,null,null,null,null,"2006-07-01",990,2020,480]
[null,null,null,null,null,null,null,null,null,null,"2006-08-01",1040,1870,300]
[null,null,null,null,null,null,null,null,null,null,"2006-09-01",1350,2590,540]
[null,null,null,null,null,null,null,null,null,null,"2006-10-01",820,1440,520]
[null,null,null,null,null,null,null,null,null,null,"2006-11-01",860,1870,620]
[null,null,null,null,null,null,null,null,null,null,"2006-12-01",1190,2640,460]
[null,null,null,null,null,null,null,null,null,null,"2007-01-01",910,1980,590]
[null,null,null,null,null,null,null,null,null,null,"2007-02-01",950,2290,510]
[null,null,null,null,null,null,null,null,null,null,"2007-03-01",820,1850,550]
[null,null,null,null,null,null,null,null,null,null,"2007-04-01",770,1710,610]
[null,null,null,null,null,null,null,null,null,null,"2007-05-01",810,1480,720]
[null,null,null,null,null,null,null,null,null,null,"2007-06-01",1370,2820,770]
[null,null,null,null,null,null,null,null,null,null,"2007-07-01",940,2360,540]
[null,null,null,null,null,null,null,null,null,null,"2007-08-01",1020,1940,420]
[null,null,null,null,null,null,null,null,null,null,"2007-09-01",930,1900,800]
[null,null,null,null,null,null,null,null,null,null,"2007-10-01",1110,2520,660]
[null,null,null,null,null,null,null,null,null,null,"2007-11-01",1230,2320,610]
[null,null,null,null,null,null,null,null,null,null,"2007-12-01",1080,2240,990]
[null,null,null,null,null,null,null,null,null,null,"2008-01-01",890,1840,530]
[null,null,null,null,null,null,null,null,null,null,"2008-02-01",970,1940,520]
[null,null,null,null,null,null,null,null,null,null,"2008-03-01",920,2510,480]
[null,null,null,null,null,null,null,null,null,null,"2008-04-01",1000,2360,370]
[null,null,null,null,null,null,null,null,null,null,"2008-05-01",1250,2400,380]
[null,null,null,null,null,null,null,null,null,null,"2008-06-01",1280,2490,640]
[null,null,null,null,null,null,null,null,null,null,"2008-07-01",790,1760,450]
[null,null,null,null,null,null,null,null,null,null,"2008-08-01",940,2000,290]
[null,null,null,null,null,null,null,null,null,null,"2008-09-01",1140,2570,460]
[null,null,null,null,null,null,null,null,null,null,"2008-10-01",1020,2760,370]
[null,null,null,null,null,null,null,null,null,null,"2008-11-01",1060,1680,560]
[null,null,null,null,null,null,null,null,null,null,"2008-12-01",1130,2000,60]
[null,null,null,null,null,null,null,null,null,null,"2009-01-01",1050,2270,710]
[null,null,null,null,null,null,null,null,null,null,"2009-02-01",1380,2350,660]
[null,null,null,null,null,null,null,null,null,null,"2009-03-01",770,1410,800]
[null,null,null,null,null,null,null,null,null,null,"2009-04-01",860,2410,360]
[null,null,null,null,null,null,null,null,null,null,"2009-05-01",1130,1980,700]
[null,null,null,null,null,null,null,null,null,null,"2009-06-01",1350,2960,300]
[null,null,null,null,null,null,null,null,null,null,"2009-07-01",920,2320,380]

{"sheet":"RANK, LARGE, SMALL","index":87,"n_rows":274,"n_cols":24,"rows_kept":274,"cut":false,"hidden":true,"merged":[]}
[]
["© S. Christian Albright, 2011, All Rights Reserved"]
[null,null,null,null,null,null,null,null,null,null,null,"Rank 1 largest","Rank 1 smallest",null,null,null,null,null,null,null,null,null,{"$f":"RANK(K4,$K$4:$K$13,0)","v":6},{"$f":"RANK(K4,$K$4:$K$13,1)","v":4}]
[null,null,null,null,null,null,null,null,null,null,55,null,null,null,null,null,null,null,null,null,null,null,4,7]
[null,null,null,null,null,null,null,null,null,null,66,null,null,null,null,null,null,null,null,null,null,null,1,10]
[null,null,null,null,null,null,null,null,null,null,76,null,null,null,null,null,null,null,null,null,null,null,10,1]
[null,null,null,null,null,null,null,null,null,null,34,null,null,null,null,null,null,null,null,null,null,null,6,4]
[null,null,null,null,null,null,null,null,null,null,55,null,null,null,null,null,null,null,null,null,null,null,3,8]
[null,null,null,null,null,null,null,null,null,null,68,null,null,null,null,null,null,null,null,null,null,null,2,9]
[null,null,null,null,null,null,null,null,null,null,75,null,null,null,null,null,null,null,null,null,null,null,8,3]
[null,null,null,null,null,null,null,null,null,null,44,null,null,null,null,null,null,null,null,null,null,null,9,2]
[null,null,null,null,null,null,null,null,null,null,38,null,null,null,null,null,null,null,null,null,null,null,5,6]
[null,null,null,null,null,null,null,null,null,null,58]
[]
[]
[]
[]
[]
[]
[]
[]
[]
[]
[null,null,null,null,null,null,null,null,null,null,null,null,null,"Largest","Smallest"]
[null,null,null,null,null,null,null,null,null,null,679.02,null,1,null,null,null,null,null,null,null,null,null,{"$f":"LARGE($K$25:$K$274,M25)","v":1847.97},{"$f":"SMALL($K$25:$K$274,M25)","v":323.69}]
[null,null,null,null,null,null,null,null,null,null,1208.42,null,2,null,null,null,null,null,null,null,null,null,1699.23,379.17]
[null,null,null,null,null,null,null,null,null,null,1635.72,null,3,null,null,null,null,null,null,null,null,null,1648.23,380.33]
[null,null,null,null,null,null,null,null,null,null,729.63,null,4,null,null,null,null,null,null,null,null,null,1635.72,478.23]
[null,null,null,null,null,null,null,null,null,null,1036.08,null,5,null,null,null,null,null,null,null,null,null,1614.91,485.68]
[null,null,null,null,null,null,null,null,null,null,716.62,null,6,null,null,null,null,null,null,null,null,null,1597.1,488.53]
[null,null,null,null,null,null,null,null,null,null,972.92,null,7,null,null,null,null,null,null,null,null,null,1594.35,489.87]
[null,null,null,null,null,null,null,null,null,null,1175.68,null,8,null,null,null,null,null,null,null,null,null,1528.9,512.38]
[null,null,null,null,null,null,null,null,null,null,1271.3800000000001,null,9,null,null,null,null,null,null,null,null,null,1527.33,517.26]
[null,null,null,null,null,null,null,null,null,null,1048.93,null,10,null,null,null,null,null,null,null,null,null,1525.45,523.64]
[null,null,null,null,null,null,null,null,null,null,718.89]
[null,null,null,null,null,null,null,null,null,null,1282.8900000000001]
[null,null,null,null,null,null,null,null,null,null,960.55]
[null,null,null,null,null,null,null,null,null,null,1356.75]
[null,null,null,null,null,null,null,null,null,null,1257.6600000000001]
[null,null,null,null,null,null,null,null,null,null,902.38]
[null,null,null,null,null,null,null,null,null,null,1648.23]
[null,null,null,null,null,null,null,null,null,null,1111.56]
[null,null,null,null,null,null,null,null,null,null,750.54]
[null,null,null,null,null,null,null,null,null,null,1001.74]
[null,null,null,null,null,null,null,null,null,null,742.81]
[null,null,null,null,null,null,null,null,null,null,707.5]
[null,null,null,null,null,null,null,null,null,null,1080.94]
[null,null,null,null,null,null,null,null,null,null,1290.8499999999999]
[null,null,null,null,null,null,null,null,null,null,1115.6600000000001]
[null,null,null,null,null,null,null,null,null,null,1005.36]
[null,null,null,null,null,null,null,null,null,null,1243.57]
[null,null,null,null,null,null,null,null,null,null,1454.84]
[null,null,null,null,null,null,null,null,null,null,1491.96]
[null,null,null,null,null,null,null,null,null,null,991.85]
[null,null,null,null,null,null,null,null,null,null,1345.71]
[null,null,null,null,null,null,null,null,null,null,1098.3800000000001]
[null,null,null,null,null,null,null,null,null,null,584.24]
[null,null,null,null,null,null,null,null,null,null,1209.5]
[null,null,null,null,null,null,null,null,null,null,1416.73]
[null,null,null,null,null,null,null,null,null,null,530.54]
[null,null,null,null,null,null,null,null,null,null,1171.9100000000001]
[null,null,null,null,null,null,null,null,null,null,1354.49]
[null,null,null,null,null,null,null,null,null,null,989.32]
[null,null,null,null,null,null,null,null,null,null,788.77]
[null,null,null,null,null,null,null,null,null,null,1264.69]
[null,null,null,null,null,null,null,null,null,null,1594.35]
[null,null,null,null,null,null,null,null,null,null,1274.46]
[null,null,null,null,null,null,null,null,null,null,1023.2]
[null,null,null,null,null,null,null,null,null,null,1377.79]
[null,null,null,null,null,null,null,null,null,null,1090.1099999999999]
[null,null,null,null,null,null,null,null,null,null,963.47]
[null,null,null,null,null,null,null,null,null,null,623.22]
[null,null,null,null,null,null,null,null,null,null,591.33000000000004]
[null,null,null,null,null,null,null,null,null,null,1060.24]
[null,null,null,null,null,null,null,null,null,null,669.8]
[null,null,null,null,null,null,null,null,null,null,1260.54]
[null,null,null,null,null,null,null,null,null,null,1019.52]
[null,null,null,null,null,null,null,null,null,null,819.22]
[null,null,null,null,null,null,null,null,null,null,602.14]
[null,null,null,null,null,null,null,null,null,null,714.58]
[null,null,null,null,null,null,null,null,null,null,996.73]
[null,null,null,null,null,null,null,null,null,null,698.22]
[null,null,null,null,null,null,null,null,null,null,1116.06]
[null,null,null,null,null,null,null,null,null,null,851.37]
[null,null,null,null,null,null,null,null,null,null,1223.55]
[null,null,null,null,null,null,null,null,null,null,963.66]
[null,null,null,null,null,null,null,null,null,null,1114.3499999999999]
[null,null,null,null,null,null,null,null,null,null,1473.56]
[null,null,null,null,null,null,null,null,null,null,755.3]
[null,null,null,null,null,null,null,null,null,null,833.3]
[null,null,null,null,null,null,null,null,null,null,670.82]
[null,null,null,null,null,null,null,null,null,null,859.38]
[null,null,null,null,null,null,null,null,null,null,1109.96]
[null,null,null,null,null,null,null,null,null,null,1614.91]
[null,null,null,null,null,null,null,null,null,null,1035.8699999999999]
[null,null,null,null,null,null,null,null,null,null,927.74]
[null,null,null,null,null,null,null,null,null,null,681.5]
[null,null,null,null,null,null,null,null,null,null,953.19]
[null,null,null,null,null,null,null,null,null,null,1296.71]
[null,null,null,null,null,null,null,null,null,null,379.17]
[null,null,null,null,null,null,null,null,null,null,773.67]
[null,null,null,null,null,null,null,null,null,null,1235.8699999999999]
[null,null,null,null,null,null,null,null,null,null,1442.2]
[null,null,null,null,null,null,null,null,null,null,1332.61]
[null,null,null,null,null,null,null,null,null,null,1314.41]
[null,null,null,null,null,null,null,null,null,null,1102.07]
[null,null,null,null,null,null,null,null,null,null,894.25]
[null,null,null,null,null,null,null,null,null,null,949.84]
[null,null,null,null,null,null,null,null,null,null,899.89]
[null,null,null,null,null,null,null,null,null,null,842.8]
[null,null,null,null,null,null,null,null,null,null,737.26]
[null,null,null,null,null,null,null,null,null,null,853.25]
[null,null,null,null,null,null,null,null,null,null,1699.23]
[null,null,null,null,null,null,null,null,null,null,1084.52]
[null,null,null,null,null,null,null,null,null,null,753.02]
[null,null,null,null,null,null,null,null,null,null,1004.51]
[null,null,null,null,null,null,null,null,null,null,550.14]
[null,null,null,null,null,null,null,null,null,null,995.72]
[null,null,null,null,null,null,null,null,null,null,1284.55]
[null,null,null,null,null,null,null,null,null,null,1217.77]
[null,null,null,null,null,null,null,null,null,null,1527.33]
[null,null,null,null,null,null,null,null,null,null,937.32]
[null,null,null,null,null,null,null,null,null,null,523.64]
[null,null,null,null,null,null,null,null,null,null,672.17]
[null,null,null,null,null,null,null,null,null,null,1131.3900000000001]
[null,null,null,null,null,null,null,null,null,null,1283.45]
[null,null,null,null,null,null,null,null,null,null,822.97]
[null,null,null,null,null,null,null,null,null,null,1364.57]
[null,null,null,null,null,null,null,null,null,null,512.38]
[null,null,null,null,null,null,null,null,null,null,774.36]
[null,null,null,null,null,null,null,null,null,null,1105.6099999999999]
[null,null,null,null,null,null,null,null,null,null,946.32]
[null,null,null,null,null,null,null,null,null,null,730.95]
[null,null,null,null,null,null,null,null,null,null,759.13]
[null,null,null,null,null,null,null,null,null,null,1119.8499999999999]
[null,null,null,null,null,null,null,null,null,null,1139.42]
[null,null,null,null,null,null,null,null,null,null,1090.73]
[null,null,null,null,null,null,null,null,null,null,1446.34]
[null,null,null,null,null,null,null,null,null,null,866.76]
[null,null,null,null,null,null,null,null,null,null,800.82]
[null,null,null,null,null,null,null,null,null,null,1290.49]
[null,null,null,null,null,null,null,null,null,null,1477.84]
[null,null,null,null,null,null,null,null,null,null,977.47]
[null,null,null,null,null,null,null,null,null,null,1101.76]
[null,null,null,null,null,null,null,null,null,null,1101.6600000000001]
[null,null,null,null,null,null,null,null,null,null,1071.95]
[null,null,null,null,null,null,null,null,null,null,846.98]
[null,null,null,null,null,null,null,null,null,null,1222.82]
[null,null,null,null,null,null,null,null,null,null,1277.73]
[null,null,null,null,null,null,null,null,null,null,1129.76]
[null,null,null,null,null,null,null,null,null,null,1320.94]
[null,null,null,null,null,null,null,null,null,null,762.96]
[null,null,null,null,null,null,null,null,null,null,1145.8499999999999]
[null,null,null,null,null,null,null,null,null,null,985.63]
[null,null,null,null,null,null,null,null,null,null,664.06]
[null,null,null,null,null,null,null,null,null,null,808.46]
[null,null,null,null,null,null,null,null,null,null,808.69]
[null,null,null,null,null,null,null,null,null,null,1433.58]
[null,null,null,null,null,null,null,null,null,null,933.24]
[null,null,null,null,null,null,null,null,null,null,1059.9000000000001]
[null,null,null,null,null,null,null,null,null,null,1172.6099999999999]
[null,null,null,null,null,null,null,null,null,null,1334.85]
[null,null,null,null,null,null,null,null,null,null,752.82]
[null,null,null,null,null,null,null,null,null,null,1025.82]
[null,null,null,null,null,null,null,null,null,null,798.93]
[null,null,null,null,null,null,null,null,null,null,590.03]
[null,null,null,null,null,null,null,null,null,null,1362.43]
[null,null,null,null,null,null,null,null,null,null,581.91999999999996]
[null,null,null,null,null,null,null,null,null,null,921.59]
[null,null,null,null,null,null,null,null,null,null,1166.95]
[null,null,null,null,null,null,null,null,null,null,690.62]
[null,null,null,null,null,null,null,null,null,null,1472.74]
[null,null,null,null,null,null,null,null,null,null,931.17]
[null,null,null,null,null,null,null,null,null,null,1525.45]
[null,null,null,null,null,null,null,null,null,null,323.69]
[null,null,null,null,null,null,null,null,null,null,1388.36]
[null,null,null,null,null,null,null,null,null,null,668.07]
[null,null,null,null,null,null,null,null,null,null,1377.3]
[null,null,null,null,null,null,null,null,null,null,1374.89]
[null,null,null,null,null,null,null,null,null,null,968.95]
[null,null,null,null,null,null,null,null,null,null,637.91]
[null,null,null,null,null,null,null,null,null,null,592.41999999999996]
[null,null,null,null,null,null,null,null,null,null,1202.3699999999999]
[null,null,null,null,null,null,null,null,null,null,1188.52]
[null,null,null,null,null,null,null,null,null,null,1031.24]
[null,null,null,null,null,null,null,null,null,null,1004.71]
[null,null,null,null,null,null,null,null,null,null,1451.57]
[null,null,null,null,null,null,null,null,null,null,972.33]
[null,null,null,null,null,null,null,null,null,null,1172.22]
[null,null,null,null,null,null,null,null,null,null,828.66]
[null,null,null,null,null,null,null,null,null,null,914.55]
[null,null,null,null,null,null,null,null,null,null,543.38]
[null,null,null,null,null,null,null,null,null,null,489.87]
[null,null,null,null,null,null,null,null,null,null,988.93]
[null,null,null,null,null,null,null,null,null,null,1331.98]
[null,null,null,null,null,null,null,null,null,null,1211.72]
[null,null,null,null,null,null,null,null,null,null,999.51]
[null,null,null,null,null,null,null,null,null,null,963.75]
[null,null,null,null,null,null,null,null,null,null,1188.93]
[null,null,null,null,null,null,null,null,null,null,517.26]
[null,null,null,null,null,null,null,null,null,null,1234.76]
[null,null,null,null,null,null,null,null,null,null,953.21]
[null,null,null,null,null,null,null,null,null,null,1384.28]
[null,null,null,null,null,null,null,null,null,null,1059.93]
[null,null,null,null,null,null,null,null,null,null,1041.8]
[null,null,null,null,null,null,null,null,null,null,964.87]
[null,null,null,null,null,null,null,null,null,null,488.53]
[null,null,null,null,null,null,null,null,null,null,1398.93]
[null,null,null,null,null,null,null,null,null,null,1046.1199999999999]
[null,null,null,null,null,null,null,null,null,null,913.83]
[null,null,null,null,null,null,null,null,null,null,485.68]
[null,null,null,null,null,null,null,null,null,null,1335.03]
[null,null,null,null,null,null,null,null,null,null,1373.34]
[null,null,null,null,null,null,null,null,null,null,1208.25]
[null,null,null,null,null,null,null,null,null,null,1100.58]
[null,null,null,null,null,null,null,null,null,null,1051.5]
[null,null,null,null,null,null,null,null,null,null,1092.98]
[null,null,null,null,null,null,null,null,null,null,1166.45]
[null,null,null,null,null,null,null,null,null,null,941.87]
[null,null,null,null,null,null,null,null,null,null,1053.52]
[null,null,null,null,null,null,null,null,null,null,1095.1099999999999]
[null,null,null,null,null,null,null,null,null,null,1847.97]
[null,null,null,null,null,null,null,null,null,null,546.79]
[null,null,null,null,null,null,null,null,null,null,843.64]
[null,null,null,null,null,null,null,null,null,null,1306.94]
[null,null,null,null,null,null,null,null,null,null,1120.74]
[null,null,null,null,null,null,null,null,null,null,1289.04]
[null,null,null,null,null,null,null,null,null,null,1192.82]
[null,null,null,null,null,null,null,null,null,null,1132.8599999999999]
[null,null,null,null,null,null,null,null,null,null,1597.1]
[null,null,null,null,null,null,null,null,null,null,1078.3499999999999]
[null,null,null,null,null,null,null,null,null,null,1528.9]
[null,null,null,null,null,null,null,null,null,null,972.01]
[null,null,null,null,null,null,null,null,null,null,1206.6300000000001]
[null,null,null,null,null,null,null,null,null,null,1202.8399999999999]
[null,null,null,null,null,null,null,null,null,null,704.03]
[null,null,null,null,null,null,null,null,null,null,962.18]
[null,null,null,null,null,null,null,null,null,null,1252]
[null,null,null,null,null,null,null,null,null,null,1196.82]
[null,null,null,null,null,null,null,null,null,null,1279]
[null,null,null,null,null,null,null,null,null,null,757.5]
[null,null,null,null,null,null,null,null,null,null,846.49]
[null,null,null,null,null,null,null,null,null,null,855.45]
[null,null,null,null,null,null,null,null,null,null,561.13]
[null,null,null,null,null,null,null,null,null,null,1300.3599999999999]
[null,null,null,null,null,null,null,null,null,null,901.77]
[null,null,null,null,null,null,null,null,null,null,1015.09]
[null,null,null,null,null,null,null,null,null,null,1096.8399999999999]
[null,null,null,null,null,null,null,null,null,null,644.72]
[null,null,null,null,null,null,null,null,null,null,1372.65]
[null,null,null,null,null,null,null,null,null,null,579.08000000000004]
[null,null,null,null,null,null,null,null,null,null,647.23]
[null,null,null,null,null,null,null,null,null,null,478.23]
[null,null,null,null,null,null,null,null,null,null,1151.76]
[null,null,null,null,null,null,null,null,null,null,961.65]
[null,null,null,null,null,null,null,null,null,null,1241.79]
[null,null,null,null,null,null,null,null,null,null,1076.72]
[null,null,null,null,null,null,null,null,null,null,774.44]
[null,null,null,null,null,null,null,null,null,null,1149.76]
[null,null,null,null,null,null,null,null,null,null,846.46]
[null,null,null,null,null,null,null,null,null,null,927.77]
[null,null,null,null,null,null,null,null,null,null,1337.16]
[null,null,null,null,null,null,null,null,null,null,790.4]
[null,null,null,null,null,null,null,null,null,null,807.1]
[null,null,null,null,null,null,null,null,null,null,1201.21]
[null,null,null,null,null,null,null,null,null,null,1330.02]
[null,null,null,null,null,null,null,null,null,null,1100.3]
[null,null,null,null,null,null,null,null,null,null,1317.75]
[null,null,null,null,null,null,null,null,null,null,1080.5899999999999]
[null,null,null,null,null,null,null,null,null,null,1400.72]
[null,null,null,null,null,null,null,null,null,null,865.18]
[null,null,null,null,null,null,null,null,null,null,1383.26]
[null,null,null,null,null,null,null,null,null,null,997.08]
[null,null,null,null,null,null,null,null,null,null,380.33]

{"sheet":"Financial Functions","index":88,"n_rows":2,"n_cols":1,"rows_kept":2,"cut":false,"hidden":true,"merged":[]}
[]
["© S. Christian Albright, 2011, All Rights Reserved"]

{"sheet":"PMT","index":89,"n_rows":10,"n_cols":24,"rows_kept":10,"cut":false,"hidden":true,"merged":[]}
[]
["© S. Christian Albright, 2011, All Rights Reserved"]
[null,null,null,null,null,null,null,null,null,null,"Principal",30000,null,"Data table for payment versus term"]
[null,null,null,null,null,null,null,null,null,null,"Annual interest",6.7500000000000004E-2]
[null,null,null,null,null,null,null,null,null,null,"Term",36,null,null,null,null,null,null,null,null,null,null,"Term","Payment"]
[null,null,null,null,null,null,null,null,null,null,"Payment",null,null,null,null,null,null,null,null,null,null,null,null,{"$f":"PMT(L4/12,L5,-L3)","v":922.88764134072517}]
[null,null,null,null,null,null,null,null,null,null,null,null,null,null,null,null,null,null,null,null,null,null,24,1339.7798848513933]
[null,null,null,null,null,null,null,null,null,null,null,null,null,null,null,null,null,null,null,null,null,null,36,922.88764134072517]
[null,null,null,null,null,null,null,null,null,null,null,null,null,null,null,null,null,null,null,null,null,null,48,714.91283868347159]
[null,null,null,null,null,null,null,null,null,null,null,null,null,null,null,null,null,null,null,null,null,null,60,590.50381993545818]

{"sheet":"NPV, XNPV","index":90,"n_rows":49,"n_cols":24,"rows_kept":49,"cut":false,"hidden":true,"merged":[]}
[]
["© S. Christian Albright, 2011, All Rights Reserved"]
[]
[]
[]
[]
[]
[]
[]
[]
[]
[]
[]
[]
[]
[]
[null,null,null,null,null,null,null,null,null,null,"Discount rate",0.12]
[null,null,null,null,null,null,null,null,null,null,"Initial payment",100000]
[]
[null,null,null,null,null,null,null,null,null,null,"Cash inflows at ends of years"]
[null,null,null,null,null,null,null,null,null,null,"Year",1,2,3,4,5]
[null,null,null,null,null,null,null,null,null,null,"Inflow",20000,35000,50000,45000,35000]
[]
[null,null,null,null,null,null,null,null,null,null,"NPV",null,null,null,null,null,null,null,null,null,null,null,"NPV",{"$f":"-L18+NPV(L17,L22:P22)","v":29806.194440467472}]
[]
[]
[]
[]
[]
[]
[]
[]
[]
[]
[]
[]
[]
[]
[]
[]
[]
[]
[null,null,null,null,null,null,null,null,null,null,"Discount rate",0.12]
[]
[null,null,null,null,null,null,null,null,null,null,"Stream of cash flows"]
[null,null,null,null,null,null,null,null,null,null,"Date","2009-01-01","2009-05-25","2009-09-15","2010-01-15","2010-06-30"]
[null,null,null,null,null,null,null,null,null,null,"Cash",-85000,22500,31000,65500,55000]
[]
[null,null,null,null,null,null,null,null,null,null,"NPV",null,null,null,null,null,null,null,null,null,null,null,"NPV",{"$f":"XNPV(L43,L47:P47,L46:P46)","v":69805.023839416215}]

{"sheet":"IRR","index":91,"n_rows":34,"n_cols":24,"rows_kept":34,"cut":false,"hidden":true,"merged":[]}
[]
["© S. Christian Albright, 2011, All Rights Reserved"]
[]
[]
[]
[]
[]
[]
[]
[]
[]
[]
[]
[]
[]
[]
[]
[]
[]
[]
[]
[]
[]
[]
[]
[]
[]
[]
[]
[]
[null,null,null,null,null,null,null,null,null,null,"Cash flows (initial value is a payment)"]
[null,null,null,null,null,null,null,null,null,null,-100000,35000,45000,40000,25000,10000]
[]
[null,null,null,null,null,null,null,null,null,null,"IRR",null,null,null,null,null,null,null,null,null,null,null,"IRR",{"$f":"IRR(K32:P32,0.15)","v":0.19812232862822721}]

{"sheet":"Reference Functions","index":92,"n_rows":2,"n_cols":1,"rows_kept":2,"cut":false,"hidden":true,"merged":[]}
[]
["© S. Christian Albright, 2011, All Rights Reserved"]

{"sheet":"INDEX","index":93,"n_rows":12,"n_cols":21,"rows_kept":12,"cut":false,"hidden":true,"merged":[]}
[]
["© S. Christian Albright, 2011, All Rights Reserved"]
[null,null,null,null,null,null,null,null,null,null,"Unit shipping costs","City1","City2","City3"]
[null,null,null,null,null,null,null,null,null,null,"Plant1",1.25,1.35,1.55]
[null,null,null,null,null,null,null,null,null,null,"Plant2",1.1499999999999999,1.45,1.25]
[null,null,null,null,null,null,null,null,null,null,"Plant3",1.35,1.45,1.1499999999999999]
[]
[null,null,null,null,null,null,null,null,null,null,"Unit shipping from Plant2 to City3",null,null,null,null,null,null,null,null,null,{"$f":"INDEX(L4:N6,2,3)","v":1.25}]
[]
[null,null,null,null,null,null,null,null,null,null,"Plant",1]
[null,null,null,null,null,null,null,null,null,null,"City",2]
[null,null,null,null,null,null,null,null,null,null,"Unit shipping cost",null,null,null,null,null,null,null,null,null,{"$f":"INDEX(L4:N6,L10,L11)","v":1.35}]

{"sheet":"MATCH","index":94,"n_rows":35,"n_cols":26,"rows_kept":35,"cut":false,"hidden":true,"merged":[]}
[]
["© S. Christian Albright, 2011, All Rights Reserved"]
[null,null,null,null,null,null,null,null,null,null,"Table of profit versus order quantity"]
[null,null,null,null,null,null,null,null,null,null,"Order quantity","Profit"]
[null,null,null,null,null,null,null,null,null,null,200,5325]
[null,null,null,null,null,null,null,null,null,null,250,5430]
[null,null,null,null,null,null,null,null,null,null,300,5640]
[null,null,null,null,null,null,null,null,null,null,350,5565]
[null,null,null,null,null,null,null,null,null,null,400,5235]
[]
[null,null,null,null,null,null,null,null,null,null,"Best profit",{"$f":"MAX(L5:L9)","v":5640}]
[null,null,null,null,null,null,null,null,null,null,"Best order quantity",{"$f":"INDEX(K5:K9,MATCH(L11,L5:L9,0))","v":300}]
[]
[]
[]
[]
[]
[]
[]
[]
[]
[]
[]
[]
[]
[]
[null,null,null,null,null,null,null,null,null,null,"Profit for various order quantities (column L) and unit stockout costs (row 32)"]
[null,null,null,null,null,null,null,null,null,null,null,2,3,4,5]
[null,null,null,null,null,null,null,null,null,null,200,5235,5175,5025,4935]
[null,null,null,null,null,null,null,null,null,null,250,5465,5285,5190,5085]
[null,null,null,null,null,null,null,null,null,null,300,5355,5325,5265,5100]
[null,null,null,null,null,null,null,null,null,null,350,5215,5195,5130,5125]
[null,null,null,null,null,null,null,null,null,null,400,5145,5085,5015,5005]
[]
[null,null,null,null,null,null,null,null,null,null,"Best order quantities",null,null,null,null,null,null,null,null,null,null,null,{"$f":"INDEX($K$29:$K$33,MATCH(MAX(L29:L33),L29:L33,0))","v":250},{"$f":"INDEX($K$29:$K$33,MATCH(MAX(M29:M33),M29:M33,0))","v":300},{"$f":"INDEX($K$29:$K$33,MATCH(MAX(N29:N33),N29:N33,0))","v":300},{"$f":"INDEX($K$29:$K$33,MATCH(MAX(O29:O33),O29:O33,0))","v":350}]

{"sheet":"OFFSET","index":95,"n_rows":79,"n_cols":42,"rows_kept":79,"cut":false,"hidden":true,"merged":[]}
[]
["© S. Christian Albright, 2011, All Rights Reserved"]
[]
[]
[]
[]
[]
[]
[]
[]
[]
[]
[]
[]
[]
[]
[]
[]
[]
[]
[]
[]
[]
[]
[]
[null,null,null,null,null,null,null,null,null,null,"Payment delay",2]
[]
[null,null,null,null,null,null,null,null,null,null,"Month","Oct","Nov","Dec","Jan","Feb","Mar","Apr","May","Jun","Jul","Aug"]
[null,null,null,null,null,null,null,null,null,null,"Sales",3200,4600,5500,2500,3300,4200,2900,4500,2750]
[null,null,null,null,null,null,null,null,null,null,"Receipts",null,null,{"$f":"OFFSET(N29,0,-$L$26)","v":3200},4600,5500,2500,3300,4200,2900,4500,2750]
[]
[]
[]
[]
[]
[null,null,null,null,null,null,null,null,null,null,"Percent paid",0.4,"when:",1,"  month from now"]
[null,null,null,null,null,null,null,null,null,null,null,0.6,null,2,"  months from now"]
[]
[null,null,null,null,null,null,null,null,null,null,"Month","Oct","Nov","Dec","Jan","Feb","Mar","Apr","May","Jun","Jul","Aug",null,null,null,null,"Jan","Feb","Mar","Apr","May","Jun","Jul","Aug"]
[null,null,null,null,null,null,null,null,null,null,"Cost",1950,2900,4150,2500,3350,2850,3550,1850,4200,2300]
[null,null,null,null,null,null,null,null,null,null,"Payment",null,null,null,null,null,null,null,null,null,null,null,null,null,null,null,{"$f":"$L$36*OFFSET(O40,0,-$N$36)+$L$37*OFFSET(O40,0,-$N$37)","v":3400},{"$f":"$L$36*OFFSET(P40,0,-$N$36)+$L$37*OFFSET(P40,0,-$N$37)","v":3490},2840,3150,3130,2870,2790,3440]
[]
[]
[]
[]
[]
[]
[]
[]
[]
[]
[]
[]
[]
[]
[null,null,null,null,null,null,null,null,null,null,"Month","Sales",null,"Total",{"$f":"SUM(Sales)","v":17030}]
[null,null,null,null,null,null,null,null,null,null,"2011-01-01",2450]
[null,null,null,null,null,null,null,null,null,null,"2011-02-01",3140]
[null,null,null,null,null,null,null,null,null,null,"2011-03-01",3250]
[null,null,null,null,null,null,null,null,null,null,"2011-04-01",4510]
[null,null,null,null,null,null,null,null,null,null,"2011-05-01",3680]
[]
[]
[]
[]
[]
[]
[]
[]
[]
[null,null,null,null,null,null,null,null,null,null,null,null,null,null,null,null,null,null,null,null,null,null,null,null,null,null,null,null,null,null,null,null,null,null,null,"Total sales"]
[null,null,null,null,null,null,null,null,null,null,null,null,null,null,null,null,null,null,null,null,null,null,null,null,null,null,null,null,null,null,null,null,null,null,null,null,null,null,"Smith","Jones","Wilson","Donalds"]
[null,null,null,null,null,null,null,null,null,null,null,null,null,null,null,null,null,null,null,null,null,null,null,null,null,null,null,null,null,null,null,null,null,null,null,null,null,"2005-01-01",6700,7400,5800,9000]
[null,null,null,null,null,null,null,null,null,null,null,null,null,null,null,null,null,null,null,null,null,null,null,null,null,null,null,null,null,null,null,null,null,null,null,null,null,"2005-02-01",5800,8900,5500,7900]
[null,null,null,null,null,null,null,null,null,null,null,null,null,null,null,null,null,null,null,null,null,null,null,null,null,null,null,null,null,null,null,null,null,null,null,null,null,"2005-03-01",5000,7900,5900,8300]
[null,null,null,null,null,null,null,null,null,null,null,null,null,null,null,null,null,null,null,null,null,null,null,null,null,null,null,null,null,null,null,null,null,null,null,null,null,"2005-04-01",6700,5800,6000,9700]
[null,null,null,null,null,null,null,null,null,null,null,null,null,null,null,null,null,null,null,null,null,null,null,null,null,null,null,null,null,null,null,null,null,null,null,null,null,"2005-05-01",9400,7800,6700,8400]
[null,null,null,null,null,null,null,null,null,null,null,null,null,null,null,null,null,null,null,null,null,null,null,null,null,null,null,null,null,null,null,null,null,null,null,null,null,"2005-06-01",6200,5800,9400,8500]
[null,null,null,null,null,null,null,null,null,null,null,null,null,null,null,null,null,null,null,null,null,null,null,null,null,null,null,null,null,null,null,null,null,null,null,null,null,"2005-07-01",8700,5300,6900,7500]

{"sheet":"INDIRECT","index":96,"n_rows":76,"n_cols":42,"rows_kept":76,"cut":false,"hidden":true,"merged":[]}
[]
["© S. Christian Albright, 2011, All Rights Reserved"]
[null,null,null,null,null,null,null,null,null,null,"Monthly sales"]
[null,null,null,null,null,null,null,null,null,null,"Month","Product1","Product2","Product3","Product4"]
[null,null,null,null,null,null,null,null,null,null,"2009-01-01",1043,1047,957,1031]
[null,null,null,null,null,null,null,null,null,null,"2009-02-01",993,832,883,796]
[null,null,null,null,null,null,null,null,null,null,"2009-03-01",968,1114,1206,1048]
[null,null,null,null,null,null,null,null,null,null,"2009-04-01",1461,1487,1495,1519]
[null,null,null,null,null,null,null,null,null,null,"2009-05-01",1137,1183,1035,1045]
[null,null,null,null,null,null,null,null,null,null,"2009-06-01",1103,999,931,1133]
[null,null,null,null,null,null,null,null,null,null,"2009-07-01",1140,1025,1124,982]
[null,null,null,null,null,null,null,null,null,null,"2009-08-01",772,927,797,922]
[null,null,null,null,null,null,null,null,null,null,"2009-09-01",1195,1297,1231,1230]
[null,null,null,null,null,null,null,null,null,null,"2009-10-01",1140,1358,1267,1253]
[null,null,null,null,null,null,null,null,null,null,"2009-11-01",1236,1120,1107,1275]
[null,null,null,null,null,null,null,null,null,null,"2009-12-01",696,573,513,687]
[null,null,null,null,null,null,null,null,null,null,"2010-01-01",749,581,481,711]
[null,null,null,null,null,null,null,null,null,null,"2010-02-01",984,1005,998,804]
[null,null,null,null,null,null,null,null,null,null,"2010-03-01",1114,933,1084,963]
[null,null,null,null,null,null,null,null,null,null,"2010-04-01",758,832,950,745]
[null,null,null,null,null,null,null,null,null,null,"2010-05-01",307,418,428,508]
[null,null,null,null,null,null,null,null,null,null,"2010-06-01",1055,807,865,1102]
[null,null,null,null,null,null,null,null,null,null,"2010-07-01",1108,1149,1240,1275]
[null,null,null,null,null,null,null,null,null,null,"2010-08-01",1286,1041,919,968]
[]
[null,null,null,null,null,null,null,null,null,null,"Averages, standard deviations",null,null,null,null,null,null,null,null,null,null,null,null,null,null,null,null,null,null,null,null,null,null,"Averages, standard deviations"]
[null,null,null,null,null,null,null,null,null,null,null,"Average","Stdev",null,null,null,null,null,null,null,null,null,null,null,null,null,null,null,null,null,null,null,null,null,"Average","Stdev"]
[null,null,null,null,null,null,null,null,null,null,"Product1",null,null,null,null,null,null,null,null,null,null,null,null,null,null,null,null,null,null,null,null,null,null,"Product1",{"$f":"AVERAGE(INDIRECT(AH28))","v":1012.25},{"$f":"STDEV(INDIRECT(AH28:AH31))","v":254.50589384138041}]
[null,null,null,null,null,null,null,null,null,null,"Product2",null,null,null,null,null,null,null,null,null,null,null,null,null,null,null,null,null,null,null,null,null,null,"Product2",{"$f":"AVERAGE(INDIRECT(AH29))","v":986.4},{"$f":"STDEV(INDIRECT(AH29:AH32))","v":265.32986421076936}]
[null,null,null,null,null,null,null,null,null,null,"Product3",null,null,null,null,null,null,null,null,null,null,null,null,null,null,null,null,null,null,null,null,null,null,"Product3",{"$f":"AVERAGE(INDIRECT(AH30))","v":975.55},{"$f":"STDEV(INDIRECT(AH30:AH33))","v":272.93463165727923}]
[null,null,null,null,null,null,null,null,null,null,"Product4",null,null,null,null,null,null,null,null,null,null,null,null,null,null,null,null,null,null,null,null,null,null,"Product4",{"$f":"AVERAGE(INDIRECT(AH31))","v":999.85},{"$f":"STDEV(INDIRECT(AH31:AH34))","v":245.8406148193111}]
[]
[null,null,null,null,null,null,null,null,null,null,"Correlations",null,null,null,null,null,null,null,null,null,null,null,null,null,null,null,null,null,null,null,null,null,null,"Correlations"]
[null,null,null,null,null,null,null,null,null,null,null,"Product1","Product2","Product3","Product4",null,null,null,null,null,null,null,null,null,null,null,null,null,null,null,null,null,null,null,"Product1","Product2","Product3","Product4"]
[null,null,null,null,null,null,null,null,null,null,"Product1",null,null,null,null,null,null,null,null,null,null,null,null,null,null,null,null,null,null,null,null,null,null,"Product1",{"$f":"CORREL(INDIRECT($AH35),INDIRECT(AI$34))","v":0.99999999999999989},0.85523881585398154,0.82385007361330598,0.85486242429259685]
[null,null,null,null,null,null,null,null,null,null,"Product2",null,null,null,null,null,null,null,null,null,null,null,null,null,null,null,null,null,null,null,null,null,null,"Product2",0.85523881585398154,0.99999999999999978,0.94228885685790842,0.89123067021589208]
[null,null,null,null,null,null,null,null,null,null,"Product3",null,null,null,null,null,null,null,null,null,null,null,null,null,null,null,null,null,null,null,null,null,null,"Product3",0.82385007361330598,0.94228885685790842,1,0.85817589671629591]
[null,null,null,null,null,null,null,null,null,null,"Product4",null,null,null,null,null,null,null,null,null,null,null,null,null,null,null,null,null,null,null,null,null,null,"Product4",0.85486242429259685,0.89123067021589208,0.85817589671629591,1]
[]
[]
[]
[]
[]
[]
[]
[]
[]
[]
[]
[]
[]
[]
[]
[]
[]
[]
[]
[]
[]
[]
[]
[]
[]
[]
[]
[]
[]
[null,null,null,null,null,null,null,null,null,null,null,null,null,null,null,null,null,null,null,null,null,null,null,null,null,null,null,null,null,null,null,null,null,null,null,"Total sales"]
[null,null,null,null,null,null,null,null,null,null,null,null,null,null,null,null,null,null,null,null,null,null,null,null,null,null,null,null,null,null,null,null,null,null,null,null,null,null,"Smith","Jones","Wilson","Donalds"]
[null,null,null,null,null,null,null,null,null,null,null,null,null,null,null,null,null,null,null,null,null,null,null,null,null,null,null,null,null,null,null,null,null,null,null,null,null,"2005-01-01",6700,7400,5800,9000]
[null,null,null,null,null,null,null,null,null,null,null,null,null,null,null,null,null,null,null,null,null,null,null,null,null,null,null,null,null,null,null,null,null,null,null,null,null,"2005-02-01",5800,8900,5500,7900]
[null,null,null,null,null,null,null,null,null,null,null,null,null,null,null,null,null,null,null,null,null,null,null,null,null,null,null,null,null,null,null,null,null,null,null,null,null,"2005-03-01",5000,7900,5900,8300]
[null,null,null,null,null,null,null,null,null,null,null,null,null,null,null,null,null,null,null,null,null,null,null,null,null,null,null,null,null,null,null,null,null,null,null,null,null,"2005-04-01",6700,5800,6000,9700]
[null,null,null,null,null,null,null,null,null,null,null,null,null,null,null,null,null,null,null,null,null,null,null,null,null,null,null,null,null,null,null,null,null,null,null,null,null,"2005-05-01",9400,7800,6700,8400]
[null,null,null,null,null,null,null,null,null,null,null,null,null,null,null,null,null,null,null,null,null,null,null,null,null,null,null,null,null,null,null,null,null,null,null,null,null,"2005-06-01",6200,5800,9400,8500]
[null,null,null,null,null,null,null,null,null,null,null,null,null,null,null,null,null,null,null,null,null,null,null,null,null,null,null,null,null,null,null,null,null,null,null,null,null,"2005-07-01",8700,5300,6900,7500]

{"sheet":"Tools for Analyzing Data","index":97,"n_rows":2,"n_cols":1,"rows_kept":2,"cut":false,"hidden":true,"merged":[]}
[]
["© S. Christian Albright, 2011, All Rights Reserved"]

{"sheet":"Data Tables","index":98,"n_rows":2,"n_cols":1,"rows_kept":2,"cut":false,"hidden":true,"merged":[]}
[]
["© S. Christian Albright, 2011, All Rights Reserved"]

{"sheet":"One-Way Data Table","index":99,"n_rows":50,"n_cols":23,"rows_kept":50,"cut":false,"hidden":true,"merged":[]}
[]
["© S. Christian Albright, 2011, All Rights Reserved"]
[null,null,null,null,null,null,null,null,null,null,"Price of car",20000,null,"Data table "]
[null,null,null,null,null,null,null,null,null,null,"Down payment",5000,null,"Interest rate","Monthly payment"]
[null,null,null,null,null,null,null,null,null,null,"Amount financed",{"$f":"L3-L4","v":15000},null,null,{"$f":"L9","v":459.73504314764676}]
[null,null,null,null,null,null,null,null,null,null,"Annual interest rate",6.5000000000000002E-2,null,0.06,456.32906177332671]
[null,null,null,null,null,null,null,null,null,null,"Number of payments",36,null,6.25E-2,458.03012274982262]
[null,null,null,null,null,null,null,null,null,null,null,null,null,6.5000000000000002E-2,459.73504314764676]
[null,null,null,null,null,null,null,null,null,null,"Monthly payment",{"$f":"PMT(L6/12,L7,-L5)","v":459.73504314764676},null,6.7500000000000004E-2,461.44382067036258]
[null,null,null,null,null,null,null,null,null,null,"Total interest paid",{"$f":"L9*L7-L5","v":1550.4615533152828},null,7.0000000000000007E-2,463.15645298057916]
[]
[]
[]
[]
[]
[]
[]
[]
[]
[]
[]
[]
[]
[]
[]
[]
[]
[]
[]
[]
[]
[]
[null,null,null,null,null,null,null,null,null,null,"Price of car",20000,null,"Data table"]
[null,null,null,null,null,null,null,null,null,null,"Down payment",5000,null,"Interest","Monthly payment","Total interest"]
[null,null,null,null,null,null,null,null,null,null,"Amount financed",{"$f":"L33-L34","v":15000},null,null,{"$f":"L39","v":459.73504314764676},{"$f":"L40","v":1550.4615533152828}]
[null,null,null,null,null,null,null,null,null,null,"Annual interest rate",6.5000000000000002E-2,null,0.06,456.32906177332671,1427.8462238397624]
[null,null,null,null,null,null,null,null,null,null,"Number of payments",36,null,6.25E-2,458.03012274982262,1489.0844189936142]
[null,null,null,null,null,null,null,null,null,null,null,null,null,6.5000000000000002E-2,459.73504314764676,1550.4615533152828]
[null,null,null,null,null,null,null,null,null,null,"Monthly payment",{"$f":"PMT(L36/12,L37,-L35)","v":459.73504314764676},null,6.7500000000000004E-2,461.44382067036258,1611.977544133053]
[null,null,null,null,null,null,null,null,null,null,"Total interest paid",{"$f":"L39*L37-L35","v":1550.4615533152828},null,7.0000000000000007E-2,463.15645298057916,1673.6323073008498]
[]
[]
[null,null,null,null,null,null,null,null,null,null,"Price of car",20000,null,null,null,null,null,null,null,null,"Data table"]
[null,null,null,null,null,null,null,null,null,null,"Down payment",5000,null,null,null,null,null,null,null,null,"Term","Monthly payment","Total interest"]
[null,null,null,null,null,null,null,null,null,null,"Amount financed",{"$f":"L43-L44","v":15000},null,null,null,null,null,null,null,null,null,{"$f":"L49","v":459.73504314764676},{"$f":"L50","v":1550.4615533152828}]
[null,null,null,null,null,null,null,null,null,null,"Annual interest rate",6.5000000000000002E-2,null,null,null,null,null,null,null,null,12,1294.446254404221,533.35505285065301]
[null,null,null,null,null,null,null,null,null,null,"Number of payments",36,null,null,null,null,null,null,null,null,24,668.19377150266484,1036.6505160639572]
[null,null,null,null,null,null,null,null,null,null,null,null,null,null,null,null,null,null,null,null,36,459.73504314764676,1550.4615533152828]
[null,null,null,null,null,null,null,null,null,null,"Monthly payment",{"$f":"PMT(L46/12,L47,-L45)","v":459.73504314764676},null,null,null,null,null,null,null,null,48,355.7242939334655,2074.7661088063433]
[null,null,null,null,null,null,null,null,null,null,"Total interest paid",{"$f":"L49*L47-L45","v":1550.4615533152828}]

{"sheet":"Two-Way Data Table","index":100,"n_rows":28,"n_cols":28,"rows_kept":28,"cut":false,"hidden":true,"merged":[]}
[]
["© S. Christian Albright, 2011, All Rights Reserved"]
[null,null,null,null,null,null,null,null,null,null,"Price of car",20000,null,"Data table of monthly payment"]
[null,null,null,null,null,null,null,null,null,null,"Down payment",5000,null,{"$f":"L9","v":459.73504314764676},4000,5000,6000]
[null,null,null,null,null,null,null,null,null,null,"Amount financed",{"$f":"L3-L4","v":15000},null,0.06,486.75099922488175,456.32906177332671,425.90712432177156]
[null,null,null,null,null,null,null,null,null,null,"Annual interest rate",6.5000000000000002E-2,null,6.25E-2,488.56546426647742,458.03012274982262,427.49478123316777]
[null,null,null,null,null,null,null,null,null,null,"Number of payments",36,null,6.5000000000000002E-2,490.38404602415659,459.73504314764676,429.08604027113699]
[null,null,null,null,null,null,null,null,null,null,null,null,null,6.7500000000000004E-2,492.20674204838679,461.44382067036258,430.68089929233838]
[null,null,null,null,null,null,null,null,null,null,"Monthly payment",{"$f":"PMT(L6/12,L7,-L5)","v":459.73504314764676},null,7.0000000000000007E-2,494.03354984595109,463.15645298057916,432.27935611520718]
[null,null,null,null,null,null,null,null,null,null,"Total interest paid",{"$f":"L9*L7-L5","v":1550.4615533152828}]
[]
[]
[]
[]
[]
[]
[]
[]
[]
[]
[null,null,null,null,null,null,null,null,null,null,"Price of car",20000,null,"Data table of total interest paid",null,null,null,null,null,null,null,null,null,null,"Data table of total interest paid"]
[null,null,null,null,null,null,null,null,null,null,"Down payment",5000,null,null,null,null,null,null,null,null,null,null,null,null,{"$f":"L28","v":1550.4615533152828},4000,5000,6000]
[null,null,null,null,null,null,null,null,null,null,"Amount financed",{"$f":"L21-L22","v":15000},null,null,null,null,null,null,null,null,null,null,null,null,12,568.91205637402891,533.35505285065301,497.79804932727347]
[null,null,null,null,null,null,null,null,null,null,"Annual interest rate",6.5000000000000002E-2,null,null,null,null,null,null,null,null,null,null,null,null,24,1105.7605504682215,1036.6505160639572,967.54048165968925]
[null,null,null,null,null,null,null,null,null,null,"Number of payments",36,null,null,null,null,null,null,null,null,null,null,null,null,36,1653.8256568696379,1550.4615533152828,1447.0974497609313]
[null,null,null,null,null,null,null,null,null,null,null,null,null,null,null,null,null,null,null,null,null,null,null,null,48,2213.0838493934316,2074.7661088063433,1936.4483682192513]
[null,null,null,null,null,null,null,null,null,null,"Monthly payment",{"$f":"PMT(L24/12,L25,-L23)","v":459.73504314764676},null,null,null,null,null,null,null,null,null,null,null,null,60,2783.5022899793985,2609.5333968556879,2435.5645037319737]
[null,null,null,null,null,null,null,null,null,null,"Total interest paid",{"$f":"L27*L25-L23","v":1550.4615533152828}]

{"sheet":"Tables","index":101,"n_rows":107,"n_cols":16,"rows_kept":107,"cut":false,"hidden":true,"merged":[]}
[]
["© S. Christian Albright, 2011, All Rights Reserved"]
[null,null,null,null,null,null,null,null,null,null,"Person","Birthdate","Gender","State","Children","Salary"]
[null,null,null,null,null,null,null,null,null,null,1,"1959-08-05","Male","Illinois",1,65400]
[null,null,null,null,null,null,null,null,null,null,2,"1977-10-15","Female","Wisconsin",2,62000]
[null,null,null,null,null,null,null,null,null,null,3,"1981-01-03","Male","Ohio",0,63200]
[null,null,null,null,null,null,null,null,null,null,4,"1949-05-05","Male","Indiana",2,52000]
[null,null,null,null,null,null,null,null,null,null,5,"1987-04-04","Female","Michigan",3,81400]
[null,null,null,null,null,null,null,null,null,null,6,"1949-06-30","Female","Indiana",3,46300]
[null,null,null,null,null,null,null,null,null,null,7,"1949-05-22","Female","Illinois",2,49600]
[null,null,null,null,null,null,null,null,null,null,8,"1952-10-30","Male","Michigan",1,45900]
[null,null,null,null,null,null,null,null,null,null,9,"1957-01-17","Male","Michigan",3,47700]
[null,null,null,null,null,null,null,null,null,null,10,"1985-09-18","Female","Indiana",1,59900]
[null,null,null,null,null,null,null,null,null,null,11,"1953-07-19","Male","Ohio",1,48100]
[null,null,null,null,null,null,null,null,null,null,12,"1946-12-10","Female","Wisconsin",0,58100]
[null,null,null,null,null,null,null,null,null,null,13,"1986-03-29","Female","Michigan",2,56000]
[null,null,null,null,null,null,null,null,null,null,14,"1952-12-12","Female","Indiana",2,53400]
[null,null,null,null,null,null,null,null,null,null,15,"1977-06-12","Female","Indiana",2,39000]
[null,null,null,null,null,null,null,null,null,null,16,"1989-11-19","Male","Wisconsin",1,61500]
[null,null,null,null,null,null,null,null,null,null,17,"1957-09-06","Male","Ohio",0,37700]
[null,null,null,null,null,null,null,null,null,null,18,"1970-09-30","Female","Michigan",2,36700]
[null,null,null,null,null,null,null,null,null,null,19,"1973-10-24","Male","Wisconsin",2,45200]
[null,null,null,null,null,null,null,null,null,null,20,"1978-06-08","Male","Illinois",0,59000]
[null,null,null,null,null,null,null,null,null,null,21,"1990-08-27","Female","Ohio",2,54300]
[null,null,null,null,null,null,null,null,null,null,22,"1947-02-09","Male","Indiana",1,62100]
[null,null,null,null,null,null,null,null,null,null,23,"1989-04-01","Male","Michigan",0,78000]
[null,null,null,null,null,null,null,null,null,null,24,"1970-03-12","Male","Wisconsin",0,43200]
[null,null,null,null,null,null,null,null,null,null,25,"1970-03-28","Male","Ohio",1,44500]
[null,null,null,null,null,null,null,null,null,null,26,"1963-05-06","Male","Michigan",1,43300]
[null,null,null,null,null,null,null,null,null,null,27,"1959-05-07","Male","Indiana",3,45400]
[null,null,null,null,null,null,null,null,null,null,28,"1987-03-06","Male","Michigan",2,53900]
[null,null,null,null,null,null,null,null,null,null,29,"1958-02-09","Male","Illinois",1,44100]
[null,null,null,null,null,null,null,null,null,null,30,"1955-08-04","Female","Ohio",2,31000]
[null,null,null,null,null,null,null,null,null,null,31,"1984-11-09","Male","Indiana",2,67400]
[null,null,null,null,null,null,null,null,null,null,32,"1961-02-10","Female","Ohio",1,59300]
[null,null,null,null,null,null,null,null,null,null,33,"1961-04-01","Female","Ohio",1,48600]
[null,null,null,null,null,null,null,null,null,null,34,"1961-10-20","Male","Illinois",0,58400]
[null,null,null,null,null,null,null,null,null,null,35,"1970-04-25","Male","Michigan",2,65500]
[null,null,null,null,null,null,null,null,null,null,36,"1977-02-17","Male","Michigan",0,46900]
[null,null,null,null,null,null,null,null,null,null,37,"1985-04-13","Male","Michigan",2,41000]
[null,null,null,null,null,null,null,null,null,null,38,"1966-05-16","Male","Ohio",0,89300]
[null,null,null,null,null,null,null,null,null,null,39,"1969-10-28","Female","Indiana",3,71800]
[null,null,null,null,null,null,null,null,null,null,40,"1958-11-30","Male","Illinois",1,95000]
[null,null,null,null,null,null,null,null,null,null,41,"1962-09-27","Male","Illinois",1,49700]
[null,null,null,null,null,null,null,null,null,null,42,"1968-01-25","Male","Ohio",2,71700]
[null,null,null,null,null,null,null,null,null,null,43,"1988-10-15","Female","Wisconsin",0,52900]
[null,null,null,null,null,null,null,null,null,null,44,"1978-02-11","Female","Michigan",0,58300]
[null,null,null,null,null,null,null,null,null,null,45,"1974-06-19","Male","Indiana",2,82000]
[null,null,null,null,null,null,null,null,null,null,46,"1989-09-22","Male","Wisconsin",0,41300]
[null,null,null,null,null,null,null,null,null,null,47,"1983-07-25","Female","Wisconsin",1,72000]
[null,null,null,null,null,null,null,null,null,null,48,"1956-04-09","Female","Indiana",2,73500]
[null,null,null,null,null,null,null,null,null,null,49,"1989-02-09","Male","Ohio",2,55200]
[null,null,null,null,null,null,null,null,null,null,50,"1960-12-10","Female","Michigan",1,57000]
[null,null,null,null,null,null,null,null,null,null,51,"1956-08-06","Male","Michigan",2,84300]
[null,null,null,null,null,null,null,null,null,null,52,"1981-09-20","Male","Indiana",2,68900]
[null,null,null,null,null,null,null,null,null,null,53,"1963-01-31","Male","Wisconsin",2,59000]
[null,null,null,null,null,null,null,null,null,null,54,"1973-12-07","Female","Ohio",0,83200]
[null,null,null,null,null,null,null,null,null,null,55,"1988-12-03","Male","Wisconsin",0,52400]
[]
[]
[]
[]
[]
[]
[]
[]
[]
[]
[]
[]
[]
[]
[]
[]
[]
[]
[]
[]
[]
[]
[]
[]
[null,null,null,null,null,null,null,null,null,null,"Month","Product1","Product2"]
[null,null,null,null,null,null,null,null,null,null,"2008-01-01",{"$f":"RANDBETWEEN(1000,5000)","v":1978},4013]
[null,null,null,null,null,null,null,null,null,null,"2008-02-01",3119,4505]
[null,null,null,null,null,null,null,null,null,null,"2008-03-01",4356,1285]
[null,null,null,null,null,null,null,null,null,null,"2008-04-01",2352,4281]
[null,null,null,null,null,null,null,null,null,null,"2008-05-01",3569,3411]
[null,null,null,null,null,null,null,null,null,null,"2008-06-01",{"$f":"RANDBETWEEN(1000,5000)","v":3395},2033]
[null,null,null,null,null,null,null,null,null,null,"2008-07-01",4404,4112]
[null,null,null,null,null,null,null,null,null,null,"2008-08-01",4302,2879]
[null,null,null,null,null,null,null,null,null,null,"2008-09-01",4204,4458]
[null,null,null,null,null,null,null,null,null,null,"2008-10-01",4788,4533]
[null,null,null,null,null,null,null,null,null,null,"2008-11-01",{"$f":"RANDBETWEEN(1000,5000)","v":1973},3890]
[null,null,null,null,null,null,null,null,null,null,"2008-12-01",4755,3243]
[null,null,null,null,null,null,null,null,null,null,"2009-01-01",3824,3573]
[null,null,null,null,null,null,null,null,null,null,"2009-02-01",1924,1703]
[null,null,null,null,null,null,null,null,null,null,"2009-03-01",3960,2801]
[null,null,null,null,null,null,null,null,null,null,"2009-04-01",3395,4125]
[null,null,null,null,null,null,null,null,null,null,"2009-05-01",1997,2499]
[null,null,null,null,null,null,null,null,null,null,"2009-06-01",4485,1751]
[null,null,null,null,null,null,null,null,null,null,"2009-07-01",4021,1529]
[null,null,null,null,null,null,null,null,null,null,"2009-08-01",4701,1278]
[null,null,null,null,null,null,null,null,null,null,"2009-09-01",4106,4553]
[null,null,null,null,null,null,null,null,null,null,"2009-10-01",2230,3532]
[null,null,null,null,null,null,null,null,null,null,"2009-11-01",1972,2322]
[null,null,null,null,null,null,null,null,null,null,"2009-12-01",{"$f":"RANDBETWEEN(1000,5000)","v":3511},{"$f":"RANDBETWEEN(1000,5000)","v":2847}]

{"sheet":"Pivot Tables","index":102,"n_rows":403,"n_cols":18,"rows_kept":403,"cut":false,"hidden":true,"merged":[]}
[]
["© S. Christian Albright, 2011, All Rights Reserved"]
[null,null,null,null,null,null,null,null,null,null,"Date","Day","Time","Region","Paid With","Gender","Items Ordered","Total Cost"]
[null,null,null,null,null,null,null,null,null,null,"2009-03-10","Mon","Morning","West","VISA","Female",4,136.97]
[null,null,null,null,null,null,null,null,null,null,"2009-03-10","Mon","Morning","West","Mastercard","Female",1,25.55]
[null,null,null,null,null,null,null,null,null,null,"2009-03-10","Mon","Afternoon","West","VISA","Female",5,113.95]
[null,null,null,null,null,null,null,null,null,null,"2009-03-10","Mon","Afternoon","NorthEast","VISA","Female",1,6.82]
[null,null,null,null,null,null,null,null,null,null,"2009-03-10","Mon","Afternoon","West","Mastercard","Male",4,147.32]
[null,null,null,null,null,null,null,null,null,null,"2009-03-10","Mon","Afternoon","NorthEast","VISA","Female",5,142.15]
[null,null,null,null,null,null,null,null,null,null,"2009-03-11","Tues","Evening","West","Mastercard","Male",1,18.649999999999999]
[null,null,null,null,null,null,null,null,null,null,"2009-03-11","Tues","Evening","South","VISA","Male",4,178.34]
[null,null,null,null,null,null,null,null,null,null,"2009-03-11","Tues","Evening","West","Cash","Male",2,25.83]
[null,null,null,null,null,null,null,null,null,null,"2009-03-12","Wed","Morning","MidWest","Mastercard","Female",1,18.13]
[null,null,null,null,null,null,null,null,null,null,"2009-03-12","Wed","Morning","NorthEast","Mastercard","Female",2,54.52]
[null,null,null,null,null,null,null,null,null,null,"2009-03-12","Wed","Afternoon","South","VISA","Male",2,61.93]
[null,null,null,null,null,null,null,null,null,null,"2009-03-13","Thurs","Morning","NorthEast","VISA","Male",3,147.68]
[null,null,null,null,null,null,null,null,null,null,"2009-03-13","Thurs","Afternoon","NorthEast","Mastercard","Male",1,27.24]
[null,null,null,null,null,null,null,null,null,null,"2009-03-14","Fri","Morning","West","Mastercard","Female",3,46.18]
[null,null,null,null,null,null,null,null,null,null,"2009-03-14","Fri","Afternoon","West","VISA","Male",5,107.44]
[null,null,null,null,null,null,null,null,null,null,"2009-03-14","Fri","Afternoon","South","Cash","Female",6,96.53]
[null,null,null,null,null,null,null,null,null,null,"2009-03-14","Fri","Afternoon","West","VISA","Female",4,77.44]
[null,null,null,null,null,null,null,null,null,null,"2009-03-15","Sat","Morning","South","Mastercard","Male",1,15.19]
[null,null,null,null,null,null,null,null,null,null,"2009-03-15","Sat","Afternoon","South","Cash","Male",1,45.52]
[null,null,null,null,null,null,null,null,null,null,"2009-03-16","Sun","Morning","West","VISA","Male",4,157.05000000000001]
[null,null,null,null,null,null,null,null,null,null,"2009-03-16","Sun","Afternoon","West","VISA","Male",2,51.95]
[null,null,null,null,null,null,null,null,null,null,"2009-03-16","Sun","Evening","West","Mastercard","Female",9,429.98]
[null,null,null,null,null,null,null,null,null,null,"2009-03-17","Mon","Afternoon","South","VISA","Female",1,33.369999999999997]
[null,null,null,null,null,null,null,null,null,null,"2009-03-17","Mon","Evening","West","VISA","Male",3,71.84]
[null,null,null,null,null,null,null,null,null,null,"2009-03-18","Tues","Morning","NorthEast","Mastercard","Female",5,139.51]
[null,null,null,null,null,null,null,null,null,null,"2009-03-18","Tues","Afternoon","South","Mastercard","Male",3,78.459999999999994]
[null,null,null,null,null,null,null,null,null,null,"2009-03-18","Tues","Evening","MidWest","Mastercard","Male",3,125.13]
[null,null,null,null,null,null,null,null,null,null,"2009-03-19","Wed","Afternoon","MidWest","VISA","Male",1,14.76]
[null,null,null,null,null,null,null,null,null,null,"2009-03-19","Wed","Afternoon","South","Cash","Female",2,83.38]
[null,null,null,null,null,null,null,null,null,null,"2009-03-20","Thurs","Morning","West","Mastercard","Female",3,104.91]
[null,null,null,null,null,null,null,null,null,null,"2009-03-20","Thurs","Afternoon","NorthEast","VISA","Male",4,101.37]
[null,null,null,null,null,null,null,null,null,null,"2009-03-20","Thurs","Afternoon","NorthEast","VISA","Female",2,53.16]
[null,null,null,null,null,null,null,null,null,null,"2009-03-20","Thurs","Evening","West","VISA","Female",2,40.630000000000003]
[null,null,null,null,null,null,null,null,null,null,"2009-03-21","Fri","Morning","West","VISA","Female",7,286.41000000000003]
[null,null,null,null,null,null,null,null,null,null,"2009-03-21","Fri","Afternoon","South","Mastercard","Female",2,59.39]
[null,null,null,null,null,null,null,null,null,null,"2009-03-21","Fri","Evening","NorthEast","VISA","Male",4,185.45]
[null,null,null,null,null,null,null,null,null,null,"2009-03-22","Sat","Morning","NorthEast","Mastercard","Female",2,35.08]
[null,null,null,null,null,null,null,null,null,null,"2009-03-22","Sat","Morning","MidWest","Mastercard","Male",2,91.62]
[null,null,null,null,null,null,null,null,null,null,"2009-03-22","Sat","Morning","NorthEast","Cash","Female",8,155.5]
[null,null,null,null,null,null,null,null,null,null,"2009-03-22","Sat","Evening","West","VISA","Male",4,20.89]
[null,null,null,null,null,null,null,null,null,null,"2009-03-22","Sat","Evening","West","Mastercard","Male",6,186.29]
[null,null,null,null,null,null,null,null,null,null,"2009-03-22","Sat","Evening","West","Cash","Female",1,42.22]
[null,null,null,null,null,null,null,null,null,null,"2009-03-22","Sat","Evening","West","VISA","Male",2,42.19]
[null,null,null,null,null,null,null,null,null,null,"2009-03-23","Sun","Afternoon","MidWest","VISA","Female",1,47.86]
[null,null,null,null,null,null,null,null,null,null,"2009-03-24","Mon","Morning","South","Mastercard","Female",3,139.76]
[null,null,null,null,null,null,null,null,null,null,"2009-03-24","Mon","Morning","NorthEast","Mastercard","Female",6,186.42]
[null,null,null,null,null,null,null,null,null,null,"2009-03-24","Mon","Afternoon","South","Mastercard","Female",1,54.08]
[null,null,null,null,null,null,null,null,null,null,"2009-03-24","Mon","Afternoon","West","Mastercard","Female",3,84.98]
[null,null,null,null,null,null,null,null,null,null,"2009-03-24","Mon","Afternoon","South","Cash","Female",2,27.13]
[null,null,null,null,null,null,null,null,null,null,"2009-03-25","Tues","Morning","West","Mastercard","Female",2,54.7]
[null,null,null,null,null,null,null,null,null,null,"2009-03-25","Tues","Afternoon","South","Mastercard","Female",5,229.54]
[null,null,null,null,null,null,null,null,null,null,"2009-03-25","Tues","Evening","West","Cash","Male",4,124.21]
[null,null,null,null,null,null,null,null,null,null,"2009-03-26","Wed","Morning","West","VISA","Female",2,26.39]
[null,null,null,null,null,null,null,null,null,null,"2009-03-27","Thurs","Morning","West","Mastercard","Female",4,106.97]
[null,null,null,null,null,null,null,null,null,null,"2009-03-27","Thurs","Afternoon","West","Cash","Female",8,377.18]
[null,null,null,null,null,null,null,null,null,null,"2009-03-28","Fri","Morning","NorthEast","Mastercard","Female",1,24.31]
[null,null,null,null,null,null,null,null,null,null,"2009-03-28","Fri","Afternoon","South","Mastercard","Female",1,34.47]
[null,null,null,null,null,null,null,null,null,null,"2009-03-28","Fri","Afternoon","West","Mastercard","Male",3,106.19]
[null,null,null,null,null,null,null,null,null,null,"2009-03-28","Fri","Evening","NorthEast","VISA","Male",2,55.3]
[null,null,null,null,null,null,null,null,null,null,"2009-03-29","Sat","Morning","NorthEast","VISA","Female",2,82.98]
[null,null,null,null,null,null,null,null,null,null,"2009-03-29","Sat","Morning","NorthEast","Cash","Male",4,101.79]
[null,null,null,null,null,null,null,null,null,null,"2009-03-29","Sat","Morning","MidWest","Mastercard","Male",3,99.28]
[null,null,null,null,null,null,null,null,null,null,"2009-03-29","Sat","Morning","NorthEast","Mastercard","Female",3,100.09]
[null,null,null,null,null,null,null,null,null,null,"2009-03-29","Sat","Afternoon","NorthEast","Cash","Female",3,88.91]
[null,null,null,null,null,null,null,null,null,null,"2009-03-29","Sat","Afternoon","MidWest","Cash","Male",2,62.58]
[null,null,null,null,null,null,null,null,null,null,"2009-03-29","Sat","Afternoon","South","VISA","Female",1,28.87]
[null,null,null,null,null,null,null,null,null,null,"2009-03-29","Sat","Afternoon","MidWest","VISA","Male",4,141.29]
[null,null,null,null,null,null,null,null,null,null,"2009-03-29","Sat","Evening","NorthEast","Cash","Male",4,66.540000000000006]
[null,null,null,null,null,null,null,null,null,null,"2009-03-29","Sat","Evening","South","VISA","Female",2,69.03]
[null,null,null,null,null,null,null,null,null,null,"2009-03-30","Mon","Afternoon","South","Mastercard","Female",2,65.510000000000005]
[null,null,null,null,null,null,null,null,null,null,"2009-03-30","Mon","Evening","West","VISA","Female",2,35.590000000000003]
[null,null,null,null,null,null,null,null,null,null,"2009-03-31","Wed","Afternoon","South","VISA","Female",7,320.18]
[null,null,null,null,null,null,null,null,null,null,"2009-03-31","Wed","Afternoon","MidWest","Mastercard","Male",5,128.57]
[null,null,null,null,null,null,null,null,null,null,"2009-03-31","Wed","Evening","West","Mastercard","Male",6,248.42]
[null,null,null,null,null,null,null,null,null,null,"2009-03-31","Wed","Evening","NorthEast","Cash","Male",2,50.04]
[null,null,null,null,null,null,null,null,null,null,"2009-04-01","Thurs","Morning","NorthEast","Cash","Male",4,145.47999999999999]
[null,null,null,null,null,null,null,null,null,null,"2009-04-01","Thurs","Afternoon","West","Mastercard","Female",9,403.6]
[null,null,null,null,null,null,null,null,null,null,"2009-04-01","Thurs","Afternoon","NorthEast","Cash","Female",6,284.14]
[null,null,null,null,null,null,null,null,null,null,"2009-04-01","Thurs","Afternoon","West","Mastercard","Female",1,81.14]
[null,null,null,null,null,null,null,null,null,null,"2009-04-02","Fri","Morning","MidWest","Mastercard","Female",3,82.36]
[null,null,null,null,null,null,null,null,null,null,"2009-04-02","Fri","Afternoon","MidWest","Mastercard","Female",2,32.65]
[null,null,null,null,null,null,null,null,null,null,"2009-04-02","Fri","Afternoon","NorthEast","VISA","Female",6,200.7]
[null,null,null,null,null,null,null,null,null,null,"2009-04-02","Fri","Afternoon","NorthEast","Mastercard","Female",3,99.13]
[null,null,null,null,null,null,null,null,null,null,"2009-04-03","Sat","Morning","South","VISA","Female",4,85.88]
[null,null,null,null,null,null,null,null,null,null,"2009-04-03","Sat","Afternoon","South","Mastercard","Male",3,183.52]
[null,null,null,null,null,null,null,null,null,null,"2009-04-03","Sat","Afternoon","West","VISA","Female",2,53.87]
[null,null,null,null,null,null,null,null,null,null,"2009-04-03","Sat","Evening","NorthEast","Mastercard","Male",3,44.08]
[null,null,null,null,null,null,null,null,null,null,"2009-04-04","Sun","Morning","MidWest","VISA","Female",1,82.34]
[null,null,null,null,null,null,null,null,null,null,"2009-04-04","Sun","Afternoon","South","Cash","Male",3,151.29]
[null,null,null,null,null,null,null,null,null,null,"2009-04-05","Mon","Morning","NorthEast","VISA","Male",5,87.02]
[null,null,null,null,null,null,null,null,null,null,"2009-04-05","Mon","Afternoon","MidWest","VISA","Male",2,54.96]
[null,null,null,null,null,null,null,null,null,null,"2009-04-05","Mon","Afternoon","MidWest","Mastercard","Female",1,65.11]
[null,null,null,null,null,null,null,null,null,null,"2009-04-05","Mon","Afternoon","NorthEast","Mastercard","Female",3,76.69]
[null,null,null,null,null,null,null,null,null,null,"2009-04-05","Mon","Evening","NorthEast","VISA","Female",2,48.38]
[null,null,null,null,null,null,null,null,null,null,"2009-04-06","Tues","Morning","NorthEast","Cash","Female",5,76.64]
[null,null,null,null,null,null,null,null,null,null,"2009-04-06","Tues","Afternoon","NorthEast","VISA","Female",2,54.08]
[null,null,null,null,null,null,null,null,null,null,"2009-04-06","Tues","Afternoon","South","Mastercard","Female",3,130]
[null,null,null,null,null,null,null,null,null,null,"2009-04-06","Tues","Evening","MidWest","Mastercard","Female",4,218.29]
[null,null,null,null,null,null,null,null,null,null,"2009-04-07","Wed","Evening","West","VISA","Male",1,38.1]
[null,null,null,null,null,null,null,null,null,null,"2009-04-08","Thurs","Morning","NorthEast","VISA","Male",4,100.02]
[null,null,null,null,null,null,null,null,null,null,"2009-04-08","Thurs","Morning","West","Cash","Female",4,248.73]
[null,null,null,null,null,null,null,null,null,null,"2009-04-08","Thurs","Morning","West","Mastercard","Female",2,25.8]
[null,null,null,null,null,null,null,null,null,null,"2009-04-08","Thurs","Evening","MidWest","Cash","Male",1,52.83]
[null,null,null,null,null,null,null,null,null,null,"2009-04-09","Fri","Morning","West","VISA","Male",3,131.88999999999999]
[null,null,null,null,null,null,null,null,null,null,"2009-04-09","Fri","Morning","NorthEast","Mastercard","Male",3,82.69]
[null,null,null,null,null,null,null,null,null,null,"2009-04-09","Fri","Morning","West","Mastercard","Male",1,70.03]
[null,null,null,null,null,null,null,null,null,null,"2009-04-09","Fri","Morning","NorthEast","Mastercard","Female",1,102.86]
[null,null,null,null,null,null,null,null,null,null,"2009-04-09","Fri","Morning","West","Cash","Male",4,174.13]
[null,null,null,null,null,null,null,null,null,null,"2009-04-10","Sat","Morning","South","Mastercard","Female",2,49.8]
[null,null,null,null,null,null,null,null,null,null,"2009-04-10","Sat","Morning","MidWest","Cash","Female",2,29.97]
[null,null,null,null,null,null,null,null,null,null,"2009-04-10","Sat","Afternoon","MidWest","Mastercard","Male",2,82.53]
[null,null,null,null,null,null,null,null,null,null,"2009-04-10","Sat","Afternoon","South","Mastercard","Female",4,142.76]
[null,null,null,null,null,null,null,null,null,null,"2009-04-10","Sat","Evening","NorthEast","Cash","Male",2,72.58]
[null,null,null,null,null,null,null,null,null,null,"2009-04-10","Sat","Evening","MidWest","VISA","Male",2,55.39]
[null,null,null,null,null,null,null,null,null,null,"2009-04-11","Sun","Afternoon","West","VISA","Female",4,206.39]
[null,null,null,null,null,null,null,null,null,null,"2009-04-12","Tues","Morning","MidWest","Mastercard","Female",4,245.67]
[null,null,null,null,null,null,null,null,null,null,"2009-04-12","Tues","Morning","NorthEast","Mastercard","Female",5,265.69]
[null,null,null,null,null,null,null,null,null,null,"2009-04-12","Tues","Afternoon","South","Mastercard","Female",3,124.46]
[null,null,null,null,null,null,null,null,null,null,"2009-04-12","Tues","Afternoon","NorthEast","Mastercard","Female",6,206.26]
[null,null,null,null,null,null,null,null,null,null,"2009-04-13","Wed","Afternoon","South","Mastercard","Female",7,306.23]
[null,null,null,null,null,null,null,null,null,null,"2009-04-14","Fri","Morning","South","Cash","Female",1,48.12]
[null,null,null,null,null,null,null,null,null,null,"2009-04-14","Fri","Afternoon","MidWest","Mastercard","Male",4,113.95]
[null,null,null,null,null,null,null,null,null,null,"2009-04-14","Fri","Afternoon","West","VISA","Female",6,261.44]
[null,null,null,null,null,null,null,null,null,null,"2009-04-15","Sat","Morning","South","Cash","Male",2,59.9]
[null,null,null,null,null,null,null,null,null,null,"2009-04-15","Sat","Morning","MidWest","VISA","Female",2,49.73]
[null,null,null,null,null,null,null,null,null,null,"2009-04-15","Sat","Morning","MidWest","VISA","Female",3,65.06]
[null,null,null,null,null,null,null,null,null,null,"2009-04-15","Sat","Afternoon","West","VISA","Male",4,97.71]
[null,null,null,null,null,null,null,null,null,null,"2009-04-15","Sat","Afternoon","NorthEast","Cash","Female",1,49.84]
[null,null,null,null,null,null,null,null,null,null,"2009-04-15","Sat","Evening","MidWest","Cash","Female",6,233.94]
[null,null,null,null,null,null,null,null,null,null,"2009-04-15","Sat","Evening","West","Mastercard","Female",9,370.26]
[null,null,null,null,null,null,null,null,null,null,"2009-04-16","Sun","Afternoon","West","Cash","Male",6,313.11]
[null,null,null,null,null,null,null,null,null,null,"2009-04-16","Sun","Afternoon","NorthEast","Cash","Female",6,141.77000000000001]
[null,null,null,null,null,null,null,null,null,null,"2009-04-16","Sun","Evening","South","Mastercard","Female",1,27.99]
[null,null,null,null,null,null,null,null,null,null,"2009-04-17","Mon","Morning","MidWest","VISA","Female",3,81.34]
[null,null,null,null,null,null,null,null,null,null,"2009-04-17","Mon","Afternoon","West","VISA","Female",2,97.15]
[null,null,null,null,null,null,null,null,null,null,"2009-04-17","Mon","Evening","West","Cash","Male",7,352.49]
[null,null,null,null,null,null,null,null,null,null,"2009-04-18","Tues","Morning","South","VISA","Female",3,88.75]
[null,null,null,null,null,null,null,null,null,null,"2009-04-18","Tues","Afternoon","NorthEast","VISA","Female",4,107.95]
[null,null,null,null,null,null,null,null,null,null,"2009-04-18","Tues","Evening","NorthEast","Mastercard","Male",5,186.22]
[null,null,null,null,null,null,null,null,null,null,"2009-04-19","Wed","Morning","MidWest","Mastercard","Female",4,159.22999999999999]
[null,null,null,null,null,null,null,null,null,null,"2009-04-19","Wed","Afternoon","MidWest","Mastercard","Female",2,82.43]
[null,null,null,null,null,null,null,null,null,null,"2009-04-19","Wed","Evening","NorthEast","Mastercard","Male",4,99.42]
[null,null,null,null,null,null,null,null,null,null,"2009-04-20","Thurs","Afternoon","NorthEast","Cash","Male",3,79.319999999999993]
[null,null,null,null,null,null,null,null,null,null,"2009-04-20","Thurs","Evening","South","VISA","Male",3,160.01]
[null,null,null,null,null,null,null,null,null,null,"2009-04-20","Thurs","Evening","West","VISA","Male",2,51.99]
[null,null,null,null,null,null,null,null,null,null,"2009-04-21","Fri","Morning","West","VISA","Female",8,267.67]
[null,null,null,null,null,null,null,null,null,null,"2009-04-21","Fri","Afternoon","NorthEast","Mastercard","Female",9,429.22]
[null,null,null,null,null,null,null,null,null,null,"2009-04-21","Fri","Afternoon","NorthEast","Cash","Female",1,46.2]
[null,null,null,null,null,null,null,null,null,null,"2009-04-21","Fri","Afternoon","NorthEast","VISA","Female",5,240.02]
[null,null,null,null,null,null,null,null,null,null,"2009-04-22","Sat","Morning","South","Cash","Male",4,157.13999999999999]
[null,null,null,null,null,null,null,null,null,null,"2009-04-22","Sat","Afternoon","MidWest","Mastercard","Female",5,140.4]
[null,null,null,null,null,null,null,null,null,null,"2009-04-22","Sat","Evening","NorthEast","Mastercard","Male",5,204.93]
[null,null,null,null,null,null,null,null,null,null,"2009-04-23","Sun","Morning","South","VISA","Female",2,88.18]
[null,null,null,null,null,null,null,null,null,null,"2009-04-23","Sun","Afternoon","South","Cash","Female",3,95.47]
[null,null,null,null,null,null,null,null,null,null,"2009-04-24","Mon","Morning","South","Mastercard","Female",5,224.73]
[null,null,null,null,null,null,null,null,null,null,"2009-04-24","Mon","Morning","West","Mastercard","Female",8,344.73]
[null,null,null,null,null,null,null,null,null,null,"2009-04-24","Mon","Afternoon","NorthEast","VISA","Female",4,185.32]
[null,null,null,null,null,null,null,null,null,null,"2009-04-24","Mon","Afternoon","South","VISA","Female",6,297.31]
[null,null,null,null,null,null,null,null,null,null,"2009-04-24","Mon","Evening","South","Cash","Male",4,223.32]
[null,null,null,null,null,null,null,null,null,null,"2009-04-24","Mon","Evening","South","VISA","Female",3,164.4]
[null,null,null,null,null,null,null,null,null,null,"2009-04-25","Tues","Morning","West","Mastercard","Female",2,123.57]
[null,null,null,null,null,null,null,null,null,null,"2009-04-25","Tues","Evening","NorthEast","Mastercard","Male",5,236.97]
[null,null,null,null,null,null,null,null,null,null,"2009-04-26","Wed","Morning","West","VISA","Female",2,82.75]
[null,null,null,null,null,null,null,null,null,null,"2009-04-26","Wed","Morning","South","Cash","Male",6,307.75]
[null,null,null,null,null,null,null,null,null,null,"2009-04-26","Wed","Afternoon","MidWest","Cash","Female",4,200.73]
[null,null,null,null,null,null,null,null,null,null,"2009-04-27","Thurs","Morning","MidWest","VISA","Female",4,242.06]
[null,null,null,null,null,null,null,null,null,null,"2009-04-27","Thurs","Evening","South","VISA","Male",4,215.09]
[null,null,null,null,null,null,null,null,null,null,"2009-04-27","Thurs","Evening","NorthEast","Mastercard","Male",3,162.9]
[null,null,null,null,null,null,null,null,null,null,"2009-04-28","Fri","Afternoon","West","Mastercard","Female",5,214.31]
[null,null,null,null,null,null,null,null,null,null,"2009-04-28","Fri","Afternoon","South","Mastercard","Female",1,42.07]
[null,null,null,null,null,null,null,null,null,null,"2009-04-28","Fri","Evening","NorthEast","VISA","Male",2,69.05]
[null,null,null,null,null,null,null,null,null,null,"2009-04-28","Fri","Evening","NorthEast","VISA","Female",4,148.9]
[null,null,null,null,null,null,null,null,null,null,"2009-04-29","Sat","Morning","NorthEast","VISA","Male",4,105.74]
[null,null,null,null,null,null,null,null,null,null,"2009-04-29","Sat","Morning","MidWest","Mastercard","Male",3,138.32]
[null,null,null,null,null,null,null,null,null,null,"2009-04-29","Sat","Afternoon","West","Mastercard","Male",2,61.71]
[null,null,null,null,null,null,null,null,null,null,"2009-04-29","Sat","Evening","South","VISA","Male",3,120.11]
[null,null,null,null,null,null,null,null,null,null,"2009-04-29","Sat","Evening","MidWest","Mastercard","Male",1,72.8]
[null,null,null,null,null,null,null,null,null,null,"2009-04-29","Sat","Evening","MidWest","Mastercard","Female",2,134.86000000000001]
[null,null,null,null,null,null,null,null,null,null,"2009-04-29","Sat","Evening","West","VISA","Male",4,89.75]
[null,null,null,null,null,null,null,null,null,null,"2009-04-30","Sun","Morning","West","Mastercard","Female",4,220.04]
[null,null,null,null,null,null,null,null,null,null,"2009-04-30","Sun","Afternoon","South","Mastercard","Female",3,168.39]
[null,null,null,null,null,null,null,null,null,null,"2009-04-30","Sun","Evening","NorthEast","Mastercard","Male",6,277.8]
[null,null,null,null,null,null,null,null,null,null,"2009-05-01","Mon","Afternoon","NorthEast","VISA","Female",3,130.49]
[null,null,null,null,null,null,null,null,null,null,"2009-05-02","Tues","Evening","NorthEast","Cash","Male",2,94.39]
[null,null,null,null,null,null,null,null,null,null,"2009-05-03","Wed","Afternoon","West","Mastercard","Female",4,120.48]
[null,null,null,null,null,null,null,null,null,null,"2009-05-03","Wed","Afternoon","South","VISA","Female",6,304.95]
[null,null,null,null,null,null,null,null,null,null,"2009-05-04","Thurs","Evening","West","VISA","Female",9,389.79]
[null,null,null,null,null,null,null,null,null,null,"2009-05-05","Fri","Morning","NorthEast","VISA","Female",4,161.08000000000001]
[null,null,null,null,null,null,null,null,null,null,"2009-05-05","Fri","Afternoon","NorthEast","VISA","Female",2,69.61]
[null,null,null,null,null,null,null,null,null,null,"2009-05-06","Sat","Morning","West","VISA","Female",3,59.99]
[null,null,null,null,null,null,null,null,null,null,"2009-05-06","Sat","Morning","MidWest","Mastercard","Male",2,120.78]
[null,null,null,null,null,null,null,null,null,null,"2009-05-06","Sat","Morning","West","Cash","Female",3,82.3]
[null,null,null,null,null,null,null,null,null,null,"2009-05-06","Sat","Morning","South","VISA","Female",2,91.88]
[null,null,null,null,null,null,null,null,null,null,"2009-05-06","Sat","Morning","West","Mastercard","Male",1,87.1]
[null,null,null,null,null,null,null,null,null,null,"2009-05-06","Sat","Afternoon","MidWest","Mastercard","Female",2,70.099999999999994]
[null,null,null,null,null,null,null,null,null,null,"2009-05-06","Sat","Afternoon","NorthEast","Cash","Female",2,106.67]
[null,null,null,null,null,null,null,null,null,null,"2009-05-06","Sat","Evening","NorthEast","Mastercard","Male",1,34.31]
[null,null,null,null,null,null,null,null,null,null,"2009-05-06","Sat","Evening","West","VISA","Male",3,77.69]
[null,null,null,null,null,null,null,null,null,null,"2009-05-06","Sat","Evening","West","Mastercard","Female",2,85.31]
[null,null,null,null,null,null,null,null,null,null,"2009-05-07","Sun","Evening","NorthEast","Mastercard","Female",1,65.92]
[null,null,null,null,null,null,null,null,null,null,"2009-05-07","Sun","Evening","MidWest","Cash","Female",1,89.98]
[null,null,null,null,null,null,null,null,null,null,"2009-05-08","Mon","Morning","West","VISA","Female",3,102.07]
[null,null,null,null,null,null,null,null,null,null,"2009-05-08","Mon","Afternoon","South","VISA","Female",4,199.83]
[null,null,null,null,null,null,null,null,null,null,"2009-05-08","Mon","Evening","South","Cash","Male",3,134.21]
[null,null,null,null,null,null,null,null,null,null,"2009-05-08","Mon","Evening","South","Mastercard","Male",4,188.41]
[null,null,null,null,null,null,null,null,null,null,"2009-05-08","Mon","Evening","West","VISA","Male",4,102.72]
[null,null,null,null,null,null,null,null,null,null,"2009-05-08","Mon","Evening","West","Mastercard","Male",2,85.63]
[null,null,null,null,null,null,null,null,null,null,"2009-05-09","Tues","Morning","West","Cash","Male",4,206.87]
[null,null,null,null,null,null,null,null,null,null,"2009-05-09","Tues","Afternoon","South","Mastercard","Female",2,141.22]
[null,null,null,null,null,null,null,null,null,null,"2009-05-09","Tues","Evening","West","VISA","Male",10,463.4]
[null,null,null,null,null,null,null,null,null,null,"2009-05-09","Tues","Evening","South","Mastercard","Female",5,166.54]
[null,null,null,null,null,null,null,null,null,null,"2009-05-10","Wed","Morning","MidWest","Mastercard","Female",6,260.62]
[null,null,null,null,null,null,null,null,null,null,"2009-05-10","Wed","Afternoon","MidWest","VISA","Female",1,79.16]
[null,null,null,null,null,null,null,null,null,null,"2009-05-11","Thurs","Afternoon","West","Mastercard","Female",6,320.39999999999998]
[null,null,null,null,null,null,null,null,null,null,"2009-05-11","Thurs","Evening","MidWest","Cash","Male",2,79.010000000000005]
[null,null,null,null,null,null,null,null,null,null,"2009-05-12","Fri","Morning","West","Mastercard","Female",2,126.22]
[null,null,null,null,null,null,null,null,null,null,"2009-05-12","Fri","Evening","NorthEast","VISA","Male",5,263.45]
[null,null,null,null,null,null,null,null,null,null,"2009-05-13","Sat","Morning","South","Cash","Male",3,135.86000000000001]
[null,null,null,null,null,null,null,null,null,null,"2009-05-13","Sat","Afternoon","West","VISA","Male",1,98.74]
[null,null,null,null,null,null,null,null,null,null,"2009-05-13","Sat","Evening","South","Mastercard","Female",1,101.05]
[null,null,null,null,null,null,null,null,null,null,"2009-05-13","Sat","Evening","NorthEast","Cash","Male",7,361.6]
[null,null,null,null,null,null,null,null,null,null,"2009-05-14","Sun","Evening","NorthEast","VISA","Female",3,120.56]
[null,null,null,null,null,null,null,null,null,null,"2009-05-15","Mon","Morning","West","Mastercard","Female",1,52.68]
[null,null,null,null,null,null,null,null,null,null,"2009-05-15","Mon","Morning","NorthEast","VISA","Female",3,99.51]
[null,null,null,null,null,null,null,null,null,null,"2009-05-15","Mon","Afternoon","South","VISA","Female",1,85.29]
[null,null,null,null,null,null,null,null,null,null,"2009-05-15","Mon","Afternoon","NorthEast","Mastercard","Female",3,143.59]
[null,null,null,null,null,null,null,null,null,null,"2009-05-15","Mon","Afternoon","South","Mastercard","Female",3,197.13]
[null,null,null,null,null,null,null,null,null,null,"2009-05-15","Mon","Afternoon","South","VISA","Female",3,190.74]
[null,null,null,null,null,null,null,null,null,null,"2009-05-15","Mon","Evening","West","VISA","Male",3,111.44]
[null,null,null,null,null,null,null,null,null,null,"2009-05-16","Tues","Morning","West","VISA","Male",3,153.38999999999999]
[null,null,null,null,null,null,null,null,null,null,"2009-05-16","Tues","Afternoon","MidWest","Mastercard","Female",2,65.400000000000006]
[null,null,null,null,null,null,null,null,null,null,"2009-05-16","Tues","Evening","NorthEast","Mastercard","Female",9,448.2]
[null,null,null,null,null,null,null,null,null,null,"2009-05-16","Tues","Evening","South","Mastercard","Male",2,123.19]
[null,null,null,null,null,null,null,null,null,null,"2009-05-17","Thurs","Morning","South","Mastercard","Female",5,210.28]
[null,null,null,null,null,null,null,null,null,null,"2009-05-17","Thurs","Morning","NorthEast","Mastercard","Female",7,349.46]
[null,null,null,null,null,null,null,null,null,null,"2009-05-17","Thurs","Evening","South","VISA","Male",4,290.63]
[null,null,null,null,null,null,null,null,null,null,"2009-05-17","Thurs","Evening","MidWest","Mastercard","Female",3,103.03]
[null,null,null,null,null,null,null,null,null,null,"2009-05-18","Fri","Morning","South","Mastercard","Male",2,112.54]
[null,null,null,null,null,null,null,null,null,null,"2009-05-18","Fri","Afternoon","MidWest","VISA","Male",8,399.36]
[null,null,null,null,null,null,null,null,null,null,"2009-05-18","Fri","Evening","South","VISA","Male",2,68.180000000000007]
[null,null,null,null,null,null,null,null,null,null,"2009-05-19","Sat","Morning","MidWest","Mastercard","Male",3,146.58000000000001]
[null,null,null,null,null,null,null,null,null,null,"2009-05-19","Sat","Morning","MidWest","Cash","Female",6,309.5]
[null,null,null,null,null,null,null,null,null,null,"2009-05-19","Sat","Morning","West","Mastercard","Male",5,177.96]
[null,null,null,null,null,null,null,null,null,null,"2009-05-19","Sat","Morning","South","Mastercard","Male",2,119.46]
[null,null,null,null,null,null,null,null,null,null,"2009-05-19","Sat","Afternoon","West","Cash","Female",3,119.66]
[null,null,null,null,null,null,null,null,null,null,"2009-05-19","Sat","Afternoon","MidWest","Cash","Female",4,168.87]
[null,null,null,null,null,null,null,null,null,null,"2009-05-19","Sat","Afternoon","South","Cash","Female",4,192.39]
[null,null,null,null,null,null,null,null,null,null,"2009-05-19","Sat","Afternoon","South","VISA","Female",2,101.73]
[null,null,null,null,null,null,null,null,null,null,"2009-05-19","Sat","Afternoon","NorthEast","Mastercard","Male",2,74.94]
[null,null,null,null,null,null,null,null,null,null,"2009-05-19","Sat","Evening","MidWest","Cash","Female",8,291.3]
[null,null,null,null,null,null,null,null,null,null,"2009-05-20","Sun","Afternoon","West","Cash","Female",3,161]
[null,null,null,null,null,null,null,null,null,null,"2009-05-21","Mon","Afternoon","West","VISA","Female",3,116.01]
[null,null,null,null,null,null,null,null,null,null,"2009-05-21","Mon","Afternoon","West","VISA","Male",2,74.39]
[null,null,null,null,null,null,null,null,null,null,"2009-05-21","Mon","Evening","NorthEast","VISA","Male",4,226.25]
[null,null,null,null,null,null,null,null,null,null,"2009-05-21","Mon","Evening","West","Cash","Male",3,135.19]
[null,null,null,null,null,null,null,null,null,null,"2009-05-22","Tues","Morning","West","Mastercard","Male",4,126.16]
[null,null,null,null,null,null,null,null,null,null,"2009-05-22","Tues","Afternoon","South","Cash","Female",4,156.30000000000001]
[null,null,null,null,null,null,null,null,null,null,"2009-05-22","Tues","Afternoon","South","Mastercard","Female",3,73.42]
[null,null,null,null,null,null,null,null,null,null,"2009-05-22","Tues","Afternoon","NorthEast","VISA","Female",7,310.74]
[null,null,null,null,null,null,null,null,null,null,"2009-05-22","Tues","Afternoon","NorthEast","VISA","Female",6,296.26]
[null,null,null,null,null,null,null,null,null,null,"2009-05-22","Tues","Evening","West","Cash","Male",2,115.29]
[null,null,null,null,null,null,null,null,null,null,"2009-05-23","Wed","Evening","West","Mastercard","Male",4,212.94]
[null,null,null,null,null,null,null,null,null,null,"2009-05-24","Thurs","Morning","South","VISA","Female",2,85.93]
[null,null,null,null,null,null,null,null,null,null,"2009-05-24","Thurs","Afternoon","West","Mastercard","Male",2,80.02]
[null,null,null,null,null,null,null,null,null,null,"2009-05-24","Thurs","Afternoon","NorthEast","Cash","Female",5,286.17]
[null,null,null,null,null,null,null,null,null,null,"2009-05-25","Fri","Morning","South","VISA","Female",4,190.27]
[null,null,null,null,null,null,null,null,null,null,"2009-05-25","Fri","Afternoon","NorthEast","Mastercard","Male",5,265.24]
[null,null,null,null,null,null,null,null,null,null,"2009-05-25","Fri","Afternoon","West","VISA","Female",7,353.93]
[null,null,null,null,null,null,null,null,null,null,"2009-05-26","Sat","Morning","NorthEast","Mastercard","Male",5,314.77]
[null,null,null,null,null,null,null,null,null,null,"2009-05-26","Sat","Afternoon","MidWest","Mastercard","Female",2,169.23]
[null,null,null,null,null,null,null,null,null,null,"2009-05-26","Sat","Evening","West","VISA","Female",3,149.71]
[null,null,null,null,null,null,null,null,null,null,"2009-05-26","Sat","Evening","MidWest","VISA","Male",2,105.35]
[null,null,null,null,null,null,null,null,null,null,"2009-05-27","Mon","Afternoon","South","Mastercard","Female",2,111.47]
[null,null,null,null,null,null,null,null,null,null,"2009-05-27","Mon","Evening","West","VISA","Male",9,441.16]
[null,null,null,null,null,null,null,null,null,null,"2009-05-28","Tues","Morning","MidWest","VISA","Female",5,179.56]
[null,null,null,null,null,null,null,null,null,null,"2009-05-28","Tues","Evening","South","VISA","Male",2,83.15]
[null,null,null,null,null,null,null,null,null,null,"2009-05-29","Wed","Evening","South","Mastercard","Male",4,262.86]
[null,null,null,null,null,null,null,null,null,null,"2009-05-29","Wed","Evening","MidWest","Mastercard","Male",2,82.51]
[null,null,null,null,null,null,null,null,null,null,"2009-05-30","Thurs","Morning","NorthEast","VISA","Female",5,290.27]
[null,null,null,null,null,null,null,null,null,null,"2009-05-30","Thurs","Morning","West","Mastercard","Female",5,223.08]
[null,null,null,null,null,null,null,null,null,null,"2009-05-30","Thurs","Afternoon","NorthEast","VISA","Female",3,165.77]
[null,null,null,null,null,null,null,null,null,null,"2009-05-30","Thurs","Evening","South","Mastercard","Female",2,99.81]
[null,null,null,null,null,null,null,null,null,null,"2009-05-31","Fri","Morning","NorthEast","Mastercard","Female",3,158.94999999999999]
[null,null,null,null,null,null,null,null,null,null,"2009-05-31","Fri","Morning","MidWest","Mastercard","Female",5,280.99]
[null,null,null,null,null,null,null,null,null,null,"2009-05-31","Fri","Morning","South","Mastercard","Female",4,149.88999999999999]
[null,null,null,null,null,null,null,null,null,null,"2009-05-31","Fri","Afternoon","South","VISA","Female",7,363.52]
[null,null,null,null,null,null,null,null,null,null,"2009-05-31","Fri","Evening","NorthEast","VISA","Male",2,93.97]
[null,null,null,null,null,null,null,null,null,null,"2009-06-01","Sat","Afternoon","NorthEast","Mastercard","Female",8,391.97]
[null,null,null,null,null,null,null,null,null,null,"2009-06-01","Sat","Afternoon","West","VISA","Female",5,275.54000000000002]
[null,null,null,null,null,null,null,null,null,null,"2009-06-01","Sat","Afternoon","NorthEast","VISA","Male",1,115.55]
[null,null,null,null,null,null,null,null,null,null,"2009-06-01","Sat","Evening","MidWest","Mastercard","Male",3,125]
[null,null,null,null,null,null,null,null,null,null,"2009-06-01","Sat","Evening","South","Mastercard","Female",1,103.15]
[null,null,null,null,null,null,null,null,null,null,"2009-06-01","Sat","Evening","NorthEast","Mastercard","Male",9,256.7]
[null,null,null,null,null,null,null,null,null,null,"2009-06-01","Sat","Evening","MidWest","VISA","Female",1,117.99]
[null,null,null,null,null,null,null,null,null,null,"2009-06-01","Sat","Evening","South","VISA","Female",2,98.55]
[null,null,null,null,null,null,null,null,null,null,"2009-06-02","Sun","Morning","MidWest","Cash","Female",2,112.93]
[null,null,null,null,null,null,null,null,null,null,"2009-06-02","Sun","Evening","South","VISA","Female",2,76.3]
[null,null,null,null,null,null,null,null,null,null,"2009-06-03","Mon","Afternoon","NorthEast","Cash","Female",2,129.80000000000001]
[null,null,null,null,null,null,null,null,null,null,"2009-06-03","Mon","Evening","South","Mastercard","Female",3,140.25]
[null,null,null,null,null,null,null,null,null,null,"2009-06-04","Tues","Morning","NorthEast","Mastercard","Male",3,149.79]
[null,null,null,null,null,null,null,null,null,null,"2009-06-04","Tues","Morning","NorthEast","Mastercard","Female",4,172.2]
[null,null,null,null,null,null,null,null,null,null,"2009-06-04","Tues","Evening","West","VISA","Female",3,139.85]
[null,null,null,null,null,null,null,null,null,null,"2009-06-04","Tues","Evening","West","Cash","Male",1,96.46]
[null,null,null,null,null,null,null,null,null,null,"2009-06-04","Tues","Evening","West","VISA","Female",3,127.83]
[null,null,null,null,null,null,null,null,null,null,"2009-06-05","Wed","Evening","NorthEast","VISA","Male",6,215.88]
[null,null,null,null,null,null,null,null,null,null,"2009-06-06","Thurs","Morning","NorthEast","Mastercard","Female",2,133.49]
[null,null,null,null,null,null,null,null,null,null,"2009-06-06","Thurs","Evening","West","VISA","Male",2,117.33]
[null,null,null,null,null,null,null,null,null,null,"2009-06-07","Fri","Morning","West","VISA","Female",2,107.98]
[null,null,null,null,null,null,null,null,null,null,"2009-06-07","Fri","Afternoon","MidWest","VISA","Female",6,203.11]
[null,null,null,null,null,null,null,null,null,null,"2009-06-07","Fri","Afternoon","West","VISA","Female",5,193.33]
[null,null,null,null,null,null,null,null,null,null,"2009-06-07","Fri","Evening","NorthEast","Cash","Male",7,343.26]
[null,null,null,null,null,null,null,null,null,null,"2009-06-08","Sat","Morning","NorthEast","Mastercard","Male",11,485.01]
[null,null,null,null,null,null,null,null,null,null,"2009-06-08","Sat","Evening","MidWest","Mastercard","Female",4,221.93]
[null,null,null,null,null,null,null,null,null,null,"2009-06-08","Sat","Evening","West","Cash","Male",2,94.04]
[null,null,null,null,null,null,null,null,null,null,"2009-06-08","Sat","Evening","NorthEast","Mastercard","Male",1,113.37]
[null,null,null,null,null,null,null,null,null,null,"2009-06-09","Sun","Afternoon","NorthEast","Cash","Male",5,188.26]
[null,null,null,null,null,null,null,null,null,null,"2009-06-10","Mon","Afternoon","West","VISA","Female",4,170.19]
[null,null,null,null,null,null,null,null,null,null,"2009-06-10","Mon","Afternoon","West","Cash","Female",4,224.15]
[null,null,null,null,null,null,null,null,null,null,"2009-06-10","Mon","Afternoon","NorthEast","Cash","Female",7,352.32]
[null,null,null,null,null,null,null,null,null,null,"2009-06-10","Mon","Evening","MidWest","Cash","Male",4,257.18]
[null,null,null,null,null,null,null,null,null,null,"2009-06-10","Mon","Evening","West","VISA","Male",2,122.06]
[null,null,null,null,null,null,null,null,null,null,"2009-06-10","Mon","Evening","NorthEast","VISA","Male",4,239.95]
[null,null,null,null,null,null,null,null,null,null,"2009-06-11","Tues","Afternoon","MidWest","Mastercard","Female",3,124.44]
[null,null,null,null,null,null,null,null,null,null,"2009-06-11","Tues","Afternoon","NorthEast","VISA","Male",4,116.58]
[null,null,null,null,null,null,null,null,null,null,"2009-06-11","Tues","Afternoon","MidWest","Cash","Female",2,154.46]
[null,null,null,null,null,null,null,null,null,null,"2009-06-11","Tues","Evening","MidWest","Mastercard","Male",1,76.92]
[null,null,null,null,null,null,null,null,null,null,"2009-06-11","Tues","Evening","South","Mastercard","Male",4,194.85]
[null,null,null,null,null,null,null,null,null,null,"2009-06-12","Wed","Morning","South","Mastercard","Female",6,367.7]
[null,null,null,null,null,null,null,null,null,null,"2009-06-12","Wed","Evening","NorthEast","Cash","Male",1,119.5]
[null,null,null,null,null,null,null,null,null,null,"2009-06-12","Wed","Evening","West","Mastercard","Male",7,270.94]
[null,null,null,null,null,null,null,null,null,null,"2009-06-12","Wed","Evening","West","Cash","Male",2,94.71]
[null,null,null,null,null,null,null,null,null,null,"2009-06-13","Thurs","Morning","South","VISA","Male",4,154.01]
[null,null,null,null,null,null,null,null,null,null,"2009-06-13","Thurs","Morning","MidWest","VISA","Female",5,313.3]
[null,null,null,null,null,null,null,null,null,null,"2009-06-13","Thurs","Afternoon","West","VISA","Male",7,217.99]
[null,null,null,null,null,null,null,null,null,null,"2009-06-14","Fri","Afternoon","NorthEast","VISA","Female",3,127.22]
[null,null,null,null,null,null,null,null,null,null,"2009-06-14","Fri","Afternoon","South","Mastercard","Male",1,135.97]
[null,null,null,null,null,null,null,null,null,null,"2009-06-14","Fri","Afternoon","West","Mastercard","Female",1,87.14]
[null,null,null,null,null,null,null,null,null,null,"2009-06-14","Fri","Afternoon","MidWest","VISA","Male",2,96.77]
[null,null,null,null,null,null,null,null,null,null,"2009-06-14","Fri","Evening","West","Mastercard","Female",1,74.739999999999995]
[null,null,null,null,null,null,null,null,null,null,"2009-06-15","Sat","Morning","South","Cash","Female",1,117.48]
[null,null,null,null,null,null,null,null,null,null,"2009-06-15","Sat","Morning","West","VISA","Male",2,132.88999999999999]
[null,null,null,null,null,null,null,null,null,null,"2009-06-15","Sat","Morning","NorthEast","VISA","Male",5,230.26]
[null,null,null,null,null,null,null,null,null,null,"2009-06-15","Sat","Afternoon","NorthEast","VISA","Male",10,451.03]
[null,null,null,null,null,null,null,null,null,null,"2009-06-15","Sat","Afternoon","MidWest","Cash","Female",3,153.31]
[null,null,null,null,null,null,null,null,null,null,"2009-06-16","Sun","Morning","MidWest","Mastercard","Male",3,117.79]
[null,null,null,null,null,null,null,null,null,null,"2009-06-17","Mon","Morning","West","VISA","Female",7,357.32]
[null,null,null,null,null,null,null,null,null,null,"2009-06-17","Mon","Afternoon","South","VISA","Female",7,374.17]
[null,null,null,null,null,null,null,null,null,null,"2009-06-18","Tues","Afternoon","NorthEast","Mastercard","Female",3,122.28]
[null,null,null,null,null,null,null,null,null,null,"2009-06-18","Tues","Evening","West","Mastercard","Male",2,122.57]
[null,null,null,null,null,null,null,null,null,null,"2009-06-19","Wed","Evening","South","Cash","Female",2,134.59]
[null,null,null,null,null,null,null,null,null,null,"2009-06-19","Wed","Evening","South","VISA","Male",1,134.97999999999999]
[null,null,null,null,null,null,null,null,null,null,"2009-06-19","Wed","Evening","MidWest","Cash","Male",1,109.45]
[null,null,null,null,null,null,null,null,null,null,"2009-06-20","Thurs","Morning","West","VISA","Female",3,131.52000000000001]
[null,null,null,null,null,null,null,null,null,null,"2009-06-21","Fri","Morning","MidWest","VISA","Female",1,88.76]
[null,null,null,null,null,null,null,null,null,null,"2009-06-21","Fri","Morning","South","Mastercard","Female",2,174.28]
[null,null,null,null,null,null,null,null,null,null,"2009-06-21","Fri","Afternoon","West","Mastercard","Male",1,100.7]
[null,null,null,null,null,null,null,null,null,null,"2009-06-21","Fri","Afternoon","NorthEast","Mastercard","Female",7,387.43]
[null,null,null,null,null,null,null,null,null,null,"2009-06-21","Fri","Afternoon","West","Mastercard","Female",3,160.71]
[null,null,null,null,null,null,null,null,null,null,"2009-06-21","Fri","Evening","South","Mastercard","Male",1,105.91]
[null,null,null,null,null,null,null,null,null,null,"2009-06-21","Fri","Evening","West","Cash","Male",1,101.46]
[null,null,null,null,null,null,null,null,null,null,"2009-06-22","Sat","Morning","West","Mastercard","Female",5,271.67]
[null,null,null,null,null,null,null,null,null,null,"2009-06-22","Sat","Morning","NorthEast","Mastercard","Male",1,112.74]
[null,null,null,null,null,null,null,null,null,null,"2009-06-22","Sat","Afternoon","NorthEast","VISA","Male",1,96.42]
[null,null,null,null,null,null,null,null,null,null,"2009-06-22","Sat","Evening","NorthEast","VISA","Female",6,271.48]
[null,null,null,null,null,null,null,null,null,null,"2009-06-23","Sun","Morning","NorthEast","Mastercard","Male",2,156.79]
[null,null,null,null,null,null,null,null,null,null,"2009-06-23","Sun","Morning","South","Cash","Female",5,249.63]
[null,null,null,null,null,null,null,null,null,null,"2009-06-23","Sun","Afternoon","West","Mastercard","Male",6,278.62]
[null,null,null,null,null,null,null,null,null,null,"2009-06-23","Sun","Evening","NorthEast","VISA","Male",2,84.46]
[null,null,null,null,null,null,null,null,null,null,"2009-06-23","Sun","Evening","NorthEast","Mastercard","Male",3,221.17]
[null,null,null,null,null,null,null,null,null,null,"2009-06-23","Sun","Evening","West","Mastercard","Male",4,194.79]
[null,null,null,null,null,null,null,null,null,null,"2009-06-23","Sun","Evening","South","Mastercard","Male",4,199.22]
[null,null,null,null,null,null,null,null,null,null,"2009-06-24","Mon","Morning","NorthEast","VISA","Female",2,141.69999999999999]
[null,null,null,null,null,null,null,null,null,null,"2009-06-24","Mon","Afternoon","MidWest","VISA","Female",4,191.15]
[null,null,null,null,null,null,null,null,null,null,"2009-06-24","Mon","Afternoon","NorthEast","Mastercard","Female",2,142.41]
[null,null,null,null,null,null,null,null,null,null,"2009-06-25","Tues","Morning","NorthEast","Mastercard","Female",3,134.53]
[null,null,null,null,null,null,null,null,null,null,"2009-06-25","Tues","Afternoon","West","Cash","Female",7,374.37]
[null,null,null,null,null,null,null,null,null,null,"2009-06-25","Tues","Afternoon","South","VISA","Female",3,241.73]
[null,null,null,null,null,null,null,null,null,null,"2009-06-26","Wed","Morning","MidWest","Mastercard","Female",4,278.58]
[null,null,null,null,null,null,null,null,null,null,"2009-06-26","Wed","Morning","South","Mastercard","Female",1,106.25]
[null,null,null,null,null,null,null,null,null,null,"2009-06-26","Wed","Morning","South","Cash","Female",3,115.71]
[null,null,null,null,null,null,null,null,null,null,"2009-06-26","Wed","Afternoon","NorthEast","VISA","Female",1,78.34]
[null,null,null,null,null,null,null,null,null,null,"2009-06-26","Wed","Afternoon","West","Mastercard","Female",4,216.03]
[null,null,null,null,null,null,null,null,null,null,"2009-06-26","Wed","Afternoon","West","Mastercard","Female",2,140.01]
[null,null,null,null,null,null,null,null,null,null,"2009-06-26","Wed","Evening","NorthEast","Mastercard","Male",8,458.51]
[null,null,null,null,null,null,null,null,null,null,"2009-06-27","Thurs","Morning","West","VISA","Female",4,210.6]
[null,null,null,null,null,null,null,null,null,null,"2009-06-27","Thurs","Morning","South","Mastercard","Female",4,189.49]
[null,null,null,null,null,null,null,null,null,null,"2009-06-27","Thurs","Evening","West","Cash","Male",7,359.42]
[null,null,null,null,null,null,null,null,null,null,"2009-06-28","Fri","Morning","West","Cash","Female",3,132.06]
[null,null,null,null,null,null,null,null,null,null,"2009-06-28","Fri","Morning","West","VISA","Female",5,252.33]
[null,null,null,null,null,null,null,null,null,null,"2009-06-28","Fri","Morning","MidWest","Mastercard","Male",2,172.05]
[null,null,null,null,null,null,null,null,null,null,"2009-06-28","Fri","Afternoon","West","Mastercard","Female",4,206.19]
[null,null,null,null,null,null,null,null,null,null,"2009-06-28","Fri","Afternoon","MidWest","Mastercard","Female",2,143.97999999999999]
[null,null,null,null,null,null,null,null,null,null,"2009-06-28","Fri","Afternoon","NorthEast","VISA","Female",4,276.67]
[null,null,null,null,null,null,null,null,null,null,"2009-06-29","Sat","Morning","MidWest","VISA","Male",1,111.67]
[null,null,null,null,null,null,null,null,null,null,"2009-06-29","Sat","Afternoon","NorthEast","VISA","Male",6,268.39]
[null,null,null,null,null,null,null,null,null,null,"2009-06-29","Sat","Afternoon","NorthEast","Cash","Female",3,169.11]
[null,null,null,null,null,null,null,null,null,null,"2009-06-29","Sat","Afternoon","West","Mastercard","Male",6,242.46]
[null,null,null,null,null,null,null,null,null,null,"2009-06-29","Sat","Afternoon","NorthEast","VISA","Male",4,168.64]
[null,null,null,null,null,null,null,null,null,null,"2009-06-29","Sat","Afternoon","NorthEast","VISA","Female",1,107.59]

{"sheet":"Goal Seek","index":103,"n_rows":12,"n_cols":12,"rows_kept":12,"cut":false,"hidden":true,"merged":[]}
[]
["© S. Christian Albright, 2011, All Rights Reserved"]
[null,null,null,null,null,null,null,null,null,null,"Unit cost",50]
[null,null,null,null,null,null,null,null,null,null,"Unit price",60]
[]
[null,null,null,null,null,null,null,null,null,null,"Demand curve (linear)"]
[null,null,null,null,null,null,null,null,null,null,"Intercept",2000]
[null,null,null,null,null,null,null,null,null,null,"Slope",-20]
[]
[null,null,null,null,null,null,null,null,null,null,"Demand",{"$f":"L7+L8*L4","v":800}]
[]
[null,null,null,null,null,null,null,null,null,null,"Profit",{"$f":"(L4-L3)*L10","v":8000}]

{"sheet":"Solver","index":104,"n_rows":21,"n_cols":19,"rows_kept":21,"cut":false,"hidden":true,"merged":[]}
[]
["© S. Christian Albright, 2011, All Rights Reserved"]
[null,null,null,null,null,null,null,null,null,null,"Unit shipping costs"]
[null,null,null,null,null,null,null,null,null,null,null,null,"To"]
[null,null,null,null,null,null,null,null,null,null,null,null,"Region 1","Region 2","Region 3","Region 4"]
[null,null,null,null,null,null,null,null,null,null,"From","Plant 1",131,218,266,120]
[null,null,null,null,null,null,null,null,null,null,null,"Plant 2",250,116,263,278]
[null,null,null,null,null,null,null,null,null,null,null,"Plant 3",178,132,122,180]
[]
[null,null,null,null,null,null,null,null,null,null,"Shipping plan, and constraints on supply and demand"]
[null,null,null,null,null,null,null,null,null,null,null,null,"To"]
[null,null,null,null,null,null,null,null,null,null,null,null,"Region 1","Region 2","Region 3","Region 4","Total shipped",null,"Capacity"]
[null,null,null,null,null,null,null,null,null,null,"From","Plant 1",150,0,0,300,{"$f":"SUM(M13:P13)","v":450},"<=",450]
[null,null,null,null,null,null,null,null,null,null,null,"Plant 2",100,200,0,0,{"$f":"SUM(M14:P14)","v":300},"<=",600]
[null,null,null,null,null,null,null,null,null,null,null,"Plant 3",200,0,300,0,{"$f":"SUM(M15:P15)","v":500},"<=",500]
[null,null,null,null,null,null,null,null,null,null,null,"Total received",{"$f":"SUM(M13:M15)","v":450},{"$f":"SUM(N13:N15)","v":200},{"$f":"SUM(O13:O15)","v":300},{"$f":"SUM(P13:P15)","v":300}]
[null,null,null,null,null,null,null,null,null,null,null,null,">=",">=",">=",">="]
[null,null,null,null,null,null,null,null,null,null,null,"Demand",450,200,300,300]
[]
[null,null,null,null,null,null,null,null,null,null,"Objective to minimize"]
[null,null,null,null,null,null,null,null,null,null,"Total cost",{"$f":"SUMPRODUCT(M6:P8,M13:P15)","v":176050}]

{"sheet":"Importing External Data","index":105,"n_rows":2,"n_cols":1,"rows_kept":2,"cut":false,"hidden":true,"merged":[]}
[]
["© S. Christian Albright, 2011, All Rights Reserved"]

{"sheet":"From Built-in Connections","index":106,"n_rows":93,"n_cols":13,"rows_kept":93,"cut":false,"hidden":true,"merged":[[87,10,87,14],[30,10,30,14],[31,10,31,12],[77,10,77,14],[78,10,78,14],[79,10,79,14],[81,12,81,14],[82,12,82,14],[83,10,83,14],[84,10,84,14],[85,10,85,14],[86,10,86,14],[88,10,88,14],[89,10,89,14],[90,10,90,14],[91,10,91,14],[92,10,92,14]]}
[]
["© S. Christian Albright, 2011, All Rights Reserved"]
[]
[]
[]
[]
[]
[]
[]
[]
[]
[]
[]
[]
[]
[]
[]
[]
[]
[]
[]
[]
[]
[]
[]
[]
[]
[]
[]
[null,null,null,null,null,null,null,null,null,null,"--> -->"]
[null,null,null,null,null,null,null,null,null,null,"Currency Rates Provided by MSN Money"]
[null,null,null,null,null,null,null,null,null,null,"Click here to visit MSN Money"]
[]
[null,null,null,null,null,null,null,null,null,null,"Name","In US$","   Per US$"]
[null,null,null,null,null,null,null,null,null,null,"Argentine Peso to US Dollar",0.25386999999999998,3.9390000000000001]
[null,null,null,null,null,null,null,null,null,null,"Australian Dollar to US Dollar",0.89173999999999998,1.121]
[null,null,null,null,null,null,null,null,null,null,"Bahraini Dinar to US Dollar",2.6503000000000001,0.377]
[null,null,null,null,null,null,null,null,null,null,"Bolivian Boliviano to US Dollar",0.14224999999999999,7.03]
[null,null,null,null,null,null,null,null,null,null,"Brazilian Real to US Dollar",0.56528999999999996,1.7689999999999999]
[null,null,null,null,null,null,null,null,null,null,"British Pound to US Dollar",1.5598000000000001,0.64100000000000001]
[null,null,null,null,null,null,null,null,null,null,"Canadian Dollar to US Dollar",0.96079999999999999,1.0409999999999999]
[null,null,null,null,null,null,null,null,null,null,"Chile Peso to US Dollar",1.98E-3,505.2]
[null,null,null,null,null,null,null,null,null,null,"Chinese Yuan to US Dollar",0.14715,6.7960000000000003]
[null,null,null,null,null,null,null,null,null,null,"Colombian Peso to US Dollar",5.5000000000000003E-4,1828]
[null,null,null,null,null,null,null,null,null,null,"Czech Koruna to US Dollar",5.151E-2,19.413]
[null,null,null,null,null,null,null,null,null,null,"Danish Krone to US Dollar",0.17212,5.81]
[null,null,null,null,null,null,null,null,null,null,"Euro to US Dollar",1.2822,0.78]
[null,null,null,null,null,null,null,null,null,null,"Egyptian Pound* to US Dollar",0.17549000000000001,5.6989999999999998]
[null,null,null,null,null,null,null,null,null,null,"Hong Kong Dollar to US Dollar",0.12869,7.7709999999999999]
[null,null,null,null,null,null,null,null,null,null,"Hungarian Forint to US Dollar",4.5999999999999999E-3,217.4]
[null,null,null,null,null,null,null,null,null,null,"Indian Rupee to US Dollar",2.1559999999999999E-2,46.38]
[null,null,null,null,null,null,null,null,null,null,"Indonesia Rupiah to US Dollar",1.1E-4,8970]
[null,null,null,null,null,null,null,null,null,null,"Japanese Yen to US Dollar",1.171E-2,85.38]
[null,null,null,null,null,null,null,null,null,null,"Jordanian Dinar to US Dollar",1.4096,0.70899999999999996]
[null,null,null,null,null,null,null,null,null,null,"Kenyan Shilling to US Dollar",1.234E-2,81.05]
[null,null,null,null,null,null,null,null,null,null,"South Korean Won to US Dollar",8.4999999999999995E-4,1172]
[null,null,null,null,null,null,null,null,null,null,"Kuwaiti Dinar to US Dollar",3.4708000000000001,0.28799999999999998]
[null,null,null,null,null,null,null,null,null,null,"Morocco Dirham to US Dollar",0.11569,8.6440000000000001]
[null,null,null,null,null,null,null,null,null,null,"Malaysian Ringgit to US Dollar",0.31949,3.13]
[null,null,null,null,null,null,null,null,null,null,"Mexican Peso to US Dollar",7.8530000000000003E-2,12.734]
[null,null,null,null,null,null,null,null,null,null,"Norwegian Krone to US Dollar",0.16164999999999999,6.1859999999999999]
[null,null,null,null,null,null,null,null,null,null,"Omani Rial to US Dollar",2.5966999999999998,0.38500000000000001]
[null,null,null,null,null,null,null,null,null,null,"Peruvian New Sol to US Dollar",0.35613,2.8079999999999998]
[null,null,null,null,null,null,null,null,null,null,"Philippine Peso to US Dollar",2.2210000000000001E-2,45.02]
[null,null,null,null,null,null,null,null,null,null,"Pakistani Rupee to US Dollar",1.1599999999999999E-2,86.21]
[null,null,null,null,null,null,null,null,null,null,"Saudi Riyal to US Dollar",0.2666,3.7509999999999999]
[null,null,null,null,null,null,null,null,null,null,"Singapore Dollar to US Dollar",0.73778999999999995,1.355]
[null,null,null,null,null,null,null,null,null,null,"South African Rand to US Dollar",0.13713,7.2919999999999998]
[null,null,null,null,null,null,null,null,null,null,"Swedish Krona to US Dollar",0.13536000000000001,7.3879999999999999]
[null,null,null,null,null,null,null,null,null,null,"Swiss Franc to US Dollar",0.96899000000000002,1.032]
[null,null,null,null,null,null,null,null,null,null,"Taiwan Dollar to US Dollar",3.1320000000000001E-2,31.925999999999998]
[null,null,null,null,null,null,null,null,null,null,"Thai Baht to US Dollar",3.1669999999999997E-2,31.58]
[null,null,null,null,null,null,null,null,null,null,"Tunisian Dinar to US Dollar",0.67832999999999999,1.474]
[null,null,null,null,null,null,null,null,null,null,"Emirati Dirham to US Dollar",0.27221000000000001,3.6739999999999999]
[null,null,null,null,null,null,null,null,null,null,"United States Dollar",1,1]
[null,null,null,null,null,null,null,null,null,null,"Venezuelan Bolivar to US Dollar",0.23283000000000001,4.2949999999999999]
[]
[null,null,null,null,null,null,null,null,null,null,"Data providers"]
[null,null,null,null,null,null,null,null,null,null,"Copyright © 2010 Thomson Reuters. Click for Restrictions."]
[null,null,null,null,null,null,null,null,null,null,"Quotes supplied by Interactive Data Real-Time Services."]
[]
[null,null,null,null,null,null,null,null,null,null,"MSN Money",null,"Microsoft Office Update"]
[null,null,null,null,null,null,null,null,null,null,"Discover Investor's tools, columns, and more!",null,"Get the latest from Microsoft Office"]
[null,null,null,null,null,null,null,null,null,null,"MSN privacy"]
[null,null,null,null,null,null,null,null,null,null,"Legal"]
[null,null,null,null,null,null,null,null,null,null,"Advertise"]
[null,null,null,null,null,null,null,null,null,null,"RSS"]
[]
[null,null,null,null,null,null,null,null,null,null,"Feedback"]
[null,null,null,null,null,null,null,null,null,null,"About our ads"]
[null,null,null,null,null,null,null,null,null,null,"Site map"]
[]
[null,null,null,null,null,null,null,null,null,null,"© 2010 Microsoft"]

{"sheet":"From the Web","index":107,"n_rows":84,"n_cols":13,"rows_kept":84,"cut":false,"hidden":true,"merged":[]}
[]
["© S. Christian Albright, 2011, All Rights Reserved"]
[]
[]
[]
[]
[]
[]
[]
[]
[]
[]
[]
[]
[]
[]
[]
[]
[]
[]
[]
[]
[]
[]
[]
[]
[]
[]
[]
[]
[]
[]
[]
[]
[]
[]
[]
[]
[]
[]
[]
[]
[]
[]
[]
[]
[]
[]
[]
[]
[]
[]
[]
[]
[]
[null,null,null,null,null,null,null,null,null,null,"Player","Salary","Position"]
[null,null,null,null,null,null,null,null,null,null,"   Abreu, Bobby",5000000,"Outfielder"]
[null,null,null,null,null,null,null,null,null,null,"   Adenhart, Nick",400000,"Pitcher"]
[null,null,null,null,null,null,null,null,null,null,"   Arredondo, Jose",410000,"Pitcher"]
[null,null,null,null,null,null,null,null,null,null,"   Aybar, Erick",460000,"Shortstop"]
[null,null,null,null,null,null,null,null,null,null,"   Bulger, Jason",403000,"Pitcher"]
[null,null,null,null,null,null,null,null,null,null,"   Escobar, Kelvim",10000000,"Pitcher"]
[null,null,null,null,null,null,null,null,null,null,"   Figgins, Chone",5775000,"Third Baseman"]
[null,null,null,null,null,null,null,null,null,null,"   Fuentes, Brian",8500000,"Pitcher"]
[null,null,null,null,null,null,null,null,null,null,"   Guerrero, Vladimir",15000000,"Outfielder"]
[null,null,null,null,null,null,null,null,null,null,"   Hunter, Torii",18000000,"Outfielder"]
[null,null,null,null,null,null,null,null,null,null,"   Izturis, Maicer",1600000,"Shortstop"]
[null,null,null,null,null,null,null,null,null,null,"   Jepsen, Kevin",401000,"Pitcher"]
[null,null,null,null,null,null,null,null,null,null,"   Kendrick, Howie",465000,"Second Baseman"]
[null,null,null,null,null,null,null,null,null,null,"   Lackey, John",10000000,"Pitcher"]
[null,null,null,null,null,null,null,null,null,null,"   Loux, Shane",405000,"Pitcher"]
[null,null,null,null,null,null,null,null,null,null,"   Mathis, Jeff",450000,"Catcher"]
[null,null,null,null,null,null,null,null,null,null,"   Matthews, Gary",10400000,"Outfielder"]
[null,null,null,null,null,null,null,null,null,null,"   Morales, Kendry",1100000,"First Baseman"]
[null,null,null,null,null,null,null,null,null,null,"   Moseley, Dustin",435000,"Pitcher"]
[null,null,null,null,null,null,null,null,null,null,"   Napoli, Mike",2000000,"Catcher"]
[null,null,null,null,null,null,null,null,null,null,"   Oliver, Darren",3665000,"Pitcher"]
[null,null,null,null,null,null,null,null,null,null,"   Quinlan, Robb",1100000,"First Baseman"]
[null,null,null,null,null,null,null,null,null,null,"   Rivera, Juan",3250000,"Outfielder"]
[null,null,null,null,null,null,null,null,null,null,"   Santana, Ervin",3800000,"Pitcher"]
[null,null,null,null,null,null,null,null,null,null,"   Saunders, Joe",475000,"Pitcher"]
[null,null,null,null,null,null,null,null,null,null,"   Shields, Scot",5000000,"Pitcher"]
[null,null,null,null,null,null,null,null,null,null,"   Speier, Justin",4750000,"Pitcher"]
[null,null,null,null,null,null,null,null,null,null,"   Weaver, Jered",465000,"Pitcher"]

{"sheet":"From a Text File","index":108,"n_rows":49,"n_cols":4,"rows_kept":49,"cut":false,"hidden":true,"merged":[]}
[]
["© S. Christian Albright, 2011, All Rights Reserved"]
[]
[]
[]
[]
[]
[]
[]
[]
[]
[]
[]
[]
[]
[]
[]
[]
[]
[]
[]
[]
[]
[]
[]
[]
[]
[]
[]
[]
[]
[]
[]
[]
[]
[null,"Faculty","Support Staff","Supply Budget"]
[null,"Credit Hours","Research Pubs"]
[null,"Business"]
[null,150,70,5]
[null,15,225]
[null,"Education"]
[null,60,20,3]
[null,5.4,70]
[null,"Arts & Sciences"]
[null,800,140,20]
[null,56,1300]
[null,"HPER"]
[null,30,15,1]
[null,2.1,40]

{"sheet":"From a Database","index":109,"n_rows":2,"n_cols":1,"rows_kept":2,"cut":false,"hidden":true,"merged":[]}
[]
["© S. Christian Albright, 2011, All Rights Reserved"]

{"sheet":"Making Professional Apps","index":110,"n_rows":2,"n_cols":1,"rows_kept":2,"cut":false,"hidden":true,"merged":[]}
[]
["© S. Christian Albright, 2011, All Rights Reserved"]

{"sheet":"Conditional Formatting","index":111,"n_rows":86,"n_cols":17,"rows_kept":86,"cut":false,"hidden":true,"merged":[]}
[]
["© S. Christian Albright, 2011, All Rights Reserved"]
[]
[]
[]
[]
[]
[]
[]
[]
[]
[]
[]
[]
[]
[]
[]
[null,null,null,null,null,null,null,null,null,null,"Exam score",null,"Cutoffs for extremes"]
[null,null,null,null,null,null,null,null,null,null,62,null,"High",94]
[null,null,null,null,null,null,null,null,null,null,88,null,"Low",66]
[null,null,null,null,null,null,null,null,null,null,77]
[null,null,null,null,null,null,null,null,null,null,62]
[null,null,null,null,null,null,null,null,null,null,94]
[null,null,null,null,null,null,null,null,null,null,68]
[null,null,null,null,null,null,null,null,null,null,73]
[null,null,null,null,null,null,null,null,null,null,61]
[null,null,null,null,null,null,null,null,null,null,99]
[null,null,null,null,null,null,null,null,null,null,94]
[null,null,null,null,null,null,null,null,null,null,88]
[null,null,null,null,null,null,null,null,null,null,82]
[null,null,null,null,null,null,null,null,null,null,87]
[null,null,null,null,null,null,null,null,null,null,65]
[null,null,null,null,null,null,null,null,null,null,82]
[null,null,null,null,null,null,null,null,null,null,70]
[null,null,null,null,null,null,null,null,null,null,94]
[null,null,null,null,null,null,null,null,null,null,80]
[null,null,null,null,null,null,null,null,null,null,96]
[]
[]
[]
[null,null,null,null,null,null,null,null,null,null,"Person","Birthdate","Gender","State","Children","Salary"]
[null,null,null,null,null,null,null,null,null,null,1,"1959-08-05","Male","Indiana",1,65400]
[null,null,null,null,null,null,null,null,null,null,2,"1977-10-15","Female","Michigan",2,62000]
[null,null,null,null,null,null,null,null,null,null,3,"1981-01-03","Male","Illinois",0,63200]
[null,null,null,null,null,null,null,null,null,null,4,"1949-05-05","Male","Wisconsin",2,52000]
[null,null,null,null,null,null,null,null,null,null,5,"1987-04-04","Female","Michigan",3,81400]
[null,null,null,null,null,null,null,null,null,null,6,"1949-06-30","Female","Wisconsin",3,46300]
[null,null,null,null,null,null,null,null,null,null,7,"1949-05-22","Female","Ohio",2,49600]
[null,null,null,null,null,null,null,null,null,null,8,"1952-10-30","Male","Ohio",1,45900]
[null,null,null,null,null,null,null,null,null,null,9,"1957-01-17","Male","Illinois",3,47700]
[null,null,null,null,null,null,null,null,null,null,10,"1985-09-18","Female","Indiana",1,59900]
[null,null,null,null,null,null,null,null,null,null,11,"1953-07-19","Male","Illinois",1,48100]
[null,null,null,null,null,null,null,null,null,null,12,"1946-12-10","Female","Michigan",0,58100]
[null,null,null,null,null,null,null,null,null,null,13,"1986-03-29","Female","Wisconsin",2,56000]
[null,null,null,null,null,null,null,null,null,null,14,"1952-12-12","Female","Illinois",2,53400]
[null,null,null,null,null,null,null,null,null,null,15,"1977-06-12","Female","Illinois",2,39000]
[null,null,null,null,null,null,null,null,null,null,16,"1989-11-19","Male","Ohio",1,61500]
[null,null,null,null,null,null,null,null,null,null,17,"1957-09-06","Male","Ohio",0,37700]
[null,null,null,null,null,null,null,null,null,null,18,"1970-09-30","Female","Michigan",2,36700]
[null,null,null,null,null,null,null,null,null,null,19,"1973-10-24","Male","Illinois",2,45200]
[null,"Scroll down for more below…",null,null,null,null,null,null,null,null,20,"1978-06-08","Male","Ohio",0,59000]
[null,null,null,null,null,null,null,null,null,null,21,"1990-08-27","Female","Ohio",2,54300]
[null,null,null,null,null,null,null,null,null,null,22,"1947-02-09","Male","Illinois",1,62100]
[null,null,null,null,null,null,null,null,null,null,23,"1989-04-01","Male","Wisconsin",0,78000]
[null,null,null,null,null,null,null,null,null,null,24,"1970-03-12","Male","Ohio",0,43200]
[null,null,null,null,null,null,null,null,null,null,25,"1970-03-28","Male","Indiana",1,44500]
[null,null,null,null,null,null,null,null,null,null,26,"1963-05-06","Male","Michigan",1,43300]
[null,null,null,null,null,null,null,null,null,null,27,"1959-05-07","Male","Ohio",3,45400]
[null,null,null,null,null,null,null,null,null,null,28,"1987-03-06","Male","Indiana",2,53900]
[null,null,null,null,null,null,null,null,null,null,29,"1958-02-09","Male","Michigan",1,44100]
[null,null,null,null,null,null,null,null,null,null,30,"1955-08-04","Female","Indiana",2,31000]
[]
[]
[null,null,null,null,null,null,null,null,null,null,"Month","Region1","Region2","Region3","Region4","Region5","Region6"]
[null,null,null,null,null,null,null,null,null,null,"2009-01-01",{"$f":"RANDBETWEEN(1000,5000)","v":1197},1779,2877,2184,1539,4315]
[null,null,null,null,null,null,null,null,null,null,"2009-02-01",4683,1657,3843,1667,3743,2200]
[null,null,null,null,null,null,null,null,null,null,"2009-03-01",4719,1626,2011,2135,2026,3636]
[null,null,null,null,null,null,null,null,null,null,"2009-04-01",2123,1795,1192,3292,4376,4865]
[null,null,null,null,null,null,null,null,null,null,"2009-05-01",4189,2409,2211,3019,4115,4940]
[null,null,null,null,null,null,null,null,null,null,"2009-06-01",2166,3862,3405,4122,4571,4372]
[null,null,null,null,null,null,null,null,null,null,"2009-07-01",3289,3328,1751,3780,2198,4123]
[null,null,null,null,null,null,null,null,null,null,"2009-08-01",4574,1116,2345,2828,1829,4828]
[null,null,null,null,null,null,null,null,null,null,"2009-09-01",1622,3251,3500,1221,3036,4178]
[null,null,null,null,null,null,null,null,null,null,"2009-10-01",2000,2149,2152,2696,1006,4178]
[null,null,null,null,null,null,null,null,null,null,"2009-11-01",1729,3071,3645,3721,3545,1603]
[null,null,null,null,null,null,null,null,null,null,"2009-12-01",3409,4145,4354,4612,1340,2882]

{"sheet":"Data Validation","index":112,"n_rows":62,"n_cols":14,"rows_kept":62,"cut":false,"hidden":true,"merged":[]}
[]
["© S. Christian Albright, 2011, All Rights Reserved"]
[]
[]
[]
[]
[]
[]
[]
[]
[]
[]
[]
[]
[]
[]
[]
[]
[]
[]
[]
[]
[]
[null,null,null,null,null,null,null,null,null,null,null,null,"any integer between 1 and 10"]
[null,null,null,null,null,null,null,null,null,null,null,null,"any decimal number between 1 and 10"]
[null,null,null,null,null,null,null,null,null,null,null,null,"any positive integer"]
[null,null,null,null,null,null,null,null,null,null,null,null,"any negative decimal number"]
[null,null,null,null,null,null,null,null,null,null,null,null,"any integer between the two values below (which could change)"]
[null,null,null,null,null,null,null,null,null,null,null,null,30,40]
[]
[]
[]
[]
[]
[]
[]
[]
[]
[]
[]
[]
[]
[null,null,null,null,null,null,null,null,null,null,"Amount financed",25000]
[null,null,null,null,null,null,null,null,null,null,"Interest rate",6.25E-2]
[null,null,null,null,null,null,null,null,null,null,"Term"]
[null,null,null,null,null,null,null,null,null,null,"Monthy payment",{"$f":"PMT(L44/12,L45,-L43)","v":{"$error":"#NUM!"}}]
[]
[]
[]
[]
[]
[]
[]
[]
[]
[]
[]
[]
[]
[]
[]
[null,null,null,null,null,null,null,null,null,null,"Date of loan"]

{"sheet":"Protecting","index":113,"n_rows":2,"n_cols":1,"rows_kept":2,"cut":false,"hidden":true,"merged":[]}
[]
["© S. Christian Albright, 2011, All Rights Reserved"]

{"sheet":"Adding Form Controls","index":114,"n_rows":16,"n_cols":27,"rows_kept":16,"cut":false,"hidden":true,"merged":[]}
[null,null,null,null,null,null,null,null,null,null,null,null,null,null,null,null,null,null,null,null,null,null,null,null,null,null,2]
["© S. Christian Albright, 2011, All Rights Reserved",null,null,null,null,null,null,null,null,null,null,null,null,null,null,null,null,null,null,null,null,null,null,null,null,null,true]
[null,null,null,null,null,null,null,null,null,null,null,null,null,null,"Prices"]
[null,null,null,null,null,null,null,null,null,null,null,null,null,null,"Flat-screen TV",2500]
[null,null,null,null,null,null,null,null,null,null,null,null,null,null,"Blu-ray disc player",450]
[null,null,null,null,null,null,null,null,null,null,null,null,null,null,"Laptop computer",650]
[]
[null,null,null,null,null,null,null,null,null,null,null,null,null,null,"Preferred discount",0.05]
[]
[]
[]
[null,null,null,null,null,null,null,null,null,null,"Invoice"]
[null,null,null,null,null,null,null,null,null,null,"Product",{"$f":"INDEX(O4:O6,AA1)","v":"Blu-ray disc player"}]
[null,null,null,null,null,null,null,null,null,null,"Price",{"$f":"INDEX(P4:P6,AA1)","v":450}]
[null,null,null,null,null,null,null,null,null,null,"Discount",{"$f":"IF(AA2=TRUE,P8*L14,0)","v":22.5}]
[null,null,null,null,null,null,null,null,null,null,"Net price",{"$f":"L14-L15","v":427.5}]

{"sheet":"Recording Macros","index":115,"n_rows":74,"n_cols":13,"rows_kept":74,"cut":false,"hidden":true,"merged":[]}
[]
["© S. Christian Albright, 2011, All Rights Reserved"]
[]
[]
[]
[]
[]
[]
[]
[]
[]
[]
[]
[]
[]
[]
[]
[]
[]
[]
[]
[]
[]
[]
[]
[]
[]
[]
[]
[]
[]
[]
[]
[]
[]
[]
[]
[]
[]
[]
[]
[]
[]
[]
[]
[]
[]
[]
[]
[]
[]
[]
[]
[]
[]
[]
[]
[]
[]
[]
[]
[]
[]
[]
[]
[]
[]
[]
[]
[]
[]
[null,null,null,null,null,null,null,null,null,null,2.0001000000000002,null,50.000100000000003]
[null,null,null,null,null,null,null,null,null,null,30.9999,null,0.99990000000000001]
[null,null,null,null,null,null,null,null,null,null,-3.0002]

{"sheet":"Template","index":116,"n_rows":2,"n_cols":6,"rows_kept":2,"cut":false,"hidden":true,"merged":[]}
[null,null,null,null,null,"Save this file under another name, such as My Excel Tutorial.xlsm, and work with the copy."]
["© S. Christian Albright, 2011, All Rights Reserved"]